Workbook

Sheet Cover

Sheet Klaiceva_Volume_Projections (hidden)
A1: =RIGHT(CELL("filename", A$1), LEN(CELL("filename", A$1)) - SEARCH("]", CELL("filename", A$1))) -> Klaiceva_Volume_Projections
E2: Model period ending | J2: 2014-03-31 | K2: 2014-06-30 | L2: 2014-09-30 | M2: 2014-12-31 | N2: 2015-03-31 | O2: 2015-06-30 | P2: 2015-09-30 | Q2: 2015-12-31 | R2: 2016-03-31 | S2: 2016-06-30 | T2: 2016-09-30 | U2: 2016-12-31 | V2: 2017-03-31 | W2: 2017-06-30 | X2: 2017-09-30 | Y2: 2017-12-31 | Z2: 2018-03-31 | AA2: 2018-06-30 | AB2: 2018-09-30 | AC2: 2018-12-31 | AD2: 2019-03-31 | AE2: 2019-06-30 | AF2: 2019-09-30 | AG2: 2019-12-31 | AH2: 2020-03-31 | AI2: 2020-06-30 | AJ2: 2020-09-30 | AK2: 2020-12-31 | AL2: 2021-03-31 | AM2: 2021-06-30 | AN2: 2021-09-30 | AO2: 2021-12-31 | AP2: 2022-03-31 | AQ2: 2022-06-30 | AR2: 2022-09-30 | AS2: 2022-12-31 | AT2: 2023-03-31 | AU2: 2023-06-30 | AV2: 2023-09-30 | AW2: 2023-12-31 | AX2: 2024-03-31 | AY2: 2024-06-30 | AZ2: 2024-09-30 | BA2: 2024-12-31 | BB2: 2025-03-31 | BC2: 2025-06-30 | BD2: 2025-09-30 | BE2: 2025-12-31 | BF2: 2026-03-31 | BG2: 2026-06-30 | BH2: 2026-09-30 | BI2: 2026-12-31 | BJ2: 2027-03-31 | BK2: 2027-06-30 | BL2: 2027-09-30 | BM2: 2027-12-31 | BN2: 2028-03-31 | BO2: 2028-06-30 | BP2: 2028-09-30 | BQ2: 2028-12-31 | BR2: 2029-03-31 | BS2: 2029-06-30 | BT2: 2029-09-30 | BU2: 2029-12-31 | BV2: 2030-03-31 | BW2: 2030-06-30 | BX2: 2030-09-30 | BY2: 2030-12-31 | BZ2: 2031-03-31 | CA2: 2031-06-30 | CB2: 2031-09-30 | CC2: 2031-12-31 | CD2: 2032-03-31 | CE2: 2032-06-30 | CF2: 2032-09-30 | CG2: 2032-12-31 | CH2: 2033-03-31 | CI2: 2033-06-30 | CJ2: 2033-09-30 | CK2: 2033-12-31 | CL2: 2034-03-31 | CM2: 2034-06-30 | CN2: 2034-09-30 | CO2: 2034-12-31 | CP2: 2035-03-31 | CQ2: 2035-06-30 | CR2: 2035-09-30 | CS2: 2035-12-31 | CT2: 2036-03-31 | CU2: 2036-06-30 | CV2: 2036-09-30 | CW2: 2036-12-31 | CX2: 2037-03-31 | CY2: 2037-06-30 | CZ2: 2037-09-30 | DA2: 2037-12-31 | DB2: 2038-03-31 | DC2: 2038-06-30 | DD2: 2038-09-30 | DE2: 2038-12-31 | DF2: 2039-03-31 | DG2: 2039-06-30 | DH2: 2039-09-30 | DI2: 2039-12-31 | DJ2: 2040-03-31 | DK2: 2040-06-30 | DL2: 2040-09-30 | DM2: 2040-12-31 | DN2: 2041-03-31 | DO2: 2041-06-30 | DP2: 2041-09-30 | DQ2: 2041-12-31 | DR2: 2042-03-31 | DS2: 2042-06-30 | DT2: 2042-09-30 | DU2: 2042-12-31 | DV2: 2043-03-31 | DW2: 2043-06-30 | DX2: 2043-09-30 | DY2: 2043-12-31 | DZ2: 2044-03-31 | EA2: 2044-06-30 | EB2: 2044-09-30 | EC2: 2044-12-31 | ED2: 2045-03-31 | EE2: 2045-06-30 | EF2: 2045-09-30 | EG2: 2045-12-31 | EH2: 2046-03-31 | EI2: 2046-06-30
E3: Pre-forecast vs construction vs operations | J3: Pre-Frcst | K3: Pre-Frcst | L3: Construction | M3: Construction | N3: Construction | O3: Construction | P3: Construction | Q3: Construction | R3: Construction | S3: Construction | T3: Operations | U3: Operations | V3: Operations | W3: Operations | X3: Operations | Y3: Operations | Z3: Operations | AA3: Operations | AB3: Operations | AC3: Operations | AD3: Operations | AE3: Operations | AF3: Operations | AG3: Operations | AH3: Operations | AI3: Operations | AJ3: Operations | AK3: Operations | AL3: Operations | AM3: Operations | AN3: Operations | AO3: Operations | AP3: Operations | AQ3: Operations | AR3: Operations | AS3: Operations | AT3: Operations | AU3: Operations | AV3: Operations | AW3: Operations | AX3: Operations | AY3: Operations | AZ3: Operations | BA3: Operations | BB3: Operations | BC3: Operations | BD3: Operations | BE3: Operations | BF3: Operations | BG3: Operations | BH3: Operations | BI3: Operations | BJ3: Operations | BK3: Operations | BL3: Operations | BM3: Operations | BN3: Operations | BO3: Operations | BP3: Operations | BQ3: Operations | BR3: Operations | BS3: Operations | BT3: Operations | BU3: Operations | BV3: Operations | BW3: Operations | BX3: Operations | BY3: Operations | BZ3: Operations | CA3: Operations | CB3: Operations | CC3: Operations | CD3: Operations | CE3: Operations | CF3: Operations | CG3: Operations | CH3: Operations | CI3: Operations | CJ3: Operations | CK3: Operations | CL3: Operations | CM3: Operations | CN3: Operations | CO3: Operations | CP3: Operations | CQ3: Operations | CR3: Operations | CS3: Operations | CT3: Operations | CU3: Operations | CV3: Operations | CW3: Operations | CX3: Operations | CY3: Operations | CZ3: Operations | DA3: Operations | DB3: Operations | DC3: Operations | DD3: Operations | DE3: Operations | DF3: Operations | DG3: Operations | DH3: Operations | DI3: Operations | DJ3: Operations | DK3: Operations | DL3: Operations | DM3: Operations | DN3: Operations | DO3: Operations | DP3: Operations | DQ3: Operations | DR3: Operations | DS3: Operations | DT3: Operations | DU3: Operations | DV3: Operations | DW3: Operations | DX3: Operations | DY3: Operations | DZ3: Operations | EA3: Operations | EB3: Operations | EC3: Operations | ED3: Operations | EE3: Operations | EF3: Operations | EG3: Operations | EH3: Operations | EI3: Operations
E4: Financial year ending | J4: 2014 | K4: 2014 | L4: 2014 | M4: 2014 | N4: 2015 | O4: 2015 | P4: 2015 | Q4: 2015 | R4: 2016 | S4: 2016 | T4: 2016 | U4: 2016 | V4: 2017 | W4: 2017 | X4: 2017 | Y4: 2017 | Z4: 2018 | AA4: 2018 | AB4: 2018 | AC4: 2018 | AD4: 2019 | AE4: 2019 | AF4: 2019 | AG4: 2019 | AH4: 2020 | AI4: 2020 | AJ4: 2020 | AK4: 2020 | AL4: 2021 | AM4: 2021 | AN4: 2021 | AO4: 2021 | AP4: 2022 | AQ4: 2022 | AR4: 2022 | AS4: 2022 | AT4: 2023 | AU4: 2023 | AV4: 2023 | AW4: 2023 | AX4: 2024 | AY4: 2024 | AZ4: 2024 | BA4: 2024 | BB4: 2025 | BC4: 2025 | BD4: 2025 | BE4: 2025 | BF4: 2026 | BG4: 2026 | BH4: 2026 | BI4: 2026 | BJ4: 2027 | BK4: 2027 | BL4: 2027 | BM4: 2027 | BN4: 2028 | BO4: 2028 | BP4: 2028 | BQ4: 2028 | BR4: 2029 | BS4: 2029 | BT4: 2029 | BU4: 2029 | BV4: 2030 | BW4: 2030 | BX4: 2030 | BY4: 2030 | BZ4: 2031 | CA4: 2031 | CB4: 2031 | CC4: 2031 | CD4: 2032 | CE4: 2032 | CF4: 2032 | CG4: 2032 | CH4: 2033 | CI4: 2033 | CJ4: 2033 | CK4: 2033 | CL4: 2034 | CM4: 2034 | CN4: 2034 | CO4: 2034 | CP4: 2035 | CQ4: 2035 | CR4: 2035 | CS4: 2035 | CT4: 2036 | CU4: 2036 | CV4: 2036 | CW4: 2036 | CX4: 2037 | CY4: 2037 | CZ4: 2037 | DA4: 2037 | DB4: 2038 | DC4: 2038 | DD4: 2038 | DE4: 2038 | DF4: 2039 | DG4: 2039 | DH4: 2039 | DI4: 2039 | DJ4: 2040 | DK4: 2040 | DL4: 2040 | DM4: 2040 | DN4: 2041 | DO4: 2041 | DP4: 2041 | DQ4: 2041 | DR4: 2042 | DS4: 2042 | DT4: 2042 | DU4: 2042 | DV4: 2043 | DW4: 2043 | DX4: 2043 | DY4: 2043 | DZ4: 2044 | EA4: 2044 | EB4: 2044 | EC4: 2044 | ED4: 2045 | EE4: 2045 | EF4: 2045 | EG4: 2045 | EH4: 2046 | EI4: 2046
E5: Model column counter | F5: Constant | G5: Unit | H5: Total | J5: 1 | K5: 2 | L5: 3 | M5: 4 | N5: 5 | O5: 6 | P5: 7 | Q5: 8 | R5: 9 | S5: 10 | T5: 11 | U5: 12 | V5: 13 | W5: 14 | X5: 15 | Y5: 16 | Z5: 17 | AA5: 18 | AB5: 19 | AC5: 20 | AD5: 21 | AE5: 22 | AF5: 23 | AG5: 24 | AH5: 25 | AI5: 26 | AJ5: 27 | AK5: 28 | AL5: 29 | AM5: 30 | AN5: 31 | AO5: 32 | AP5: 33 | AQ5: 34 | AR5: 35 | AS5: 36 | AT5: 37 | AU5: 38 | AV5: 39 | AW5: 40 | AX5: 41 | AY5: 42 | AZ5: 43 | BA5: 44 | BB5: 45 | BC5: 46 | BD5: 47 | BE5: 48 | BF5: 49 | BG5: 50 | BH5: 51 | BI5: 52 | BJ5: 53 | BK5: 54 | BL5: 55 | BM5: 56 | BN5: 57 | BO5: 58 | BP5: 59 | BQ5: 60 | BR5: 61 | BS5: 62 | BT5: 63 | BU5: 64 | BV5: 65 | BW5: 66 | BX5: 67 | BY5: 68 | BZ5: 69 | CA5: 70 | CB5: 71 | CC5: 72 | CD5: 73 | CE5: 74 | CF5: 75 | CG5: 76 | CH5: 77 | CI5: 78 | CJ5: 79 | CK5: 80 | CL5: 81 | CM5: 82 | CN5: 83 | CO5: 84 | CP5: 85 | CQ5: 86 | CR5: 87 | CS5: 88 | CT5: 89 | CU5: 90 | CV5: 91 | CW5: 92 | CX5: 93 | CY5: 94 | CZ5: 95 | DA5: 96 | DB5: 97 | DC5: 98 | DD5: 99 | DE5: 100 | DF5: 101 | DG5: 102 | DH5: 103 | DI5: 104 | DJ5: 105 | DK5: 106 | DL5: 107 | DM5: 108 | DN5: 109 | DO5: 110 | DP5: 111 | DQ5: 112 | DR5: 113 | DS5: 114 | DT5: 115 | DU5: 116 | DV5: 117 | DW5: 118 | DX5: 119 | DY5: 120 | DZ5: 121 | EA5: 122 | EB5: 123 | EC5: 124 | ED5: 125 | EE5: 126 | EF5: 127 | EG5: 128 | EH5: 129 | EI5: 130
B7: PARKING GARAGE REVENUE
E9: Parking garage ramp up and realisation | G9: % | J9: 0 | K9: 0 | L9: 0 | M9: 0 | N9: 0 | O9: 0 | P9: 0 | Q9: 0 | R9: 0 | S9: 0.55 | T9: 0.55 | U9: 0.55 | V9: 0.85 | W9: 0.85 | X9: 0.85 | Y9: 0.85 | Z9: 0.85 | AA9: 0.85 | AB9: 0.85 | AC9: 0.85 | AD9: 0.85 | AE9: 0.85 | AF9: 0.85 | AG9: 0.85 | AH9: 1 | AI9: 1 | AJ9: 1 | AK9: 1 | AL9: 1 | AM9: 1 | AN9: 1 | AO9: 1 | AP9: 1 | AQ9: 1 | AR9: 1 | AS9: 1 | AT9: 1 | AU9: 1 | AV9: 1 | AW9: 1 | AX9: 1 | AY9: 1 | AZ9: 1 | BA9: 1 | BB9: 1 | BC9: 1 | BD9: 1 | BE9: 1 | BF9: 1.1 | BG9: 1.1 | BH9: 1.1 | BI9: 1.1 | BJ9: 1.1 | BK9: 1.1 | BL9: 1.1 | BM9: 1.1 | BN9: 1.1 | BO9: 1.1 | BP9: 1.1 | BQ9: 1.1 | BR9: 1.1 | BS9: 1.1 | BT9: 1.1 | BU9: 1.1 | BV9: 1.1 | BW9: 1.1 | BX9: 1.1 | BY9: 1.1 | BZ9: 1.2 | CA9: 1.2 | CB9: 1.2 | CC9: 1.2 | CD9: 1.2 | CE9: 1.2 | CF9: 1.2 | CG9: 1.2 | CH9: 1.2 | CI9: 1.2 | CJ9: 1.2 | CK9: 1.2 | CL9: 1.2 | CM9: 1.2 | CN9: 1.2 | CO9: 1.2 | CP9: 1.2 | CQ9: 1.2 | CR9: 1.2 | CS9: 1.2 | CT9: 1.3 | CU9: 1.3 | CV9: 1.3 | CW9: 1.3 | CX9: 1.3 | CY9: 1.3 | CZ9: 1.3 | DA9: 1.3 | DB9: 1.3 | DC9: 1.3 | DD9: 1.3 | DE9: 1.3 | DF9: 1.3 | DG9: 1.3 | DH9: 1.3 | DI9: 1.3 | DJ9: 1.3 | DK9: 1.3 | DL9: 1.3 | DM9: 1.3 | DN9: 1.3 | DO9: 1.3 | DP9: 1.3 | DQ9: 1.3 | DR9: 1.3 | DS9: 1.3 | DT9: 1.3 | DU9: 1.3 | DV9: 1.3 | DW9: 1.3 | DX9: 1.3 | DY9: 1.3 | DZ9: 1.3 | EA9: 1.3 | EB9: 1.3 | EC9: 1.3 | ED9: 1.3 | EE9: 1.3 | EF9: 1.3 | EG9: 1.3 | EH9: 1.3 | EI9: 1.3
E11: Currency | F11: '000 HRK | G11: currnecy
C12: Revenue Assumption per Category
E13: Workers - Subscription average rate p/h | F13: 1.5 | G13: kn p/h
E14: Dwellers - Subscription average rate p/h | F14: 0.9 | G14: kn p/h
E15: Students - Day Parking average rate p/h | F15: 4.8 | G15: kn p/h
E16: Visitors - Health/Business/Culture - Day Parking average rate p/h | F16: 4.8 | G16: kn p/h
E17: Visitors - Culture - Evening Parking | F17: 3.2 | G17: kn p/h
E18: Visitors - Shopping - Day Parking | F18: 4.8 | G18: kn p/h
E19: Visitors - Shopping - Evening Parking | F19: 3.2 | G19: kn p/h
E20: Visitors - Food/Beverages - Day Parking | F20: 4.8 | G20: kn p/h
E21: Visitors - Food/Beverages - Evening Parking | F21: 3.2 | G21: kn p/h
E22: Others - Day Parking | F22: 4.8 | G22: kn p/h
C25: Revenue Assumption per Category
E26: Workers - Subscription | F26: 246375 | G26: hours p/y
E27: Dwellers - Subscription | F27: 273750 | G27: hours p/y
E28: Students - Day Parking | F28: 237615 | G28: hours p/y
E29: Visitors - Health/Business/Culture - Day Parking | F29: 373760 | G29: hours p/y
E30: Visitors - Culture - Evening Parking | F30: 176295 | G30: hours p/y
E31: Visitors - Shopping - Day Parking | F31: 193450 | G31: hours p/y
E32: Visitors - Shopping - Evening Parking | F32: 82855 | G32: hours p/y
E33: Visitors - Food/Beverages - Day Parking | F33: 43800 | G33: hours p/y
E34: Visitors - Food/Beverages - Evening Parking | F34: 35770 | G34: hours p/y
E35: Others - Day Parking | F35: 49676 | G35: hours p/y
B39: REVENUE BY CUSTOMER TYPE
C41: Workers - Subscription
E42: =E$13 -> Workers - Subscription average rate p/h | F42: =F$13 -> 1.5 | G42: kn p/h
E43: CPI Indexation | G43: index | J43: 1 | K43: 1 | L43: 1 | M43: 1 | N43: 1.02 | O43: 1.02 | P43: 1.02 | Q43: 1.02 | R43: 1.0404 | S43: 1.0404 | T43: 1.0404 | U43: 1.0404 | V43: 1.061208 | W43: 1.061208 | X43: 1.061208 | Y43: 1.061208 | Z43: 1.08243216 | AA43: 1.08243216 | AB43: 1.08243216 | AC43: 1.08243216 | AD43: 1.104080803 | AE43: 1.104080803 | AF43: 1.104080803 | AG43: 1.104080803 | AH43: 1.126162419 | AI43: 1.126162419 | AJ43: 1.126162419 | AK43: 1.126162419 | AL43: 1.148685668 | AM43: 1.148685668 | AN43: 1.148685668 | AO43: 1.148685668 | AP43: 1.171659381 | AQ43: 1.171659381 | AR43: 1.171659381 | AS43: 1.171659381 | AT43: 1.195092569 | AU43: 1.195092569 | AV43: 1.195092569 | AW43: 1.195092569 | AX43: 1.21899442 | AY43: 1.21899442 | AZ43: 1.21899442 | BA43: 1.21899442 | BB43: 1.243374308 | BC43: 1.243374308 | BD43: 1.243374308 | BE43: 1.243374308 | BF43: 1.268241795 | BG43: 1.268241795 | BH43: 1.268241795 | BI43: 1.268241795 | BJ43: 1.29360663 | BK43: 1.29360663 | BL43: 1.29360663 | BM43: 1.29360663 | BN43: 1.319478763 | BO43: 1.319478763 | BP43: 1.319478763 | BQ43: 1.319478763 | BR43: 1.345868338 | BS43: 1.345868338 | BT43: 1.345868338 | BU43: 1.345868338 | BV43: 1.372785705 | BW43: 1.372785705 | BX43: 1.372785705 | BY43: 1.372785705 | BZ43: 1.400241419 | CA43: 1.400241419 | CB43: 1.400241419 | CC43: 1.400241419 | CD43: 1.428246248 | CE43: 1.428246248 | CF43: 1.428246248 | CG43: 1.428246248 | CH43: 1.456811173 | CI43: 1.456811173 | CJ43: 1.456811173 | CK43: 1.456811173 | CL43: 1.485947396 | CM43: 1.485947396 | CN43: 1.485947396 | CO43: 1.485947396 | CP43: 1.515666344 | CQ43: 1.515666344 | CR43: 1.515666344 | CS43: 1.515666344 | CT43: 1.545979671 | CU43: 1.545979671 | CV43: 1.545979671 | CW43: 1.545979671 | CX43: 1.576899264 | CY43: 1.576899264 | CZ43: 1.576899264 | DA43: 1.576899264 | DB43: 1.608437249 | DC43: 1.608437249 | DD43: 1.608437249 | DE43: 1.608437249 | DF43: 1.640605994 | DG43: 1.640605994 | DH43: 1.640605994 | DI43: 1.640605994 | DJ43: 1.673418114 | DK43: 1.673418114 | DL43: 1.673418114 | DM43: 1.673418114 | DN43: 1.706886477 | DO43: 1.706886477 | DP43: 1.706886477 | DQ43: 1.706886477 | DR43: 1.741024206 | DS43: 1.741024206 | DT43: 1.741024206 | DU43: 1.741024206 | DV43: 1.77584469 | DW43: 1.77584469 | DX43: 1.77584469 | DY43: 1.77584469 | DZ43: 1.811361584 | EA43: 1.811361584 | EB43: 1.811361584 | EC43: 1.811361584 | ED43: 1.847588816 | EE43: 1.847588816 | EF43: 1.847588816 | EG43: 1.847588816 | EH43: 1.884540592 | EI43: 1.884540592
E44: =C$41 & " Revenue per hour" -> Workers - Subscription Revenue per hour | G44: kn p/h | J44: =F$42 * J$43 -> 1.5 | K44: =F$42 * K$43 -> 1.5 | L44: =F$42 * L$43 -> 1.5 | M44: =F$42 * M$43 -> 1.5 | N44: =F$42 * N$43 -> 1.53 | O44: =F$42 * O$43 -> 1.53 | P44: =F$42 * P$43 -> 1.53 | Q44: =F$42 * Q$43 -> 1.53 | R44: =F$42 * R$43 -> 1.5606 | S44: =F$42 * S$43 -> 1.5606 | T44: =F$42 * T$43 -> 1.5606 | U44: =F$42 * U$43 -> 1.5606 | V44: =F$42 * V$43 -> 1.591812 | W44: =F$42 * W$43 -> 1.591812 | X44: =F$42 * X$43 -> 1.591812 | Y44: =F$42 * Y$43 -> 1.591812 | Z44: =F$42 * Z$43 -> 1.62364824 | AA44: =F$42 * AA$43 -> 1.62364824 | AB44: =F$42 * AB$43 -> 1.62364824 | AC44: =F$42 * AC$43 -> 1.62364824 | AD44: =F$42 * AD$43 -> 1.656121205 | AE44: =F$42 * AE$43 -> 1.656121205 | AF44: =F$42 * AF$43 -> 1.656121205 | AG44: =F$42 * AG$43 -> 1.656121205 | AH44: =F$42 * AH$43 -> 1.689243629 | AI44: =F$42 * AI$43 -> 1.689243629 | AJ44: =F$42 * AJ$43 -> 1.689243629 | AK44: =F$42 * AK$43 -> 1.689243629 | AL44: =F$42 * AL$43 -> 1.723028501 | AM44: =F$42 * AM$43 -> 1.723028501 | AN44: =F$42 * AN$43 -> 1.723028501 | AO44: =F$42 * AO$43 -> 1.723028501 | AP44: =F$42 * AP$43 -> 1.757489072 | AQ44: =F$42 * AQ$43 -> 1.757489072 | AR44: =F$42 * AR$43 -> 1.757489072 | AS44: =F$42 * AS$43 -> 1.757489072 | AT44: =F$42 * AT$43 -> 1.792638853 | AU44: =F$42 * AU$43 -> 1.792638853 | AV44: =F$42 * AV$43 -> 1.792638853 | AW44: =F$42 * AW$43 -> 1.792638853 | AX44: =F$42 * AX$43 -> 1.82849163 | AY44: =F$42 * AY$43 -> 1.82849163 | AZ44: =F$42 * AZ$43 -> 1.82849163 | BA44: =F$42 * BA$43 -> 1.82849163 | BB44: =F$42 * BB$43 -> 1.865061463 | BC44: =F$42 * BC$43 -> 1.865061463 | BD44: =F$42 * BD$43 -> 1.865061463 | BE44: =F$42 * BE$43 -> 1.865061463 | BF44: =F$42 * BF$43 -> 1.902362692 | BG44: =F$42 * BG$43 -> 1.902362692 | BH44: =F$42 * BH$43 -> 1.902362692 | BI44: =F$42 * BI$43 -> 1.902362692 | BJ44: =F$42 * BJ$43 -> 1.940409946 | BK44: =F$42 * BK$43 -> 1.940409946 | BL44: =F$42 * BL$43 -> 1.940409946 | BM44: =F$42 * BM$43 -> 1.940409946 | BN44: =F$42 * BN$43 -> 1.979218145 | BO44: =F$42 * BO$43 -> 1.979218145 | BP44: =F$42 * BP$43 -> 1.979218145 | BQ44: =F$42 * BQ$43 -> 1.979218145 | BR44: =F$42 * BR$43 -> 2.018802507 | BS44: =F$42 * BS$43 -> 2.018802507 | BT44: =F$42 * BT$43 -> 2.018802507 | BU44: =F$42 * BU$43 -> 2.018802507 | BV44: =F$42 * BV$43 -> 2.059178558 | BW44: =F$42 * BW$43 -> 2.059178558 | BX44: =F$42 * BX$43 -> 2.059178558 | BY44: =F$42 * BY$43 -> 2.059178558 | BZ44: =F$42 * BZ$43 -> 2.100362129 | CA44: =F$42 * CA$43 -> 2.100362129 | CB44: =F$42 * CB$43 -> 2.100362129 | CC44: =F$42 * CC$43 -> 2.100362129 | CD44: =F$42 * CD$43 -> 2.142369371 | CE44: =F$42 * CE$43 -> 2.142369371 | CF44: =F$42 * CF$43 -> 2.142369371 | CG44: =F$42 * CG$43 -> 2.142369371 | CH44: =F$42 * CH$43 -> 2.185216759 | CI44: =F$42 * CI$43 -> 2.185216759 | CJ44: =F$42 * CJ$43 -> 2.185216759 | CK44: =F$42 * CK$43 -> 2.185216759 | CL44: =F$42 * CL$43 -> 2.228921094 | CM44: =F$42 * CM$43 -> 2.228921094 | CN44: =F$42 * CN$43 -> 2.228921094 | CO44: =F$42 * CO$43 -> 2.228921094 | CP44: =F$42 * CP$43 -> 2.273499516 | CQ44: =F$42 * CQ$43 -> 2.273499516 | CR44: =F$42 * CR$43 -> 2.273499516 | CS44: =F$42 * CS$43 -> 2.273499516 | CT44: =F$42 * CT$43 -> 2.318969506 | CU44: =F$42 * CU$43 -> 2.318969506 | CV44: =F$42 * CV$43 -> 2.318969506 | CW44: =F$42 * CW$43 -> 2.318969506 | CX44: =F$42 * CX$43 -> 2.365348896 | CY44: =F$42 * CY$43 -> 2.365348896 | CZ44: =F$42 * CZ$43 -> 2.365348896 | DA44: =F$42 * DA$43 -> 2.365348896 | DB44: =F$42 * DB$43 -> 2.412655874 | DC44: =F$42 * DC$43 -> 2.412655874 | DD44: =F$42 * DD$43 -> 2.412655874 | DE44: =F$42 * DE$43 -> 2.412655874 | DF44: =F$42 * DF$43 -> 2.460908992 | DG44: =F$42 * DG$43 -> 2.460908992 | DH44: =F$42 * DH$43 -> 2.460908992 | DI44: =F$42 * DI$43 -> 2.460908992 | DJ44: =F$42 * DJ$43 -> 2.510127172 | DK44: =F$42 * DK$43 -> 2.510127172 | DL44: =F$42 * DL$43 -> 2.510127172 | DM44: =F$42 * DM$43 -> 2.510127172 | DN44: =F$42 * DN$43 -> 2.560329715 | DO44: =F$42 * DO$43 -> 2.560329715 | DP44: =F$42 * DP$43 -> 2.560329715 | DQ44: =F$42 * DQ$43 -> 2.560329715 | DR44: =F$42 * DR$43 -> 2.611536309 | DS44: =F$42 * DS$43 -> 2.611536309 | DT44: =F$42 * DT$43 -> 2.611536309 | DU44: =F$42 * DU$43 -> 2.611536309 | DV44: =F$42 * DV$43 -> 2.663767035 | DW44: =F$42 * DW$43 -> 2.663767035 | DX44: =F$42 * DX$43 -> 2.663767035 | DY44: =F$42 * DY$43 -> 2.663767035 | DZ44: =F$42 * DZ$43 -> 2.717042376 | EA44: =F$42 * EA$43 -> 2.717042376 | EB44: =F$42 * EB$43 -> 2.717042376 | EC44: =F$42 * EC$43 -> 2.717042376 | ED44: =F$42 * ED$43 -> 2.771383224 | EE44: =F$42 * EE$43 -> 2.771383224 | EF44: =F$42 * EF$43 -> 2.771383224 | EG44: =F$42 * EG$43 -> 2.771383224 | EH44: =F$42 * EH$43 -> 2.826810888 | EI44: =F$42 * EI$43 -> 2.826810888
E46: =E$26 -> Workers - Subscription | F46: =F$26 -> 246375 | G46: hours p/y
E47: Model Periods per year | F47: 4 | G47: quarters
E48: =C$41 & " parking hours per period" -> Workers - Subscription parking hours per period | F48: =F46 / F47 -> 61593.75 | G48: hours/quarter
E50: =E$48 -> Workers - Subscription parking hours per period | F50: =F$48 -> 61593.75 | G50: =G$48 -> hours/quarter
E51: Units in thousand conversion to Cash Flows | F51: 1000 | G51: units / 000s
E52: =E$44 -> Workers - Subscription Revenue per hour | F52: 0 | G52: kn p/h | H52: 0 | I52: 0 | J52: 1.5 | K52: 1.5 | L52: 1.5 | M52: 1.5 | N52: 1.53 | O52: 1.53 | P52: 1.53 | Q52: 1.53 | R52: 1.5606 | S52: 1.5606 | T52: 1.5606 | U52: 1.5606 | V52: 1.591812 | W52: 1.591812 | X52: 1.591812 | Y52: 1.591812 | Z52: 1.62364824 | AA52: 1.62364824 | AB52: 1.62364824 | AC52: 1.62364824 | AD52: 1.656121205 | AE52: 1.656121205 | AF52: 1.656121205 | AG52: 1.656121205 | AH52: 1.689243629 | AI52: 1.689243629 | AJ52: 1.689243629 | AK52: =AK$44 -> 1.689243629 | AL52: 1.723028501 | AM52: 1.723028501 | AN52: 1.723028501 | AO52: 1.723028501 | AP52: 1.757489072 | AQ52: 1.757489072 | AR52: 1.757489072 | AS52: 1.757489072 | AT52: 1.792638853 | AU52: 1.792638853 | AV52: 1.792638853 | AW52: 1.792638853 | AX52: 1.82849163 | AY52: 1.82849163 | AZ52: 1.82849163 | BA52: 1.82849163 | BB52: 1.865061463 | BC52: 1.865061463 | BD52: 1.865061463 | BE52: 1.865061463 | BF52: 1.902362692 | BG52: 1.902362692 | BH52: 1.902362692 | BI52: 1.902362692 | BJ52: 1.940409946 | BK52: 1.940409946 | BL52: 1.940409946 | BM52: 1.940409946 | BN52: 1.979218145 | BO52: 1.979218145 | BP52: 1.979218145 | BQ52: =BQ$44 -> 1.979218145 | BR52: 2.018802507 | BS52: 2.018802507 | BT52: 2.018802507 | BU52: 2.018802507 | BV52: 2.059178558 | BW52: 2.059178558 | BX52: 2.059178558 | BY52: 2.059178558 | BZ52: 2.100362129 | CA52: 2.100362129 | CB52: 2.100362129 | CC52: 2.100362129 | CD52: 2.142369371 | CE52: 2.142369371 | CF52: 2.142369371 | CG52: 2.142369371 | CH52: 2.185216759 | CI52: 2.185216759 | CJ52: 2.185216759 | CK52: 2.185216759 | CL52: 2.228921094 | CM52: 2.228921094 | CN52: 2.228921094 | CO52: 2.228921094 | CP52: 2.273499516 | CQ52: 2.273499516 | CR52: 2.273499516 | CS52: 2.273499516 | CT52: 2.318969506 | CU52: 2.318969506 | CV52: 2.318969506 | CW52: =CW$44 -> 2.318969506 | CX52: 2.365348896 | CY52: 2.365348896 | CZ52: 2.365348896 | DA52: 2.365348896 | DB52: 2.412655874 | DC52: 2.412655874 | DD52: 2.412655874 | DE52: 2.412655874 | DF52: 2.460908992 | DG52: 2.460908992 | DH52: 2.460908992 | DI52: 2.460908992 | DJ52: 2.510127172 | DK52: 2.510127172 | DL52: 2.510127172 | DM52: 2.510127172 | DN52: 2.560329715 | DO52: 2.560329715 | DP52: 2.560329715 | DQ52: 2.560329715 | DR52: 2.611536309 | DS52: 2.611536309 | DT52: 2.611536309 | DU52: 2.611536309 | DV52: 2.663767035 | DW52: 2.663767035 | DX52: 2.663767035 | DY52: 2.663767035 | DZ52: 2.717042376 | EA52: 2.717042376 | EB52: 2.717042376 | EC52: =EC$44 -> 2.717042376 | ED52: 2.771383224 | EE52: 2.771383224 | EF52: 2.771383224 | EG52: 2.771383224 | EH52: 2.826810888 | EI52: 2.826810888
E53: Contractual Operation period fraction | G53: partial factor | H53: 120 | J53: 0 | K53: 0 | L53: 0 | M53: 0 | N53: 0 | O53: 0 | P53: 0 | Q53: 0 | R53: 0 | S53: 0.3296703297 | T53: 1 | U53: 1 | V53: 1 | W53: 1 | X53: 1 | Y53: 1 | Z53: 1 | AA53: 1 | AB53: 1 | AC53: 1 | AD53: 1 | AE53: 1 | AF53: 1 | AG53: 1 | AH53: 1 | AI53: 1 | AJ53: 1 | AK53: 1 | AL53: 1 | AM53: 1 | AN53: 1 | AO53: 1 | AP53: 1 | AQ53: 1 | AR53: 1 | AS53: 1 | AT53: 1 | AU53: 1 | AV53: 1 | AW53: 1 | AX53: 1 | AY53: 1 | AZ53: 1 | BA53: 1 | BB53: 1 | BC53: 1 | BD53: 1 | BE53: 1 | BF53: 1 | BG53: 1 | BH53: 1 | BI53: 1 | BJ53: 1 | BK53: 1 | BL53: 1 | BM53: 1 | BN53: 1 | BO53: 1 | BP53: 1 | BQ53: 1 | BR53: 1 | BS53: 1 | BT53: 1 | BU53: 1 | BV53: 1 | BW53: 1 | BX53: 1 | BY53: 1 | BZ53: 1 | CA53: 1 | CB53: 1 | CC53: 1 | CD53: 1 | CE53: 1 | CF53: 1 | CG53: 1 | CH53: 1 | CI53: 1 | CJ53: 1 | CK53: 1 | CL53: 1 | CM53: 1 | CN53: 1 | CO53: 1 | CP53: 1 | CQ53: 1 | CR53: 1 | CS53: 1 | CT53: 1 | CU53: 1 | CV53: 1 | CW53: 1 | CX53: 1 | CY53: 1 | CZ53: 1 | DA53: 1 | DB53: 1 | DC53: 1 | DD53: 1 | DE53: 1 | DF53: 1 | DG53: 1 | DH53: 1 | DI53: 1 | DJ53: 1 | DK53: 1 | DL53: 1 | DM53: 1 | DN53: 1 | DO53: 1 | DP53: 1 | DQ53: 1 | DR53: 1 | DS53: 1 | DT53: 1 | DU53: 1 | DV53: 1 | DW53: 1 | DX53: 1 | DY53: 1 | DZ53: 1 | EA53: 1 | EB53: 1 | EC53: 1 | ED53: 1 | EE53: 1 | EF53: 1 | EG53: 1 | EH53: 1 | EI53: 0.6703296703
E54: =E$9 -> Parking garage ramp up and realisation | F54: 0 | G54: % | H54: 0 | I54: 0 | J54: 0 | K54: 0 | L54: 0 | M54: 0 | N54: 0 | O54: 0 | P54: 0 | Q54: 0 | R54: 0 | S54: 0.55 | T54: 0.55 | U54: 0.55 | V54: 0.85 | W54: 0.85 | X54: 0.85 | Y54: 0.85 | Z54: 0.85 | AA54: 0.85 | AB54: 0.85 | AC54: 0.85 | AD54: 0.85 | AE54: 0.85 | AF54: 0.85 | AG54: 0.85 | AH54: 1 | AI54: 1 | AJ54: 1 | AK54: =AK$9 -> 1 | AL54: 1 | AM54: 1 | AN54: 1 | AO54: 1 | AP54: 1 | AQ54: 1 | AR54: 1 | AS54: 1 | AT54: 1 | AU54: 1 | AV54: 1 | AW54: 1 | AX54: 1 | AY54: 1 | AZ54: 1 | BA54: 1 | BB54: 1 | BC54: 1 | BD54: 1 | BE54: 1 | BF54: 1.1 | BG54: 1.1 | BH54: 1.1 | BI54: 1.1 | BJ54: 1.1 | BK54: 1.1 | BL54: 1.1 | BM54: 1.1 | BN54: 1.1 | BO54: 1.1 | BP54: 1.1 | BQ54: =BQ$9 -> 1.1 | BR54: 1.1 | BS54: 1.1 | BT54: 1.1 | BU54: 1.1 | BV54: 1.1 | BW54: 1.1 | BX54: 1.1 | BY54: 1.1 | BZ54: 1.2 | CA54: 1.2 | CB54: 1.2 | CC54: 1.2 | CD54: 1.2 | CE54: 1.2 | CF54: 1.2 | CG54: 1.2 | CH54: 1.2 | CI54: 1.2 | CJ54: 1.2 | CK54: 1.2 | CL54: 1.2 | CM54: 1.2 | CN54: 1.2 | CO54: 1.2 | CP54: 1.2 | CQ54: 1.2 | CR54: 1.2 | CS54: 1.2 | CT54: 1.3 | CU54: 1.3 | CV54: 1.3 | CW54: =CW$9 -> 1.3 | CX54: 1.3 | CY54: 1.3 | CZ54: 1.3 | DA54: 1.3 | DB54: 1.3 | DC54: 1.3 | DD54: 1.3 | DE54: 1.3 | DF54: 1.3 | DG54: 1.3 | DH54: 1.3 | DI54: 1.3 | DJ54: 1.3 | DK54: 1.3 | DL54: 1.3 | DM54: 1.3 | DN54: 1.3 | DO54: 1.3 | DP54: 1.3 | DQ54: 1.3 | DR54: 1.3 | DS54: 1.3 | DT54: 1.3 | DU54: 1.3 | DV54: 1.3 | DW54: 1.3 | DX54: 1.3 | DY54: 1.3 | DZ54: 1.3 | EA54: 1.3 | EB54: 1.3 | EC54: =EC$9 -> 1.3 | ED54: 1.3 | EE54: 1.3 | EF54: 1.3 | EG54: 1.3 | EH54: 1.3 | EI54: 1.3
E55: =C$41 & " Total Revenue" -> Workers - Subscription Total Revenue | G55: =SMU -> '000 HRK | H55: =SUM(J$55:EI$55) -> 18194.14328 | J55: =J52 * $F50 * J53 * J54 / $F51 -> 0 | K55: 0 | L55: 0 | M55: 0 | N55: 0 | O55: 0 | P55: 0 | Q55: 0 | R55: 0 | S55: 17.428933 | T55: 52.86776344 | U55: 52.86776344 | V55: 83.33881982 | W55: 83.33881982 | X55: 83.33881982 | Y55: 83.33881982 | Z55: 85.00559622 | AA55: 85.00559622 | AB55: 85.00559622 | AC55: 85.00559622 | AD55: 86.70570814 | AE55: 86.70570814 | AF55: 86.70570814 | AG55: 86.70570814 | AH55: 104.0468498 | AI55: 104.0468498 | AJ55: 104.0468498 | AK55: 104.0468498 | AL55: 106.1277868 | AM55: 106.1277868 | AN55: 106.1277868 | AO55: 106.1277868 | AP55: =AP52 * $F50 * AP53 * AP54 / $F51 -> 108.2503425 | AQ55: 108.2503425 | AR55: 108.2503425 | AS55: 108.2503425 | AT55: 110.4153493 | AU55: 110.4153493 | AV55: 110.4153493 | AW55: 110.4153493 | AX55: 112.6236563 | AY55: 112.6236563 | AZ55: 112.6236563 | BA55: 112.6236563 | BB55: 114.8761295 | BC55: 114.8761295 | BD55: 114.8761295 | BE55: 114.8761295 | BF55: 128.8910173 | BG55: 128.8910173 | BH55: 128.8910173 | BI55: 128.8910173 | BJ55: 131.4688376 | BK55: 131.4688376 | BL55: 131.4688376 | BM55: 131.4688376 | BN55: 134.0982144 | BO55: 134.0982144 | BP55: 134.0982144 | BQ55: 134.0982144 | BR55: 136.7801786 | BS55: 136.7801786 | BT55: 136.7801786 | BU55: 136.7801786 | BV55: =BV52 * $F50 * BV53 * BV54 / $F51 -> 139.5157822 | BW55: 139.5157822 | BX55: 139.5157822 | BY55: 139.5157822 | BZ55: 155.2430158 | CA55: 155.2430158 | CB55: 155.2430158 | CC55: 155.2430158 | CD55: 158.3478762 | CE55: 158.3478762 | CF55: 158.3478762 | CG55: 158.3478762 | CH55: 161.5148337 | CI55: 161.5148337 | CJ55: 161.5148337 | CK55: 161.5148337 | CL55: 164.7451304 | CM55: 164.7451304 | CN55: 164.7451304 | CO55: 164.7451304 | CP55: 168.040033 | CQ55: 168.040033 | CR55: 168.040033 | CS55: 168.040033 | CT55: 185.6842364 | CU55: 185.6842364 | CV55: 185.6842364 | CW55: 185.6842364 | CX55: 189.3979212 | CY55: 189.3979212 | CZ55: 189.3979212 | DA55: 189.3979212 | DB55: =DB52 * $F50 * DB53 * DB54 / $F51 -> 193.1858796 | DC55: 193.1858796 | DD55: 193.1858796 | DE55: 193.1858796 | DF55: 197.0495972 | DG55: 197.0495972 | DH55: 197.0495972 | DI55: 197.0495972 | DJ55: 200.9905891 | DK55: 200.9905891 | DL55: 200.9905891 | DM55: 200.9905891 | DN55: 205.0104009 | DO55: 205.0104009 | DP55: 205.0104009 | DQ55: 205.0104009 | DR55: 209.1106089 | DS55: 209.1106089 | DT55: 209.1106089 | DU55: 209.1106089 | DV55: 213.2928211 | DW55: 213.2928211 | DX55: 213.2928211 | DY55: 213.2928211 | DZ55: 217.5586775 | EA55: 217.5586775 | EB55: 217.5586775 | EC55: 217.5586775 | ED55: 221.9098511 | EE55: 221.9098511 | EF55: 221.9098511 | EG55: 221.9098511 | EH55: =EH52 * $F50 * EH53 * EH54 / $F51 -> 226.3480481 | EI55: 151.7278125
C58: Dwellers - Subscription
E59: =E$14 -> Dwellers - Subscription average rate p/h | F59: =F$14 -> 0.9 | G59: kn p/h
E60: =E$43 -> CPI Indexation | F60: =F$43 -> 0 | G60: index | H60: 0 | I60: 0 | J60: 1 | K60: 1 | L60: 1 | M60: 1 | N60: 1.02 | O60: 1.02 | P60: 1.02 | Q60: 1.02 | R60: 1.0404 | S60: 1.0404 | T60: 1.0404 | U60: 1.0404 | V60: 1.061208 | W60: 1.061208 | X60: 1.061208 | Y60: 1.061208 | Z60: 1.08243216 | AA60: 1.08243216 | AB60: 1.08243216 | AC60: 1.08243216 | AD60: 1.104080803 | AE60: 1.104080803 | AF60: 1.104080803 | AG60: 1.104080803 | AH60: 1.126162419 | AI60: 1.126162419 | AJ60: 1.126162419 | AK60: 1.126162419 | AL60: 1.148685668 | AM60: 1.148685668 | AN60: 1.148685668 | AO60: 1.148685668 | AP60: 1.171659381 | AQ60: 1.171659381 | AR60: 1.171659381 | AS60: 1.171659381 | AT60: 1.195092569 | AU60: 1.195092569 | AV60: 1.195092569 | AW60: 1.195092569 | AX60: 1.21899442 | AY60: 1.21899442 | AZ60: 1.21899442 | BA60: 1.21899442 | BB60: 1.243374308 | BC60: 1.243374308 | BD60: 1.243374308 | BE60: 1.243374308 | BF60: 1.268241795 | BG60: 1.268241795 | BH60: 1.268241795 | BI60: 1.268241795 | BJ60: 1.29360663 | BK60: 1.29360663 | BL60: 1.29360663 | BM60: 1.29360663 | BN60: 1.319478763 | BO60: 1.319478763 | BP60: 1.319478763 | BQ60: 1.319478763 | BR60: =BR$43 -> 1.345868338 | BS60: 1.345868338 | BT60: 1.345868338 | BU60: 1.345868338 | BV60: 1.372785705 | BW60: 1.372785705 | BX60: 1.372785705 | BY60: 1.372785705 | BZ60: 1.400241419 | CA60: 1.400241419 | CB60: 1.400241419 | CC60: 1.400241419 | CD60: 1.428246248 | CE60: 1.428246248 | CF60: 1.428246248 | CG60: 1.428246248 | CH60: 1.456811173 | CI60: 1.456811173 | CJ60: 1.456811173 | CK60: 1.456811173 | CL60: 1.485947396 | CM60: 1.485947396 | CN60: 1.485947396 | CO60: 1.485947396 | CP60: 1.515666344 | CQ60: 1.515666344 | CR60: 1.515666344 | CS60: 1.515666344 | CT60: 1.545979671 | CU60: 1.545979671 | CV60: 1.545979671 | CW60: 1.545979671 | CX60: 1.576899264 | CY60: 1.576899264 | CZ60: 1.576899264 | DA60: 1.576899264 | DB60: 1.608437249 | DC60: 1.608437249 | DD60: 1.608437249 | DE60: 1.608437249 | DF60: 1.640605994 | DG60: 1.640605994 | DH60: 1.640605994 | DI60: 1.640605994 | DJ60: 1.673418114 | DK60: 1.673418114 | DL60: 1.673418114 | DM60: 1.673418114 | DN60: 1.706886477 | DO60: 1.706886477 | DP60: 1.706886477 | DQ60: 1.706886477 | DR60: 1.741024206 | DS60: 1.741024206 | DT60: 1.741024206 | DU60: 1.741024206 | DV60: 1.77584469 | DW60: 1.77584469 | DX60: 1.77584469 | DY60: 1.77584469 | DZ60: 1.811361584 | EA60: 1.811361584 | EB60: 1.811361584 | EC60: 1.811361584 | ED60: =ED$43 -> 1.847588816 | EE60: 1.847588816 | EF60: 1.847588816 | EG60: 1.847588816 | EH60: 1.884540592 | EI60: 1.884540592
E61: =C$58 & " Revenue per hour" -> Dwellers - Subscription Revenue per hour | G61: kn p/h | J61: =$F59 * J60 -> 0.9 | K61: 0.9 | L61: 0.9 | M61: 0.9 | N61: 0.918 | O61: 0.918 | P61: 0.918 | Q61: 0.918 | R61: 0.93636 | S61: 0.93636 | T61: 0.93636 | U61: 0.93636 | V61: 0.9550872 | W61: 0.9550872 | X61: 0.9550872 | Y61: 0.9550872 | Z61: 0.974188944 | AA61: 0.974188944 | AB61: 0.974188944 | AC61: 0.974188944 | AD61: 0.9936727229 | AE61: 0.9936727229 | AF61: 0.9936727229 | AG61: 0.9936727229 | AH61: 1.013546177 | AI61: 1.013546177 | AJ61: 1.013546177 | AK61: 1.013546177 | AL61: 1.033817101 | AM61: 1.033817101 | AN61: 1.033817101 | AO61: 1.033817101 | AP61: =$F59 * AP60 -> 1.054493443 | AQ61: 1.054493443 | AR61: 1.054493443 | AS61: 1.054493443 | AT61: 1.075583312 | AU61: 1.075583312 | AV61: 1.075583312 | AW61: 1.075583312 | AX61: 1.097094978 | AY61: 1.097094978 | AZ61: 1.097094978 | BA61: 1.097094978 | BB61: 1.119036878 | BC61: 1.119036878 | BD61: 1.119036878 | BE61: 1.119036878 | BF61: 1.141417615 | BG61: 1.141417615 | BH61: 1.141417615 | BI61: 1.141417615 | BJ61: 1.164245967 | BK61: 1.164245967 | BL61: 1.164245967 | BM61: 1.164245967 | BN61: 1.187530887 | BO61: 1.187530887 | BP61: 1.187530887 | BQ61: 1.187530887 | BR61: 1.211281504 | BS61: 1.211281504 | BT61: 1.211281504 | BU61: 1.211281504 | BV61: =$F59 * BV60 -> 1.235507135 | BW61: 1.235507135 | BX61: 1.235507135 | BY61: 1.235507135 | BZ61: 1.260217277 | CA61: 1.260217277 | CB61: 1.260217277 | CC61: 1.260217277 | CD61: 1.285421623 | CE61: 1.285421623 | CF61: 1.285421623 | CG61: 1.285421623 | CH61: 1.311130055 | CI61: 1.311130055 | CJ61: 1.311130055 | CK61: 1.311130055 | CL61: 1.337352656 | CM61: 1.337352656 | CN61: 1.337352656 | CO61: 1.337352656 | CP61: 1.36409971 | CQ61: 1.36409971 | CR61: 1.36409971 | CS61: 1.36409971 | CT61: 1.391381704 | CU61: 1.391381704 | CV61: 1.391381704 | CW61: 1.391381704 | CX61: 1.419209338 | CY61: 1.419209338 | CZ61: 1.419209338 | DA61: 1.419209338 | DB61: =$F59 * DB60 -> 1.447593525 | DC61: 1.447593525 | DD61: 1.447593525 | DE61: 1.447593525 | DF61: 1.476545395 | DG61: 1.476545395 | DH61: 1.476545395 | DI61: 1.476545395 | DJ61: 1.506076303 | DK61: 1.506076303 | DL61: 1.506076303 | DM61: 1.506076303 | DN61: 1.536197829 | DO61: 1.536197829 | DP61: 1.536197829 | DQ61: 1.536197829 | DR61: 1.566921786 | DS61: 1.566921786 | DT61: 1.566921786 | DU61: 1.566921786 | DV61: 1.598260221 | DW61: 1.598260221 | DX61: 1.598260221 | DY61: 1.598260221 | DZ61: 1.630225426 | EA61: 1.630225426 | EB61: 1.630225426 | EC61: 1.630225426 | ED61: 1.662829934 | EE61: 1.662829934 | EF61: 1.662829934 | EG61: 1.662829934 | EH61: =$F59 * EH60 -> 1.696086533 | EI61: 1.696086533
E63: =E$27 -> Dwellers - Subscription | F63: =F$27 -> 273750 | G63: hours p/y
E64: =E$47 -> Model Periods per year | F64: =F$47 -> 4 | G64: quarters
E65: =C$58 & " parking hours per period" -> Dwellers - Subscription parking hours per period | F65: =F63 / F64 -> 68437.5 | G65: hours/quarter
E67: =E$65 -> Dwellers - Subscription parking hours per period | F67: =F$65 -> 68437.5 | G67: =G$65 -> hours/quarter
E68: =E$51 -> Units in thousand conversion to Cash Flows | F68: =F$51 -> 1000 | G68: units / 000s
E69: =E$61 -> Dwellers - Subscription Revenue per hour | F69: 0 | G69: kn p/h | H69: 0 | I69: 0 | J69: 0.9 | K69: 0.9 | L69: 0.9 | M69: 0.9 | N69: 0.918 | O69: 0.918 | P69: 0.918 | Q69: 0.918 | R69: 0.93636 | S69: 0.93636 | T69: 0.93636 | U69: 0.93636 | V69: 0.9550872 | W69: 0.9550872 | X69: 0.9550872 | Y69: 0.9550872 | Z69: 0.974188944 | AA69: 0.974188944 | AB69: 0.974188944 | AC69: 0.974188944 | AD69: 0.9936727229 | AE69: 0.9936727229 | AF69: 0.9936727229 | AG69: 0.9936727229 | AH69: 1.013546177 | AI69: 1.013546177 | AJ69: 1.013546177 | AK69: =AK$61 -> 1.013546177 | AL69: 1.033817101 | AM69: 1.033817101 | AN69: 1.033817101 | AO69: 1.033817101 | AP69: 1.054493443 | AQ69: 1.054493443 | AR69: 1.054493443 | AS69: 1.054493443 | AT69: 1.075583312 | AU69: 1.075583312 | AV69: 1.075583312 | AW69: 1.075583312 | AX69: 1.097094978 | AY69: 1.097094978 | AZ69: 1.097094978 | BA69: 1.097094978 | BB69: 1.119036878 | BC69: 1.119036878 | BD69: 1.119036878 | BE69: 1.119036878 | BF69: 1.141417615 | BG69: 1.141417615 | BH69: 1.141417615 | BI69: 1.141417615 | BJ69: 1.164245967 | BK69: 1.164245967 | BL69: 1.164245967 | BM69: 1.164245967 | BN69: 1.187530887 | BO69: 1.187530887 | BP69: 1.187530887 | BQ69: =BQ$61 -> 1.187530887 | BR69: 1.211281504 | BS69: 1.211281504 | BT69: 1.211281504 | BU69: 1.211281504 | BV69: 1.235507135 | BW69: 1.235507135 | BX69: 1.235507135 | BY69: 1.235507135 | BZ69: 1.260217277 | CA69: 1.260217277 | CB69: 1.260217277 | CC69: 1.260217277 | CD69: 1.285421623 | CE69: 1.285421623 | CF69: 1.285421623 | CG69: 1.285421623 | CH69: 1.311130055 | CI69: 1.311130055 | CJ69: 1.311130055 | CK69: 1.311130055 | CL69: 1.337352656 | CM69: 1.337352656 | CN69: 1.337352656 | CO69: 1.337352656 | CP69: 1.36409971 | CQ69: 1.36409971 | CR69: 1.36409971 | CS69: 1.36409971 | CT69: 1.391381704 | CU69: 1.391381704 | CV69: 1.391381704 | CW69: =CW$61 -> 1.391381704 | CX69: 1.419209338 | CY69: 1.419209338 | CZ69: 1.419209338 | DA69: 1.419209338 | DB69: 1.447593525 | DC69: 1.447593525 | DD69: 1.447593525 | DE69: 1.447593525 | DF69: 1.476545395 | DG69: 1.476545395 | DH69: 1.476545395 | DI69: 1.476545395 | DJ69: 1.506076303 | DK69: 1.506076303 | DL69: 1.506076303 | DM69: 1.506076303 | DN69: 1.536197829 | DO69: 1.536197829 | DP69: 1.536197829 | DQ69: 1.536197829 | DR69: 1.566921786 | DS69: 1.566921786 | DT69: 1.566921786 | DU69: 1.566921786 | DV69: 1.598260221 | DW69: 1.598260221 | DX69: 1.598260221 | DY69: 1.598260221 | DZ69: 1.630225426 | EA69: 1.630225426 | EB69: 1.630225426 | EC69: =EC$61 -> 1.630225426 | ED69: 1.662829934 | EE69: 1.662829934 | EF69: 1.662829934 | EG69: 1.662829934 | EH69: 1.696086533 | EI69: 1.696086533
E70: =E$53 -> Contractual Operation period fraction | F70: =F$53 -> 0 | G70: partial factor | H70: 120 | I70: 0 | J70: 0 | K70: 0 | L70: 0 | M70: 0 | N70: 0 | O70: 0 | P70: 0 | Q70: 0 | R70: 0 | S70: 0.3296703297 | T70: 1 | U70: 1 | V70: 1 | W70: 1 | X70: 1 | Y70: 1 | Z70: 1 | AA70: 1 | AB70: 1 | AC70: 1 | AD70: 1 | AE70: 1 | AF70: 1 | AG70: 1 | AH70: 1 | AI70: 1 | AJ70: 1 | AK70: 1 | AL70: 1 | AM70: 1 | AN70: 1 | AO70: 1 | AP70: 1 | AQ70: 1 | AR70: 1 | AS70: 1 | AT70: 1 | AU70: 1 | AV70: 1 | AW70: 1 | AX70: 1 | AY70: 1 | AZ70: 1 | BA70: 1 | BB70: 1 | BC70: 1 | BD70: 1 | BE70: 1 | BF70: 1 | BG70: 1 | BH70: 1 | BI70: 1 | BJ70: 1 | BK70: 1 | BL70: 1 | BM70: 1 | BN70: 1 | BO70: 1 | BP70: 1 | BQ70: 1 | BR70: =BR$53 -> 1 | BS70: 1 | BT70: 1 | BU70: 1 | BV70: 1 | BW70: 1 | BX70: 1 | BY70: 1 | BZ70: 1 | CA70: 1 | CB70: 1 | CC70: 1 | CD70: 1 | CE70: 1 | CF70: 1 | CG70: 1 | CH70: 1 | CI70: 1 | CJ70: 1 | CK70: 1 | CL70: 1 | CM70: 1 | CN70: 1 | CO70: 1 | CP70: 1 | CQ70: 1 | CR70: 1 | CS70: 1 | CT70: 1 | CU70: 1 | CV70: 1 | CW70: 1 | CX70: 1 | CY70: 1 | CZ70: 1 | DA70: 1 | DB70: 1 | DC70: 1 | DD70: 1 | DE70: 1 | DF70: 1 | DG70: 1 | DH70: 1 | DI70: 1 | DJ70: 1 | DK70: 1 | DL70: 1 | DM70: 1 | DN70: 1 | DO70: 1 | DP70: 1 | DQ70: 1 | DR70: 1 | DS70: 1 | DT70: 1 | DU70: 1 | DV70: 1 | DW70: 1 | DX70: 1 | DY70: 1 | DZ70: 1 | EA70: 1 | EB70: 1 | EC70: 1 | ED70: =ED$53 -> 1 | EE70: 1 | EF70: 1 | EG70: 1 | EH70: 1 | EI70: 0.6703296703
E71: =E$9 -> Parking garage ramp up and realisation | F71: 0 | G71: % | H71: 0 | I71: 0 | J71: 0 | K71: 0 | L71: 0 | M71: 0 | N71: 0 | O71: 0 | P71: 0 | Q71: 0 | R71: 0 | S71: 0.55 | T71: 0.55 | U71: 0.55 | V71: 0.85 | W71: 0.85 | X71: 0.85 | Y71: 0.85 | Z71: 0.85 | AA71: 0.85 | AB71: 0.85 | AC71: 0.85 | AD71: 0.85 | AE71: 0.85 | AF71: 0.85 | AG71: 0.85 | AH71: 1 | AI71: 1 | AJ71: 1 | AK71: =AK$9 -> 1 | AL71: 1 | AM71: 1 | AN71: 1 | AO71: 1 | AP71: 1 | AQ71: 1 | AR71: 1 | AS71: 1 | AT71: 1 | AU71: 1 | AV71: 1 | AW71: 1 | AX71: 1 | AY71: 1 | AZ71: 1 | BA71: 1 | BB71: 1 | BC71: 1 | BD71: 1 | BE71: 1 | BF71: 1.1 | BG71: 1.1 | BH71: 1.1 | BI71: 1.1 | BJ71: 1.1 | BK71: 1.1 | BL71: 1.1 | BM71: 1.1 | BN71: 1.1 | BO71: 1.1 | BP71: 1.1 | BQ71: =BQ$9 -> 1.1 | BR71: 1.1 | BS71: 1.1 | BT71: 1.1 | BU71: 1.1 | BV71: 1.1 | BW71: 1.1 | BX71: 1.1 | BY71: 1.1 | BZ71: 1.2 | CA71: 1.2 | CB71: 1.2 | CC71: 1.2 | CD71: 1.2 | CE71: 1.2 | CF71: 1.2 | CG71: 1.2 | CH71: 1.2 | CI71: 1.2 | CJ71: 1.2 | CK71: 1.2 | CL71: 1.2 | CM71: 1.2 | CN71: 1.2 | CO71: 1.2 | CP71: 1.2 | CQ71: 1.2 | CR71: 1.2 | CS71: 1.2 | CT71: 1.3 | CU71: 1.3 | CV71: 1.3 | CW71: =CW$9 -> 1.3 | CX71: 1.3 | CY71: 1.3 | CZ71: 1.3 | DA71: 1.3 | DB71: 1.3 | DC71: 1.3 | DD71: 1.3 | DE71: 1.3 | DF71: 1.3 | DG71: 1.3 | DH71: 1.3 | DI71: 1.3 | DJ71: 1.3 | DK71: 1.3 | DL71: 1.3 | DM71: 1.3 | DN71: 1.3 | DO71: 1.3 | DP71: 1.3 | DQ71: 1.3 | DR71: 1.3 | DS71: 1.3 | DT71: 1.3 | DU71: 1.3 | DV71: 1.3 | DW71: 1.3 | DX71: 1.3 | DY71: 1.3 | DZ71: 1.3 | EA71: 1.3 | EB71: 1.3 | EC71: =EC$9 -> 1.3 | ED71: 1.3 | EE71: 1.3 | EF71: 1.3 | EG71: 1.3 | EH71: 1.3 | EI71: 1.3
E72: =C$58 & " Total Revenue" -> Dwellers - Subscription Total Revenue | G72: =SMU -> '000 HRK | H72: =SUM(J$72:EI$72) -> 12129.42885 | J72: =J69 * $F67 * J70 * J71 / $F68 -> 0 | K72: 0 | L72: 0 | M72: 0 | N72: 0 | O72: 0 | P72: 0 | Q72: 0 | R72: 0 | S72: 11.61928867 | T72: 35.24517563 | U72: 35.24517563 | V72: 55.55921321 | W72: 55.55921321 | X72: 55.55921321 | Y72: 55.55921321 | Z72: 56.67039748 | AA72: 56.67039748 | AB72: 56.67039748 | AC72: 56.67039748 | AD72: 57.80380543 | AE72: 57.80380543 | AF72: 57.80380543 | AG72: 57.80380543 | AH72: 69.36456651 | AI72: 69.36456651 | AJ72: 69.36456651 | AK72: 69.36456651 | AL72: 70.75185784 | AM72: 70.75185784 | AN72: 70.75185784 | AO72: 70.75185784 | AP72: =AP69 * $F67 * AP70 * AP71 / $F68 -> 72.166895 | AQ72: 72.166895 | AR72: 72.166895 | AS72: 72.166895 | AT72: 73.6102329 | AU72: 73.6102329 | AV72: 73.6102329 | AW72: 73.6102329 | AX72: 75.08243756 | AY72: 75.08243756 | AZ72: 75.08243756 | BA72: 75.08243756 | BB72: 76.58408631 | BC72: 76.58408631 | BD72: 76.58408631 | BE72: 76.58408631 | BF72: 85.92734484 | BG72: 85.92734484 | BH72: 85.92734484 | BI72: 85.92734484 | BJ72: 87.64589173 | BK72: 87.64589173 | BL72: 87.64589173 | BM72: 87.64589173 | BN72: 89.39880957 | BO72: 89.39880957 | BP72: 89.39880957 | BQ72: 89.39880957 | BR72: 91.18678576 | BS72: 91.18678576 | BT72: 91.18678576 | BU72: 91.18678576 | BV72: =BV69 * $F67 * BV70 * BV71 / $F68 -> 93.01052148 | BW72: 93.01052148 | BX72: 93.01052148 | BY72: 93.01052148 | BZ72: 103.4953439 | CA72: 103.4953439 | CB72: 103.4953439 | CC72: 103.4953439 | CD72: 105.5652508 | CE72: 105.5652508 | CF72: 105.5652508 | CG72: 105.5652508 | CH72: 107.6765558 | CI72: 107.6765558 | CJ72: 107.6765558 | CK72: 107.6765558 | CL72: 109.8300869 | CM72: 109.8300869 | CN72: 109.8300869 | CO72: 109.8300869 | CP72: 112.0266886 | CQ72: 112.0266886 | CR72: 112.0266886 | CS72: 112.0266886 | CT72: 123.789491 | CU72: 123.789491 | CV72: 123.789491 | CW72: 123.789491 | CX72: 126.2652808 | CY72: 126.2652808 | CZ72: 126.2652808 | DA72: 126.2652808 | DB72: =DB69 * $F67 * DB70 * DB71 / $F68 -> 128.7905864 | DC72: 128.7905864 | DD72: 128.7905864 | DE72: 128.7905864 | DF72: 131.3663981 | DG72: 131.3663981 | DH72: 131.3663981 | DI72: 131.3663981 | DJ72: 133.9937261 | DK72: 133.9937261 | DL72: 133.9937261 | DM72: 133.9937261 | DN72: 136.6736006 | DO72: 136.6736006 | DP72: 136.6736006 | DQ72: 136.6736006 | DR72: 139.4070726 | DS72: 139.4070726 | DT72: 139.4070726 | DU72: 139.4070726 | DV72: 142.1952141 | DW72: 142.1952141 | DX72: 142.1952141 | DY72: 142.1952141 | DZ72: 145.0391183 | EA72: 145.0391183 | EB72: 145.0391183 | EC72: 145.0391183 | ED72: 147.9399007 | EE72: 147.9399007 | EF72: 147.9399007 | EG72: 147.9399007 | EH72: =EH69 * $F67 * EH70 * EH71 / $F68 -> 150.8986987 | EI72: 101.151875
C75: Students - Day Parking
E76: =E$15 -> Students - Day Parking average rate p/h | F76: =F$15 -> 4.8 | G76: kn p/h
E77: =E$43 -> CPI Indexation | F77: =F$43 -> 0 | G77: index | H77: 0 | I77: 0 | J77: 1 | K77: 1 | L77: 1 | M77: 1 | N77: 1.02 | O77: 1.02 | P77: 1.02 | Q77: 1.02 | R77: 1.0404 | S77: 1.0404 | T77: 1.0404 | U77: 1.0404 | V77: 1.061208 | W77: 1.061208 | X77: 1.061208 | Y77: 1.061208 | Z77: 1.08243216 | AA77: 1.08243216 | AB77: 1.08243216 | AC77: 1.08243216 | AD77: 1.104080803 | AE77: 1.104080803 | AF77: 1.104080803 | AG77: 1.104080803 | AH77: 1.126162419 | AI77: 1.126162419 | AJ77: 1.126162419 | AK77: 1.126162419 | AL77: 1.148685668 | AM77: 1.148685668 | AN77: 1.148685668 | AO77: 1.148685668 | AP77: 1.171659381 | AQ77: 1.171659381 | AR77: 1.171659381 | AS77: 1.171659381 | AT77: 1.195092569 | AU77: 1.195092569 | AV77: 1.195092569 | AW77: 1.195092569 | AX77: 1.21899442 | AY77: 1.21899442 | AZ77: 1.21899442 | BA77: 1.21899442 | BB77: 1.243374308 | BC77: 1.243374308 | BD77: 1.243374308 | BE77: 1.243374308 | BF77: 1.268241795 | BG77: 1.268241795 | BH77: 1.268241795 | BI77: 1.268241795 | BJ77: 1.29360663 | BK77: 1.29360663 | BL77: 1.29360663 | BM77: 1.29360663 | BN77: 1.319478763 | BO77: 1.319478763 | BP77: 1.319478763 | BQ77: 1.319478763 | BR77: =BR$43 -> 1.345868338 | BS77: 1.345868338 | BT77: 1.345868338 | BU77: 1.345868338 | BV77: 1.372785705 | BW77: 1.372785705 | BX77: 1.372785705 | BY77: 1.372785705 | BZ77: 1.400241419 | CA77: 1.400241419 | CB77: 1.400241419 | CC77: 1.400241419 | CD77: 1.428246248 | CE77: 1.428246248 | CF77: 1.428246248 | CG77: 1.428246248 | CH77: 1.456811173 | CI77: 1.456811173 | CJ77: 1.456811173 | CK77: 1.456811173 | CL77: 1.485947396 | CM77: 1.485947396 | CN77: 1.485947396 | CO77: 1.485947396 | CP77: 1.515666344 | CQ77: 1.515666344 | CR77: 1.515666344 | CS77: 1.515666344 | CT77: 1.545979671 | CU77: 1.545979671 | CV77: 1.545979671 | CW77: 1.545979671 | CX77: 1.576899264 | CY77: 1.576899264 | CZ77: 1.576899264 | DA77: 1.576899264 | DB77: 1.608437249 | DC77: 1.608437249 | DD77: 1.608437249 | DE77: 1.608437249 | DF77: 1.640605994 | DG77: 1.640605994 | DH77: 1.640605994 | DI77: 1.640605994 | DJ77: 1.673418114 | DK77: 1.673418114 | DL77: 1.673418114 | DM77: 1.673418114 | DN77: 1.706886477 | DO77: 1.706886477 | DP77: 1.706886477 | DQ77: 1.706886477 | DR77: 1.741024206 | DS77: 1.741024206 | DT77: 1.741024206 | DU77: 1.741024206 | DV77: 1.77584469 | DW77: 1.77584469 | DX77: 1.77584469 | DY77: 1.77584469 | DZ77: 1.811361584 | EA77: 1.811361584 | EB77: 1.811361584 | EC77: 1.811361584 | ED77: =ED$43 -> 1.847588816 | EE77: 1.847588816 | EF77: 1.847588816 | EG77: 1.847588816 | EH77: 1.884540592 | EI77: 1.884540592
E78: =C$75 & " Revenue per hour" -> Students - Day Parking Revenue per hour | G78: kn p/h | J78: =$F76 * J77 -> 4.8 | K78: 4.8 | L78: 4.8 | M78: 4.8 | N78: 4.896 | O78: 4.896 | P78: 4.896 | Q78: 4.896 | R78: 4.99392 | S78: 4.99392 | T78: 4.99392 | U78: 4.99392 | V78: 5.0937984 | W78: 5.0937984 | X78: 5.0937984 | Y78: 5.0937984 | Z78: 5.195674368 | AA78: 5.195674368 | AB78: 5.195674368 | AC78: 5.195674368 | AD78: 5.299587855 | AE78: 5.299587855 | AF78: 5.299587855 | AG78: 5.299587855 | AH78: 5.405579612 | AI78: 5.405579612 | AJ78: 5.405579612 | AK78: 5.405579612 | AL78: 5.513691205 | AM78: 5.513691205 | AN78: 5.513691205 | AO78: 5.513691205 | AP78: =$F76 * AP77 -> 5.623965029 | AQ78: 5.623965029 | AR78: 5.623965029 | AS78: 5.623965029 | AT78: 5.736444329 | AU78: 5.736444329 | AV78: 5.736444329 | AW78: 5.736444329 | AX78: 5.851173216 | AY78: 5.851173216 | AZ78: 5.851173216 | BA78: 5.851173216 | BB78: 5.96819668 | BC78: 5.96819668 | BD78: 5.96819668 | BE78: 5.96819668 | BF78: 6.087560614 | BG78: 6.087560614 | BH78: 6.087560614 | BI78: 6.087560614 | BJ78: 6.209311826 | BK78: 6.209311826 | BL78: 6.209311826 | BM78: 6.209311826 | BN78: 6.333498063 | BO78: 6.333498063 | BP78: 6.333498063 | BQ78: 6.333498063 | BR78: 6.460168024 | BS78: 6.460168024 | BT78: 6.460168024 | BU78: 6.460168024 | BV78: =$F76 * BV77 -> 6.589371384 | BW78: 6.589371384 | BX78: 6.589371384 | BY78: 6.589371384 | BZ78: 6.721158812 | CA78: 6.721158812 | CB78: 6.721158812 | CC78: 6.721158812 | CD78: 6.855581988 | CE78: 6.855581988 | CF78: 6.855581988 | CG78: 6.855581988 | CH78: 6.992693628 | CI78: 6.992693628 | CJ78: 6.992693628 | CK78: 6.992693628 | CL78: 7.132547501 | CM78: 7.132547501 | CN78: 7.132547501 | CO78: 7.132547501 | CP78: 7.275198451 | CQ78: 7.275198451 | CR78: 7.275198451 | CS78: 7.275198451 | CT78: 7.42070242 | CU78: 7.42070242 | CV78: 7.42070242 | CW78: 7.42070242 | CX78: 7.569116468 | CY78: 7.569116468 | CZ78: 7.569116468 | DA78: 7.569116468 | DB78: =$F76 * DB77 -> 7.720498797 | DC78: 7.720498797 | DD78: 7.720498797 | DE78: 7.720498797 | DF78: 7.874908773 | DG78: 7.874908773 | DH78: 7.874908773 | DI78: 7.874908773 | DJ78: 8.032406949 | DK78: 8.032406949 | DL78: 8.032406949 | DM78: 8.032406949 | DN78: 8.193055088 | DO78: 8.193055088 | DP78: 8.193055088 | DQ78: 8.193055088 | DR78: 8.35691619 | DS78: 8.35691619 | DT78: 8.35691619 | DU78: 8.35691619 | DV78: 8.524054513 | DW78: 8.524054513 | DX78: 8.524054513 | DY78: 8.524054513 | DZ78: 8.694535604 | EA78: 8.694535604 | EB78: 8.694535604 | EC78: 8.694535604 | ED78: 8.868426316 | EE78: 8.868426316 | EF78: 8.868426316 | EG78: 8.868426316 | EH78: =$F76 * EH77 -> 9.045794842 | EI78: 9.045794842
E80: =E$28 -> Students - Day Parking | F80: =F$28 -> 237615 | G80: hours p/y
E81: =E$47 -> Model Periods per year | F81: =F$47 -> 4 | G81: quarters
E82: =C$75 & " parking hours per period" -> Students - Day Parking parking hours per period | F82: =F80 / F81 -> 59403.75 | G82: hours/quarter
E84: =E$82 -> Students - Day Parking parking hours per period | F84: =F$82 -> 59403.75 | G84: =G$82 -> hours/quarter
E85: =E$51 -> Units in thousand conversion to Cash Flows | F85: =F$51 -> 1000 | G85: units / 000s
E86: =E$78 -> Students - Day Parking Revenue per hour | F86: =F$78 -> 0 | G86: =G$78 -> kn p/h | H86: =H$78 -> 0 | I86: =I$78 -> 0 | J86: =J78 -> 4.8 | K86: 4.8 | L86: 4.8 | M86: 4.8 | N86: 4.896 | O86: 4.896 | P86: 4.896 | Q86: 4.896 | R86: 4.99392 | S86: 4.99392 | T86: 4.99392 | U86: 4.99392 | V86: 5.0937984 | W86: 5.0937984 | X86: 5.0937984 | Y86: 5.0937984 | Z86: 5.195674368 | AA86: 5.195674368 | AB86: 5.195674368 | AC86: 5.195674368 | AD86: 5.299587855 | AE86: 5.299587855 | AF86: 5.299587855 | AG86: 5.299587855 | AH86: 5.405579612 | AI86: 5.405579612 | AJ86: 5.405579612 | AK86: 5.405579612 | AL86: 5.513691205 | AM86: 5.513691205 | AN86: 5.513691205 | AO86: 5.513691205 | AP86: =AP78 -> 5.623965029 | AQ86: 5.623965029 | AR86: 5.623965029 | AS86: 5.623965029 | AT86: 5.736444329 | AU86: 5.736444329 | AV86: 5.736444329 | AW86: 5.736444329 | AX86: 5.851173216 | AY86: 5.851173216 | AZ86: 5.851173216 | BA86: 5.851173216 | BB86: 5.96819668 | BC86: 5.96819668 | BD86: 5.96819668 | BE86: 5.96819668 | BF86: 6.087560614 | BG86: 6.087560614 | BH86: 6.087560614 | BI86: 6.087560614 | BJ86: 6.209311826 | BK86: 6.209311826 | BL86: 6.209311826 | BM86: 6.209311826 | BN86: 6.333498063 | BO86: 6.333498063 | BP86: 6.333498063 | BQ86: 6.333498063 | BR86: 6.460168024 | BS86: 6.460168024 | BT86: 6.460168024 | BU86: 6.460168024 | BV86: =BV78 -> 6.589371384 | BW86: 6.589371384 | BX86: 6.589371384 | BY86: 6.589371384 | BZ86: 6.721158812 | CA86: 6.721158812 | CB86: 6.721158812 | CC86: 6.721158812 | CD86: 6.855581988 | CE86: 6.855581988 | CF86: 6.855581988 | CG86: 6.855581988 | CH86: 6.992693628 | CI86: 6.992693628 | CJ86: 6.992693628 | CK86: 6.992693628 | CL86: 7.132547501 | CM86: 7.132547501 | CN86: 7.132547501 | CO86: 7.132547501 | CP86: 7.275198451 | CQ86: 7.275198451 | CR86: 7.275198451 | CS86: 7.275198451 | CT86: 7.42070242 | CU86: 7.42070242 | CV86: 7.42070242 | CW86: 7.42070242 | CX86: 7.569116468 | CY86: 7.569116468 | CZ86: 7.569116468 | DA86: 7.569116468 | DB86: =DB78 -> 7.720498797 | DC86: 7.720498797 | DD86: 7.720498797 | DE86: 7.720498797 | DF86: 7.874908773 | DG86: 7.874908773 | DH86: 7.874908773 | DI86: 7.874908773 | DJ86: 8.032406949 | DK86: 8.032406949 | DL86: 8.032406949 | DM86: 8.032406949 | DN86: 8.193055088 | DO86: 8.193055088 | DP86: 8.193055088 | DQ86: 8.193055088 | DR86: 8.35691619 | DS86: 8.35691619 | DT86: 8.35691619 | DU86: 8.35691619 | DV86: 8.524054513 | DW86: 8.524054513 | DX86: 8.524054513 | DY86: 8.524054513 | DZ86: 8.694535604 | EA86: 8.694535604 | EB86: 8.694535604 | EC86: 8.694535604 | ED86: 8.868426316 | EE86: 8.868426316 | EF86: 8.868426316 | EG86: 8.868426316 | EH86: 9.045794842 | EI86: 9.045794842
E87: =E$53 -> Contractual Operation period fraction | F87: =F$53 -> 0 | G87: partial factor | H87: 120 | I87: 0 | J87: 0 | K87: 0 | L87: 0 | M87: 0 | N87: 0 | O87: 0 | P87: 0 | Q87: 0 | R87: 0 | S87: 0.3296703297 | T87: 1 | U87: 1 | V87: 1 | W87: 1 | X87: 1 | Y87: 1 | Z87: 1 | AA87: 1 | AB87: 1 | AC87: 1 | AD87: 1 | AE87: 1 | AF87: 1 | AG87: 1 | AH87: 1 | AI87: 1 | AJ87: 1 | AK87: 1 | AL87: 1 | AM87: 1 | AN87: 1 | AO87: 1 | AP87: 1 | AQ87: 1 | AR87: 1 | AS87: 1 | AT87: 1 | AU87: 1 | AV87: 1 | AW87: 1 | AX87: 1 | AY87: 1 | AZ87: 1 | BA87: 1 | BB87: 1 | BC87: 1 | BD87: 1 | BE87: 1 | BF87: 1 | BG87: 1 | BH87: 1 | BI87: 1 | BJ87: 1 | BK87: 1 | BL87: 1 | BM87: 1 | BN87: 1 | BO87: 1 | BP87: 1 | BQ87: 1 | BR87: =BR$53 -> 1 | BS87: 1 | BT87: 1 | BU87: 1 | BV87: 1 | BW87: 1 | BX87: 1 | BY87: 1 | BZ87: 1 | CA87: 1 | CB87: 1 | CC87: 1 | CD87: 1 | CE87: 1 | CF87: 1 | CG87: 1 | CH87: 1 | CI87: 1 | CJ87: 1 | CK87: 1 | CL87: 1 | CM87: 1 | CN87: 1 | CO87: 1 | CP87: 1 | CQ87: 1 | CR87: 1 | CS87: 1 | CT87: 1 | CU87: 1 | CV87: 1 | CW87: 1 | CX87: 1 | CY87: 1 | CZ87: 1 | DA87: 1 | DB87: 1 | DC87: 1 | DD87: 1 | DE87: 1 | DF87: 1 | DG87: 1 | DH87: 1 | DI87: 1 | DJ87: 1 | DK87: 1 | DL87: 1 | DM87: 1 | DN87: 1 | DO87: 1 | DP87: 1 | DQ87: 1 | DR87: 1 | DS87: 1 | DT87: 1 | DU87: 1 | DV87: 1 | DW87: 1 | DX87: 1 | DY87: 1 | DZ87: 1 | EA87: 1 | EB87: 1 | EC87: 1 | ED87: =ED$53 -> 1 | EE87: 1 | EF87: 1 | EG87: 1 | EH87: 1 | EI87: 0.6703296703
E88: =E$9 -> Parking garage ramp up and realisation | F88: 0 | G88: % | H88: 0 | I88: 0 | J88: 0 | K88: 0 | L88: 0 | M88: 0 | N88: 0 | O88: 0 | P88: 0 | Q88: 0 | R88: 0 | S88: 0.55 | T88: 0.55 | U88: 0.55 | V88: 0.85 | W88: 0.85 | X88: 0.85 | Y88: 0.85 | Z88: 0.85 | AA88: 0.85 | AB88: 0.85 | AC88: 0.85 | AD88: 0.85 | AE88: 0.85 | AF88: 0.85 | AG88: 0.85 | AH88: 1 | AI88: 1 | AJ88: 1 | AK88: =AK$9 -> 1 | AL88: 1 | AM88: 1 | AN88: 1 | AO88: 1 | AP88: 1 | AQ88: 1 | AR88: 1 | AS88: 1 | AT88: 1 | AU88: 1 | AV88: 1 | AW88: 1 | AX88: 1 | AY88: 1 | AZ88: 1 | BA88: 1 | BB88: 1 | BC88: 1 | BD88: 1 | BE88: 1 | BF88: 1.1 | BG88: 1.1 | BH88: 1.1 | BI88: 1.1 | BJ88: 1.1 | BK88: 1.1 | BL88: 1.1 | BM88: 1.1 | BN88: 1.1 | BO88: 1.1 | BP88: 1.1 | BQ88: =BQ$9 -> 1.1 | BR88: 1.1 | BS88: 1.1 | BT88: 1.1 | BU88: 1.1 | BV88: 1.1 | BW88: 1.1 | BX88: 1.1 | BY88: 1.1 | BZ88: 1.2 | CA88: 1.2 | CB88: 1.2 | CC88: 1.2 | CD88: 1.2 | CE88: 1.2 | CF88: 1.2 | CG88: 1.2 | CH88: 1.2 | CI88: 1.2 | CJ88: 1.2 | CK88: 1.2 | CL88: 1.2 | CM88: 1.2 | CN88: 1.2 | CO88: 1.2 | CP88: 1.2 | CQ88: 1.2 | CR88: 1.2 | CS88: 1.2 | CT88: 1.3 | CU88: 1.3 | CV88: 1.3 | CW88: =CW$9 -> 1.3 | CX88: 1.3 | CY88: 1.3 | CZ88: 1.3 | DA88: 1.3 | DB88: 1.3 | DC88: 1.3 | DD88: 1.3 | DE88: 1.3 | DF88: 1.3 | DG88: 1.3 | DH88: 1.3 | DI88: 1.3 | DJ88: 1.3 | DK88: 1.3 | DL88: 1.3 | DM88: 1.3 | DN88: 1.3 | DO88: 1.3 | DP88: 1.3 | DQ88: 1.3 | DR88: 1.3 | DS88: 1.3 | DT88: 1.3 | DU88: 1.3 | DV88: 1.3 | DW88: 1.3 | DX88: 1.3 | DY88: 1.3 | DZ88: 1.3 | EA88: 1.3 | EB88: 1.3 | EC88: =EC$9 -> 1.3 | ED88: 1.3 | EE88: 1.3 | EF88: 1.3 | EG88: 1.3 | EH88: 1.3 | EI88: 1.3
E89: =C$75 & " Total Revenue" -> Students - Day Parking Total Revenue | G89: =SMU -> '000 HRK | H89: =SUM(J$89:EI$89) -> 56151.16931 | J89: =J86 * $F84 * J87 * J88 / $F85 -> 0 | K89: 0 | L89: 0 | M89: 0 | N89: 0 | O89: 0 | P89: 0 | Q89: 0 | R89: 0 | S89: 53.78956034 | T89: 163.1616664 | U89: 163.1616664 | V89: 257.2021177 | W89: 257.2021177 | X89: 257.2021177 | Y89: 257.2021177 | Z89: 262.3461601 | AA89: 262.3461601 | AB89: 262.3461601 | AC89: 262.3461601 | AD89: 267.5930833 | AE89: 267.5930833 | AF89: 267.5930833 | AG89: 267.5930833 | AH89: 321.1116999 | AI89: 321.1116999 | AJ89: 321.1116999 | AK89: 321.1116999 | AL89: 327.5339339 | AM89: 327.5339339 | AN89: 327.5339339 | AO89: 327.5339339 | AP89: =AP86 * $F84 * AP87 * AP88 / $F85 -> 334.0846126 | AQ89: 334.0846126 | AR89: 334.0846126 | AS89: 334.0846126 | AT89: 340.7663048 | AU89: 340.7663048 | AV89: 340.7663048 | AW89: 340.7663048 | AX89: 347.5816309 | AY89: 347.5816309 | AZ89: 347.5816309 | BA89: 347.5816309 | BB89: 354.5332635 | BC89: 354.5332635 | BD89: 354.5332635 | BE89: 354.5332635 | BF89: 397.7863217 | BG89: 397.7863217 | BH89: 397.7863217 | BI89: 397.7863217 | BJ89: 405.7420481 | BK89: 405.7420481 | BL89: 405.7420481 | BM89: 405.7420481 | BN89: 413.8568891 | BO89: 413.8568891 | BP89: 413.8568891 | BQ89: 413.8568891 | BR89: 422.1340269 | BS89: 422.1340269 | BT89: 422.1340269 | BU89: 422.1340269 | BV89: =BV86 * $F84 * BV87 * BV88 / $F85 -> 430.5767074 | BW89: 430.5767074 | BX89: 430.5767074 | BY89: 430.5767074 | BZ89: 479.1144453 | CA89: 479.1144453 | CB89: 479.1144453 | CC89: 479.1144453 | CD89: 488.6967342 | CE89: 488.6967342 | CF89: 488.6967342 | CG89: 488.6967342 | CH89: 498.4706689 | CI89: 498.4706689 | CJ89: 498.4706689 | CK89: 498.4706689 | CL89: 508.4400823 | CM89: 508.4400823 | CN89: 508.4400823 | CO89: 508.4400823 | CP89: 518.608884 | CQ89: 518.608884 | CR89: 518.608884 | CS89: 518.608884 | CT89: 573.0628168 | CU89: 573.0628168 | CV89: 573.0628168 | CW89: 573.0628168 | CX89: 584.5240731 | CY89: 584.5240731 | CZ89: 584.5240731 | DA89: 584.5240731 | DB89: =DB86 * $F84 * DB87 * DB88 / $F85 -> 596.2145546 | DC89: 596.2145546 | DD89: 596.2145546 | DE89: 596.2145546 | DF89: 608.1388457 | DG89: 608.1388457 | DH89: 608.1388457 | DI89: 608.1388457 | DJ89: 620.3016226 | DK89: 620.3016226 | DL89: 620.3016226 | DM89: 620.3016226 | DN89: 632.707655 | DO89: 632.707655 | DP89: 632.707655 | DQ89: 632.707655 | DR89: 645.3618081 | DS89: 645.3618081 | DT89: 645.3618081 | DU89: 645.3618081 | DV89: 658.2690443 | DW89: 658.2690443 | DX89: 658.2690443 | DY89: 658.2690443 | DZ89: 671.4344252 | EA89: 671.4344252 | EB89: 671.4344252 | EC89: 671.4344252 | ED89: 684.8631137 | EE89: 684.8631137 | EF89: 684.8631137 | EG89: 684.8631137 | EH89: =EH86 * $F84 * EH87 * EH88 / $F85 -> 698.560376 | EI89: 468.2657465
C92: Visitors - Health/Business/Culture - Day Parking
E93: =E$16 -> Visitors - Health/Business/Culture - Day Parking average rate p/h | F93: =F$16 -> 4.8 | G93: kn p/h
E94: =E$43 -> CPI Indexation | F94: =F$43 -> 0 | G94: index | H94: 0 | I94: 0 | J94: 1 | K94: 1 | L94: 1 | M94: 1 | N94: 1.02 | O94: 1.02 | P94: 1.02 | Q94: 1.02 | R94: 1.0404 | S94: 1.0404 | T94: 1.0404 | U94: 1.0404 | V94: 1.061208 | W94: 1.061208 | X94: 1.061208 | Y94: 1.061208 | Z94: 1.08243216 | AA94: 1.08243216 | AB94: 1.08243216 | AC94: 1.08243216 | AD94: 1.104080803 | AE94: 1.104080803 | AF94: 1.104080803 | AG94: 1.104080803 | AH94: 1.126162419 | AI94: 1.126162419 | AJ94: 1.126162419 | AK94: 1.126162419 | AL94: 1.148685668 | AM94: 1.148685668 | AN94: 1.148685668 | AO94: 1.148685668 | AP94: 1.171659381 | AQ94: 1.171659381 | AR94: 1.171659381 | AS94: 1.171659381 | AT94: 1.195092569 | AU94: 1.195092569 | AV94: 1.195092569 | AW94: 1.195092569 | AX94: 1.21899442 | AY94: 1.21899442 | AZ94: 1.21899442 | BA94: 1.21899442 | BB94: 1.243374308 | BC94: 1.243374308 | BD94: 1.243374308 | BE94: 1.243374308 | BF94: 1.268241795 | BG94: 1.268241795 | BH94: 1.268241795 | BI94: 1.268241795 | BJ94: 1.29360663 | BK94: 1.29360663 | BL94: 1.29360663 | BM94: 1.29360663 | BN94: 1.319478763 | BO94: 1.319478763 | BP94: 1.319478763 | BQ94: 1.319478763 | BR94: =BR$43 -> 1.345868338 | BS94: 1.345868338 | BT94: 1.345868338 | BU94: 1.345868338 | BV94: 1.372785705 | BW94: 1.372785705 | BX94: 1.372785705 | BY94: 1.372785705 | BZ94: 1.400241419 | CA94: 1.400241419 | CB94: 1.400241419 | CC94: 1.400241419 | CD94: 1.428246248 | CE94: 1.428246248 | CF94: 1.428246248 | CG94: 1.428246248 | CH94: 1.456811173 | CI94: 1.456811173 | CJ94: 1.456811173 | CK94: 1.456811173 | CL94: 1.485947396 | CM94: 1.485947396 | CN94: 1.485947396 | CO94: 1.485947396 | CP94: 1.515666344 | CQ94: 1.515666344 | CR94: 1.515666344 | CS94: 1.515666344 | CT94: 1.545979671 | CU94: 1.545979671 | CV94: 1.545979671 | CW94: 1.545979671 | CX94: 1.576899264 | CY94: 1.576899264 | CZ94: 1.576899264 | DA94: 1.576899264 | DB94: 1.608437249 | DC94: 1.608437249 | DD94: 1.608437249 | DE94: 1.608437249 | DF94: 1.640605994 | DG94: 1.640605994 | DH94: 1.640605994 | DI94: 1.640605994 | DJ94: 1.673418114 | DK94: 1.673418114 | DL94: 1.673418114 | DM94: 1.673418114 | DN94: 1.706886477 | DO94: 1.706886477 | DP94: 1.706886477 | DQ94: 1.706886477 | DR94: 1.741024206 | DS94: 1.741024206 | DT94: 1.741024206 | DU94: 1.741024206 | DV94: 1.77584469 | DW94: 1.77584469 | DX94: 1.77584469 | DY94: 1.77584469 | DZ94: 1.811361584 | EA94: 1.811361584 | EB94: 1.811361584 | EC94: 1.811361584 | ED94: =ED$43 -> 1.847588816 | EE94: 1.847588816 | EF94: 1.847588816 | EG94: 1.847588816 | EH94: 1.884540592 | EI94: 1.884540592
E95: =C$92 & " Revenue per hour" -> Visitors - Health/Business/Culture - Day Parking Revenue per hour | G95: kn p/h | J95: =F$93 * J$94 -> 4.8 | K95: =F$93 * K$94 -> 4.8 | L95: =F$93 * L$94 -> 4.8 | M95: =F$93 * M$94 -> 4.8 | N95: =F$93 * N$94 -> 4.896 | O95: =F$93 * O$94 -> 4.896 | P95: =F$93 * P$94 -> 4.896 | Q95: =F$93 * Q$94 -> 4.896 | R95: =F$93 * R$94 -> 4.99392 | S95: =F$93 * S$94 -> 4.99392 | T95: =F$93 * T$94 -> 4.99392 | U95: =F$93 * U$94 -> 4.99392 | V95: =F$93 * V$94 -> 5.0937984 | W95: =F$93 * W$94 -> 5.0937984 | X95: =F$93 * X$94 -> 5.0937984 | Y95: =F$93 * Y$94 -> 5.0937984 | Z95: =F$93 * Z$94 -> 5.195674368 | AA95: =F$93 * AA$94 -> 5.195674368 | AB95: =F$93 * AB$94 -> 5.195674368 | AC95: =F$93 * AC$94 -> 5.195674368 | AD95: =F$93 * AD$94 -> 5.299587855 | AE95: =F$93 * AE$94 -> 5.299587855 | AF95: =F$93 * AF$94 -> 5.299587855 | AG95: =F$93 * AG$94 -> 5.299587855 | AH95: =F$93 * AH$94 -> 5.405579612 | AI95: =F$93 * AI$94 -> 5.405579612 | AJ95: =F$93 * AJ$94 -> 5.405579612 | AK95: =F$93 * AK$94 -> 5.405579612 | AL95: =F$93 * AL$94 -> 5.513691205 | AM95: =F$93 * AM$94 -> 5.513691205 | AN95: =F$93 * AN$94 -> 5.513691205 | AO95: =F$93 * AO$94 -> 5.513691205 | AP95: =F$93 * AP$94 -> 5.623965029 | AQ95: =F$93 * AQ$94 -> 5.623965029 | AR95: =F$93 * AR$94 -> 5.623965029 | AS95: =F$93 * AS$94 -> 5.623965029 | AT95: =F$93 * AT$94 -> 5.736444329 | AU95: =F$93 * AU$94 -> 5.736444329 | AV95: =F$93 * AV$94 -> 5.736444329 | AW95: =F$93 * AW$94 -> 5.736444329 | AX95: =F$93 * AX$94 -> 5.851173216 | AY95: =F$93 * AY$94 -> 5.851173216 | AZ95: =F$93 * AZ$94 -> 5.851173216 | BA95: =F$93 * BA$94 -> 5.851173216 | BB95: =F$93 * BB$94 -> 5.96819668 | BC95: =F$93 * BC$94 -> 5.96819668 | BD95: =F$93 * BD$94 -> 5.96819668 | BE95: =F$93 * BE$94 -> 5.96819668 | BF95: =F$93 * BF$94 -> 6.087560614 | BG95: =F$93 * BG$94 -> 6.087560614 | BH95: =F$93 * BH$94 -> 6.087560614 | BI95: =F$93 * BI$94 -> 6.087560614 | BJ95: =F$93 * BJ$94 -> 6.209311826 | BK95: =F$93 * BK$94 -> 6.209311826 | BL95: =F$93 * BL$94 -> 6.209311826 | BM95: =F$93 * BM$94 -> 6.209311826 | BN95: =F$93 * BN$94 -> 6.333498063 | BO95: =F$93 * BO$94 -> 6.333498063 | BP95: =F$93 * BP$94 -> 6.333498063 | BQ95: =F$93 * BQ$94 -> 6.333498063 | BR95: =F$93 * BR$94 -> 6.460168024 | BS95: =F$93 * BS$94 -> 6.460168024 | BT95: =F$93 * BT$94 -> 6.460168024 | BU95: =F$93 * BU$94 -> 6.460168024 | BV95: =F$93 * BV$94 -> 6.589371384 | BW95: =F$93 * BW$94 -> 6.589371384 | BX95: =F$93 * BX$94 -> 6.589371384 | BY95: =F$93 * BY$94 -> 6.589371384 | BZ95: =F$93 * BZ$94 -> 6.721158812 | CA95: =F$93 * CA$94 -> 6.721158812 | CB95: =F$93 * CB$94 -> 6.721158812 | CC95: =F$93 * CC$94 -> 6.721158812 | CD95: =F$93 * CD$94 -> 6.855581988 | CE95: =F$93 * CE$94 -> 6.855581988 | CF95: =F$93 * CF$94 -> 6.855581988 | CG95: =F$93 * CG$94 -> 6.855581988 | CH95: =F$93 * CH$94 -> 6.992693628 | CI95: =F$93 * CI$94 -> 6.992693628 | CJ95: =F$93 * CJ$94 -> 6.992693628 | CK95: =F$93 * CK$94 -> 6.992693628 | CL95: =F$93 * CL$94 -> 7.132547501 | CM95: =F$93 * CM$94 -> 7.132547501 | CN95: =F$93 * CN$94 -> 7.132547501 | CO95: =F$93 * CO$94 -> 7.132547501 | CP95: =F$93 * CP$94 -> 7.275198451 | CQ95: =F$93 * CQ$94 -> 7.275198451 | CR95: =F$93 * CR$94 -> 7.275198451 | CS95: =F$93 * CS$94 -> 7.275198451 | CT95: =F$93 * CT$94 -> 7.42070242 | CU95: =F$93 * CU$94 -> 7.42070242 | CV95: =F$93 * CV$94 -> 7.42070242 | CW95: =F$93 * CW$94 -> 7.42070242 | CX95: =F$93 * CX$94 -> 7.569116468 | CY95: =F$93 * CY$94 -> 7.569116468 | CZ95: =F$93 * CZ$94 -> 7.569116468 | DA95: =F$93 * DA$94 -> 7.569116468 | DB95: =F$93 * DB$94 -> 7.720498797 | DC95: =F$93 * DC$94 -> 7.720498797 | DD95: =F$93 * DD$94 -> 7.720498797 | DE95: =F$93 * DE$94 -> 7.720498797 | DF95: =F$93 * DF$94 -> 7.874908773 | DG95: =F$93 * DG$94 -> 7.874908773 | DH95: =F$93 * DH$94 -> 7.874908773 | DI95: =F$93 * DI$94 -> 7.874908773 | DJ95: =F$93 * DJ$94 -> 8.032406949 | DK95: =F$93 * DK$94 -> 8.032406949 | DL95: =F$93 * DL$94 -> 8.032406949 | DM95: =F$93 * DM$94 -> 8.032406949 | DN95: =F$93 * DN$94 -> 8.193055088 | DO95: =F$93 * DO$94 -> 8.193055088 | DP95: =F$93 * DP$94 -> 8.193055088 | DQ95: =F$93 * DQ$94 -> 8.193055088 | DR95: =F$93 * DR$94 -> 8.35691619 | DS95: =F$93 * DS$94 -> 8.35691619 | DT95: =F$93 * DT$94 -> 8.35691619 | DU95: =F$93 * DU$94 -> 8.35691619 | DV95: =F$93 * DV$94 -> 8.524054513 | DW95: =F$93 * DW$94 -> 8.524054513 | DX95: =F$93 * DX$94 -> 8.524054513 | DY95: =F$93 * DY$94 -> 8.524054513 | DZ95: =F$93 * DZ$94 -> 8.694535604 | EA95: =F$93 * EA$94 -> 8.694535604 | EB95: =F$93 * EB$94 -> 8.694535604 | EC95: =F$93 * EC$94 -> 8.694535604 | ED95: =F$93 * ED$94 -> 8.868426316 | EE95: =F$93 * EE$94 -> 8.868426316 | EF95: =F$93 * EF$94 -> 8.868426316 | EG95: =F$93 * EG$94 -> 8.868426316 | EH95: =F$93 * EH$94 -> 9.045794842 | EI95: =F$93 * EI$94 -> 9.045794842
E97: =E$29 -> Visitors - Health/Business/Culture - Day Parking | F97: =F$29 -> 373760 | G97: hours p/y
E98: =E$47 -> Model Periods per year | F98: =F$47 -> 4 | G98: quarters
E99: =C$92 & " parking hours per period" -> Visitors - Health/Business/Culture - Day Parking parking hours per period | F99: =F97 / F98 -> 93440 | G99: hours/quarter
E101: =E$99 -> Visitors - Health/Business/Culture - Day Parking parking hours per period | F101: =F$99 -> 93440 | G101: =G$99 -> hours/quarter
E102: =E$51 -> Units in thousand conversion to Cash Flows | F102: =F$51 -> 1000 | G102: units / 000s
E103: =E$95 -> Visitors - Health/Business/Culture - Day Parking Revenue per hour | F103: 0 | G103: kn p/h | H103: 0 | I103: 0 | J103: 4.8 | K103: 4.8 | L103: 4.8 | M103: 4.8 | N103: 4.896 | O103: 4.896 | P103: 4.896 | Q103: 4.896 | R103: 4.99392 | S103: 4.99392 | T103: 4.99392 | U103: 4.99392 | V103: 5.0937984 | W103: 5.0937984 | X103: 5.0937984 | Y103: 5.0937984 | Z103: 5.195674368 | AA103: 5.195674368 | AB103: 5.195674368 | AC103: 5.195674368 | AD103: 5.299587855 | AE103: 5.299587855 | AF103: 5.299587855 | AG103: 5.299587855 | AH103: 5.405579612 | AI103: 5.405579612 | AJ103: 5.405579612 | AK103: =AK$95 -> 5.405579612 | AL103: 5.513691205 | AM103: 5.513691205 | AN103: 5.513691205 | AO103: 5.513691205 | AP103: 5.623965029 | AQ103: 5.623965029 | AR103: 5.623965029 | AS103: 5.623965029 | AT103: 5.736444329 | AU103: 5.736444329 | AV103: 5.736444329 | AW103: 5.736444329 | AX103: 5.851173216 | AY103: 5.851173216 | AZ103: 5.851173216 | BA103: 5.851173216 | BB103: 5.96819668 | BC103: 5.96819668 | BD103: 5.96819668 | BE103: 5.96819668 | BF103: 6.087560614 | BG103: 6.087560614 | BH103: 6.087560614 | BI103: 6.087560614 | BJ103: 6.209311826 | BK103: 6.209311826 | BL103: 6.209311826 | BM103: 6.209311826 | BN103: 6.333498063 | BO103: 6.333498063 | BP103: 6.333498063 | BQ103: =BQ$95 -> 6.333498063 | BR103: 6.460168024 | BS103: 6.460168024 | BT103: 6.460168024 | BU103: 6.460168024 | BV103: 6.589371384 | BW103: 6.589371384 | BX103: 6.589371384 | BY103: 6.589371384 | BZ103: 6.721158812 | CA103: 6.721158812 | CB103: 6.721158812 | CC103: 6.721158812 | CD103: 6.855581988 | CE103: 6.855581988 | CF103: 6.855581988 | CG103: 6.855581988 | CH103: 6.992693628 | CI103: 6.992693628 | CJ103: 6.992693628 | CK103: 6.992693628 | CL103: 7.132547501 | CM103: 7.132547501 | CN103: 7.132547501 | CO103: 7.132547501 | CP103: 7.275198451 | CQ103: 7.275198451 | CR103: 7.275198451 | CS103: 7.275198451 | CT103: 7.42070242 | CU103: 7.42070242 | CV103: 7.42070242 | CW103: =CW$95 -> 7.42070242 | CX103: 7.569116468 | CY103: 7.569116468 | CZ103: 7.569116468 | DA103: 7.569116468 | DB103: 7.720498797 | DC103: 7.720498797 | DD103: 7.720498797 | DE103: 7.720498797 | DF103: 7.874908773 | DG103: 7.874908773 | DH103: 7.874908773 | DI103: 7.874908773 | DJ103: 8.032406949 | DK103: 8.032406949 | DL103: 8.032406949 | DM103: 8.032406949 | DN103: 8.193055088 | DO103: 8.193055088 | DP103: 8.193055088 | DQ103: 8.193055088 | DR103: 8.35691619 | DS103: 8.35691619 | DT103: 8.35691619 | DU103: 8.35691619 | DV103: 8.524054513 | DW103: 8.524054513 | DX103: 8.524054513 | DY103: 8.524054513 | DZ103: 8.694535604 | EA103: 8.694535604 | EB103: 8.694535604 | EC103: =EC$95 -> 8.694535604 | ED103: 8.868426316 | EE103: 8.868426316 | EF103: 8.868426316 | EG103: 8.868426316 | EH103: 9.045794842 | EI103: 9.045794842
E104: =E$53 -> Contractual Operation period fraction | F104: =F$53 -> 0 | G104: partial factor | H104: 120 | I104: 0 | J104: 0 | K104: 0 | L104: 0 | M104: 0 | N104: 0 | O104: 0 | P104: 0 | Q104: 0 | R104: 0 | S104: 0.3296703297 | T104: 1 | U104: 1 | V104: 1 | W104: 1 | X104: 1 | Y104: 1 | Z104: 1 | AA104: 1 | AB104: 1 | AC104: 1 | AD104: 1 | AE104: 1 | AF104: 1 | AG104: 1 | AH104: 1 | AI104: 1 | AJ104: 1 | AK104: 1 | AL104: 1 | AM104: 1 | AN104: 1 | AO104: 1 | AP104: 1 | AQ104: 1 | AR104: 1 | AS104: 1 | AT104: 1 | AU104: 1 | AV104: 1 | AW104: 1 | AX104: 1 | AY104: 1 | AZ104: 1 | BA104: 1 | BB104: 1 | BC104: 1 | BD104: 1 | BE104: 1 | BF104: 1 | BG104: 1 | BH104: 1 | BI104: 1 | BJ104: 1 | BK104: 1 | BL104: 1 | BM104: 1 | BN104: 1 | BO104: 1 | BP104: 1 | BQ104: 1 | BR104: =BR$53 -> 1 | BS104: 1 | BT104: 1 | BU104: 1 | BV104: 1 | BW104: 1 | BX104: 1 | BY104: 1 | BZ104: 1 | CA104: 1 | CB104: 1 | CC104: 1 | CD104: 1 | CE104: 1 | CF104: 1 | CG104: 1 | CH104: 1 | CI104: 1 | CJ104: 1 | CK104: 1 | CL104: 1 | CM104: 1 | CN104: 1 | CO104: 1 | CP104: 1 | CQ104: 1 | CR104: 1 | CS104: 1 | CT104: 1 | CU104: 1 | CV104: 1 | CW104: 1 | CX104: 1 | CY104: 1 | CZ104: 1 | DA104: 1 | DB104: 1 | DC104: 1 | DD104: 1 | DE104: 1 | DF104: 1 | DG104: 1 | DH104: 1 | DI104: 1 | DJ104: 1 | DK104: 1 | DL104: 1 | DM104: 1 | DN104: 1 | DO104: 1 | DP104: 1 | DQ104: 1 | DR104: 1 | DS104: 1 | DT104: 1 | DU104: 1 | DV104: 1 | DW104: 1 | DX104: 1 | DY104: 1 | DZ104: 1 | EA104: 1 | EB104: 1 | EC104: 1 | ED104: =ED$53 -> 1 | EE104: 1 | EF104: 1 | EG104: 1 | EH104: 1 | EI104: 0.6703296703
E105: =E$9 -> Parking garage ramp up and realisation | F105: 0 | G105: % | H105: 0 | I105: 0 | J105: 0 | K105: 0 | L105: 0 | M105: 0 | N105: 0 | O105: 0 | P105: 0 | Q105: 0 | R105: 0 | S105: 0.55 | T105: 0.55 | U105: 0.55 | V105: 0.85 | W105: 0.85 | X105: 0.85 | Y105: 0.85 | Z105: 0.85 | AA105: 0.85 | AB105: 0.85 | AC105: 0.85 | AD105: 0.85 | AE105: 0.85 | AF105: 0.85 | AG105: 0.85 | AH105: 1 | AI105: 1 | AJ105: 1 | AK105: =AK$9 -> 1 | AL105: 1 | AM105: 1 | AN105: 1 | AO105: 1 | AP105: 1 | AQ105: 1 | AR105: 1 | AS105: 1 | AT105: 1 | AU105: 1 | AV105: 1 | AW105: 1 | AX105: 1 | AY105: 1 | AZ105: 1 | BA105: 1 | BB105: 1 | BC105: 1 | BD105: 1 | BE105: 1 | BF105: 1.1 | BG105: 1.1 | BH105: 1.1 | BI105: 1.1 | BJ105: 1.1 | BK105: 1.1 | BL105: 1.1 | BM105: 1.1 | BN105: 1.1 | BO105: 1.1 | BP105: 1.1 | BQ105: =BQ$9 -> 1.1 | BR105: 1.1 | BS105: 1.1 | BT105: 1.1 | BU105: 1.1 | BV105: 1.1 | BW105: 1.1 | BX105: 1.1 | BY105: 1.1 | BZ105: 1.2 | CA105: 1.2 | CB105: 1.2 | CC105: 1.2 | CD105: 1.2 | CE105: 1.2 | CF105: 1.2 | CG105: 1.2 | CH105: 1.2 | CI105: 1.2 | CJ105: 1.2 | CK105: 1.2 | CL105: 1.2 | CM105: 1.2 | CN105: 1.2 | CO105: 1.2 | CP105: 1.2 | CQ105: 1.2 | CR105: 1.2 | CS105: 1.2 | CT105: 1.3 | CU105: 1.3 | CV105: 1.3 | CW105: =CW$9 -> 1.3 | CX105: 1.3 | CY105: 1.3 | CZ105: 1.3 | DA105: 1.3 | DB105: 1.3 | DC105: 1.3 | DD105: 1.3 | DE105: 1.3 | DF105: 1.3 | DG105: 1.3 | DH105: 1.3 | DI105: 1.3 | DJ105: 1.3 | DK105: 1.3 | DL105: 1.3 | DM105: 1.3 | DN105: 1.3 | DO105: 1.3 | DP105: 1.3 | DQ105: 1.3 | DR105: 1.3 | DS105: 1.3 | DT105: 1.3 | DU105: 1.3 | DV105: 1.3 | DW105: 1.3 | DX105: 1.3 | DY105: 1.3 | DZ105: 1.3 | EA105: 1.3 | EB105: 1.3 | EC105: =EC$9 -> 1.3 | ED105: 1.3 | EE105: 1.3 | EF105: 1.3 | EG105: 1.3 | EH105: 1.3 | EI105: 1.3
E106: =C$92 & " Total Revenue" -> Visitors - Health/Business/Culture - Day Parking Total Revenue | G106: =SMU -> '000 HRK | H106: =SUM(J$106:EI$106) -> 88323.80549 | J106: =J103 * $F101 * J104 * J105 / $F102 -> 0 | K106: 0 | L106: 0 | M106: 0 | N106: 0 | O106: 0 | P106: 0 | Q106: 0 | R106: 0 | S106: 84.60907801 | T106: 256.6475366 | U106: 256.6475366 | V106: 404.5698441 | W106: 404.5698441 | X106: 404.5698441 | Y106: 404.5698441 | Z106: 412.661241 | AA106: 412.661241 | AB106: 412.661241 | AC106: 412.661241 | AD106: 420.9144658 | AE106: 420.9144658 | AF106: 420.9144658 | AG106: 420.9144658 | AH106: 505.097359 | AI106: 505.097359 | AJ106: 505.097359 | AK106: 505.097359 | AL106: 515.1993062 | AM106: 515.1993062 | AN106: 515.1993062 | AO106: 515.1993062 | AP106: =AP103 * $F101 * AP104 * AP105 / $F102 -> 525.5032923 | AQ106: 525.5032923 | AR106: 525.5032923 | AS106: 525.5032923 | AT106: 536.0133581 | AU106: 536.0133581 | AV106: 536.0133581 | AW106: 536.0133581 | AX106: 546.7336253 | AY106: 546.7336253 | AZ106: 546.7336253 | BA106: 546.7336253 | BB106: 557.6682978 | BC106: 557.6682978 | BD106: 557.6682978 | BE106: 557.6682978 | BF106: 625.7038301 | BG106: 625.7038301 | BH106: 625.7038301 | BI106: 625.7038301 | BJ106: 638.2179067 | BK106: 638.2179067 | BL106: 638.2179067 | BM106: 638.2179067 | BN106: 650.9822649 | BO106: 650.9822649 | BP106: 650.9822649 | BQ106: 650.9822649 | BR106: 664.0019102 | BS106: 664.0019102 | BT106: 664.0019102 | BU106: 664.0019102 | BV106: =BV103 * $F101 * BV104 * BV105 / $F102 -> 677.2819484 | BW106: 677.2819484 | BX106: 677.2819484 | BY106: 677.2819484 | BZ106: 753.6300953 | CA106: 753.6300953 | CB106: 753.6300953 | CC106: 753.6300953 | CD106: 768.7026972 | CE106: 768.7026972 | CF106: 768.7026972 | CG106: 768.7026972 | CH106: 784.0767511 | CI106: 784.0767511 | CJ106: 784.0767511 | CK106: 784.0767511 | CL106: 799.7582862 | CM106: 799.7582862 | CN106: 799.7582862 | CO106: 799.7582862 | CP106: 815.7534519 | CQ106: 815.7534519 | CR106: 815.7534519 | CS106: 815.7534519 | CT106: 901.4075643 | CU106: 901.4075643 | CV106: 901.4075643 | CW106: 901.4075643 | CX106: 919.4357156 | CY106: 919.4357156 | CZ106: 919.4357156 | DA106: 919.4357156 | DB106: =DB103 * $F101 * DB104 * DB105 / $F102 -> 937.8244299 | DC106: 937.8244299 | DD106: 937.8244299 | DE106: 937.8244299 | DF106: 956.5809185 | DG106: 956.5809185 | DH106: 956.5809185 | DI106: 956.5809185 | DJ106: 975.7125369 | DK106: 975.7125369 | DL106: 975.7125369 | DM106: 975.7125369 | DN106: 995.2267876 | DO106: 995.2267876 | DP106: 995.2267876 | DQ106: 995.2267876 | DR106: 1015.131323 | DS106: 1015.131323 | DT106: 1015.131323 | DU106: 1015.131323 | DV106: 1035.43395 | DW106: 1035.43395 | DX106: 1035.43395 | DY106: 1035.43395 | DZ106: 1056.142629 | EA106: 1056.142629 | EB106: 1056.142629 | EC106: 1056.142629 | ED106: 1077.265481 | EE106: 1077.265481 | EF106: 1077.265481 | EG106: 1077.265481 | EH106: =EH103 * $F101 * EH104 * EH105 / $F102 -> 1098.810791 | EI106: 736.5654753
C109: Visitors - Culture - Evening Parking
E110: =E$17 -> Visitors - Culture - Evening Parking | F110: =F$17 -> 3.2 | G110: kn p/h
E111: =E$43 -> CPI Indexation | F111: =F$43 -> 0 | G111: index | H111: 0 | I111: 0 | J111: 1 | K111: 1 | L111: 1 | M111: 1 | N111: 1.02 | O111: 1.02 | P111: 1.02 | Q111: 1.02 | R111: 1.0404 | S111: 1.0404 | T111: 1.0404 | U111: 1.0404 | V111: 1.061208 | W111: 1.061208 | X111: 1.061208 | Y111: 1.061208 | Z111: 1.08243216 | AA111: 1.08243216 | AB111: 1.08243216 | AC111: 1.08243216 | AD111: 1.104080803 | AE111: 1.104080803 | AF111: 1.104080803 | AG111: 1.104080803 | AH111: 1.126162419 | AI111: 1.126162419 | AJ111: 1.126162419 | AK111: 1.126162419 | AL111: 1.148685668 | AM111: 1.148685668 | AN111: 1.148685668 | AO111: 1.148685668 | AP111: 1.171659381 | AQ111: 1.171659381 | AR111: 1.171659381 | AS111: 1.171659381 | AT111: 1.195092569 | AU111: 1.195092569 | AV111: 1.195092569 | AW111: 1.195092569 | AX111: 1.21899442 | AY111: 1.21899442 | AZ111: 1.21899442 | BA111: 1.21899442 | BB111: 1.243374308 | BC111: 1.243374308 | BD111: 1.243374308 | BE111: 1.243374308 | BF111: 1.268241795 | BG111: 1.268241795 | BH111: 1.268241795 | BI111: 1.268241795 | BJ111: 1.29360663 | BK111: 1.29360663 | BL111: 1.29360663 | BM111: 1.29360663 | BN111: 1.319478763 | BO111: 1.319478763 | BP111: 1.319478763 | BQ111: 1.319478763 | BR111: =BR$43 -> 1.345868338 | BS111: 1.345868338 | BT111: 1.345868338 | BU111: 1.345868338 | BV111: 1.372785705 | BW111: 1.372785705 | BX111: 1.372785705 | BY111: 1.372785705 | BZ111: 1.400241419 | CA111: 1.400241419 | CB111: 1.400241419 | CC111: 1.400241419 | CD111: 1.428246248 | CE111: 1.428246248 | CF111: 1.428246248 | CG111: 1.428246248 | CH111: 1.456811173 | CI111: 1.456811173 | CJ111: 1.456811173 | CK111: 1.456811173 | CL111: 1.485947396 | CM111: 1.485947396 | CN111: 1.485947396 | CO111: 1.485947396 | CP111: 1.515666344 | CQ111: 1.515666344 | CR111: 1.515666344 | CS111: 1.515666344 | CT111: 1.545979671 | CU111: 1.545979671 | CV111: 1.545979671 | CW111: 1.545979671 | CX111: 1.576899264 | CY111: 1.576899264 | CZ111: 1.576899264 | DA111: 1.576899264 | DB111: 1.608437249 | DC111: 1.608437249 | DD111: 1.608437249 | DE111: 1.608437249 | DF111: 1.640605994 | DG111: 1.640605994 | DH111: 1.640605994 | DI111: 1.640605994 | DJ111: 1.673418114 | DK111: 1.673418114 | DL111: 1.673418114 | DM111: 1.673418114 | DN111: 1.706886477 | DO111: 1.706886477 | DP111: 1.706886477 | DQ111: 1.706886477 | DR111: 1.741024206 | DS111: 1.741024206 | DT111: 1.741024206 | DU111: 1.741024206 | DV111: 1.77584469 | DW111: 1.77584469 | DX111: 1.77584469 | DY111: 1.77584469 | DZ111: 1.811361584 | EA111: 1.811361584 | EB111: 1.811361584 | EC111: 1.811361584 | ED111: =ED$43 -> 1.847588816 | EE111: 1.847588816 | EF111: 1.847588816 | EG111: 1.847588816 | EH111: 1.884540592 | EI111: 1.884540592
E112: =C$109 & " Revenue per hour" -> Visitors - Culture - Evening Parking Revenue per hour | G112: kn p/h | J112: =$F110 * J111 -> 3.2 | K112: 3.2 | L112: 3.2 | M112: 3.2 | N112: 3.264 | O112: 3.264 | P112: 3.264 | Q112: 3.264 | R112: 3.32928 | S112: 3.32928 | T112: 3.32928 | U112: 3.32928 | V112: 3.3958656 | W112: 3.3958656 | X112: 3.3958656 | Y112: 3.3958656 | Z112: 3.463782912 | AA112: 3.463782912 | AB112: 3.463782912 | AC112: 3.463782912 | AD112: 3.53305857 | AE112: 3.53305857 | AF112: 3.53305857 | AG112: 3.53305857 | AH112: 3.603719742 | AI112: 3.603719742 | AJ112: 3.603719742 | AK112: 3.603719742 | AL112: 3.675794136 | AM112: 3.675794136 | AN112: 3.675794136 | AO112: 3.675794136 | AP112: =$F110 * AP111 -> 3.749310019 | AQ112: 3.749310019 | AR112: 3.749310019 | AS112: 3.749310019 | AT112: 3.82429622 | AU112: 3.82429622 | AV112: 3.82429622 | AW112: 3.82429622 | AX112: 3.900782144 | AY112: 3.900782144 | AZ112: 3.900782144 | BA112: 3.900782144 | BB112: 3.978797787 | BC112: 3.978797787 | BD112: 3.978797787 | BE112: 3.978797787 | BF112: 4.058373743 | BG112: 4.058373743 | BH112: 4.058373743 | BI112: 4.058373743 | BJ112: 4.139541217 | BK112: 4.139541217 | BL112: 4.139541217 | BM112: 4.139541217 | BN112: 4.222332042 | BO112: 4.222332042 | BP112: 4.222332042 | BQ112: 4.222332042 | BR112: 4.306778683 | BS112: 4.306778683 | BT112: 4.306778683 | BU112: 4.306778683 | BV112: =$F110 * BV111 -> 4.392914256 | BW112: 4.392914256 | BX112: 4.392914256 | BY112: 4.392914256 | BZ112: 4.480772541 | CA112: 4.480772541 | CB112: 4.480772541 | CC112: 4.480772541 | CD112: 4.570387992 | CE112: 4.570387992 | CF112: 4.570387992 | CG112: 4.570387992 | CH112: 4.661795752 | CI112: 4.661795752 | CJ112: 4.661795752 | CK112: 4.661795752 | CL112: 4.755031667 | CM112: 4.755031667 | CN112: 4.755031667 | CO112: 4.755031667 | CP112: 4.8501323 | CQ112: 4.8501323 | CR112: 4.8501323 | CS112: 4.8501323 | CT112: 4.947134946 | CU112: 4.947134946 | CV112: 4.947134946 | CW112: 4.947134946 | CX112: 5.046077645 | CY112: 5.046077645 | CZ112: 5.046077645 | DA112: 5.046077645 | DB112: =$F110 * DB111 -> 5.146999198 | DC112: 5.146999198 | DD112: 5.146999198 | DE112: 5.146999198 | DF112: 5.249939182 | DG112: 5.249939182 | DH112: 5.249939182 | DI112: 5.249939182 | DJ112: 5.354937966 | DK112: 5.354937966 | DL112: 5.354937966 | DM112: 5.354937966 | DN112: 5.462036725 | DO112: 5.462036725 | DP112: 5.462036725 | DQ112: 5.462036725 | DR112: 5.57127746 | DS112: 5.57127746 | DT112: 5.57127746 | DU112: 5.57127746 | DV112: 5.682703009 | DW112: 5.682703009 | DX112: 5.682703009 | DY112: 5.682703009 | DZ112: 5.796357069 | EA112: 5.796357069 | EB112: 5.796357069 | EC112: 5.796357069 | ED112: 5.912284211 | EE112: 5.912284211 | EF112: 5.912284211 | EG112: 5.912284211 | EH112: =$F110 * EH111 -> 6.030529895 | EI112: 6.030529895
E114: =E$30 -> Visitors - Culture - Evening Parking | F114: =F$30 -> 176295 | G114: hours p/y
E115: =E$47 -> Model Periods per year | F115: =F$47 -> 4 | G115: quarters
E116: =C$109 & " parking hours per period" -> Visitors - Culture - Evening Parking parking hours per period | F116: =F114 / F115 -> 44073.75 | G116: hours/quarter
E118: =E$116 -> Visitors - Culture - Evening Parking parking hours per period | F118: =F$116 -> 44073.75 | G118: =G$116 -> hours/quarter
E119: =E$51 -> Units in thousand conversion to Cash Flows | F119: =F$51 -> 1000 | G119: units / 000s
E120: =E$112 -> Visitors - Culture - Evening Parking Revenue per hour | F120: 0 | G120: kn p/h | H120: 0 | I120: 0 | J120: 3.2 | K120: 3.2 | L120: 3.2 | M120: 3.2 | N120: 3.264 | O120: 3.264 | P120: 3.264 | Q120: 3.264 | R120: 3.32928 | S120: 3.32928 | T120: 3.32928 | U120: 3.32928 | V120: 3.3958656 | W120: 3.3958656 | X120: 3.3958656 | Y120: 3.3958656 | Z120: 3.463782912 | AA120: 3.463782912 | AB120: 3.463782912 | AC120: 3.463782912 | AD120: 3.53305857 | AE120: 3.53305857 | AF120: 3.53305857 | AG120: 3.53305857 | AH120: 3.603719742 | AI120: 3.603719742 | AJ120: 3.603719742 | AK120: =AK$112 -> 3.603719742 | AL120: 3.675794136 | AM120: 3.675794136 | AN120: 3.675794136 | AO120: 3.675794136 | AP120: 3.749310019 | AQ120: 3.749310019 | AR120: 3.749310019 | AS120: 3.749310019 | AT120: 3.82429622 | AU120: 3.82429622 | AV120: 3.82429622 | AW120: 3.82429622 | AX120: 3.900782144 | AY120: 3.900782144 | AZ120: 3.900782144 | BA120: 3.900782144 | BB120: 3.978797787 | BC120: 3.978797787 | BD120: 3.978797787 | BE120: 3.978797787 | BF120: 4.058373743 | BG120: 4.058373743 | BH120: 4.058373743 | BI120: 4.058373743 | BJ120: 4.139541217 | BK120: 4.139541217 | BL120: 4.139541217 | BM120: 4.139541217 | BN120: 4.222332042 | BO120: 4.222332042 | BP120: 4.222332042 | BQ120: =BQ$112 -> 4.222332042 | BR120: 4.306778683 | BS120: 4.306778683 | BT120: 4.306778683 | BU120: 4.306778683 | BV120: 4.392914256 | BW120: 4.392914256 | BX120: 4.392914256 | BY120: 4.392914256 | BZ120: 4.480772541 | CA120: 4.480772541 | CB120: 4.480772541 | CC120: 4.480772541 | CD120: 4.570387992 | CE120: 4.570387992 | CF120: 4.570387992 | CG120: 4.570387992 | CH120: 4.661795752 | CI120: 4.661795752 | CJ120: 4.661795752 | CK120: 4.661795752 | CL120: 4.755031667 | CM120: 4.755031667 | CN120: 4.755031667 | CO120: 4.755031667 | CP120: 4.8501323 | CQ120: 4.8501323 | CR120: 4.8501323 | CS120: 4.8501323 | CT120: 4.947134946 | CU120: 4.947134946 | CV120: 4.947134946 | CW120: =CW$112 -> 4.947134946 | CX120: 5.046077645 | CY120: 5.046077645 | CZ120: 5.046077645 | DA120: 5.046077645 | DB120: 5.146999198 | DC120: 5.146999198 | DD120: 5.146999198 | DE120: 5.146999198 | DF120: 5.249939182 | DG120: 5.249939182 | DH120: 5.249939182 | DI120: 5.249939182 | DJ120: 5.354937966 | DK120: 5.354937966 | DL120: 5.354937966 | DM120: 5.354937966 | DN120: 5.462036725 | DO120: 5.462036725 | DP120: 5.462036725 | DQ120: 5.462036725 | DR120: 5.57127746 | DS120: 5.57127746 | DT120: 5.57127746 | DU120: 5.57127746 | DV120: 5.682703009 | DW120: 5.682703009 | DX120: 5.682703009 | DY120: 5.682703009 | DZ120: 5.796357069 | EA120: 5.796357069 | EB120: 5.796357069 | EC120: =EC$112 -> 5.796357069 | ED120: 5.912284211 | EE120: 5.912284211 | EF120: 5.912284211 | EG120: 5.912284211 | EH120: 6.030529895 | EI120: 6.030529895
E121: =E$53 -> Contractual Operation period fraction | F121: =F$53 -> 0 | G121: partial factor | H121: 120 | I121: 0 | J121: 0 | K121: 0 | L121: 0 | M121: 0 | N121: 0 | O121: 0 | P121: 0 | Q121: 0 | R121: 0 | S121: 0.3296703297 | T121: 1 | U121: 1 | V121: 1 | W121: 1 | X121: 1 | Y121: 1 | Z121: 1 | AA121: 1 | AB121: 1 | AC121: 1 | AD121: 1 | AE121: 1 | AF121: 1 | AG121: 1 | AH121: 1 | AI121: 1 | AJ121: 1 | AK121: 1 | AL121: 1 | AM121: 1 | AN121: 1 | AO121: 1 | AP121: 1 | AQ121: 1 | AR121: 1 | AS121: 1 | AT121: 1 | AU121: 1 | AV121: 1 | AW121: 1 | AX121: 1 | AY121: 1 | AZ121: 1 | BA121: 1 | BB121: 1 | BC121: 1 | BD121: 1 | BE121: 1 | BF121: 1 | BG121: 1 | BH121: 1 | BI121: 1 | BJ121: 1 | BK121: 1 | BL121: 1 | BM121: 1 | BN121: 1 | BO121: 1 | BP121: 1 | BQ121: 1 | BR121: =BR$53 -> 1 | BS121: 1 | BT121: 1 | BU121: 1 | BV121: 1 | BW121: 1 | BX121: 1 | BY121: 1 | BZ121: 1 | CA121: 1 | CB121: 1 | CC121: 1 | CD121: 1 | CE121: 1 | CF121: 1 | CG121: 1 | CH121: 1 | CI121: 1 | CJ121: 1 | CK121: 1 | CL121: 1 | CM121: 1 | CN121: 1 | CO121: 1 | CP121: 1 | CQ121: 1 | CR121: 1 | CS121: 1 | CT121: 1 | CU121: 1 | CV121: 1 | CW121: 1 | CX121: 1 | CY121: 1 | CZ121: 1 | DA121: 1 | DB121: 1 | DC121: 1 | DD121: 1 | DE121: 1 | DF121: 1 | DG121: 1 | DH121: 1 | DI121: 1 | DJ121: 1 | DK121: 1 | DL121: 1 | DM121: 1 | DN121: 1 | DO121: 1 | DP121: 1 | DQ121: 1 | DR121: 1 | DS121: 1 | DT121: 1 | DU121: 1 | DV121: 1 | DW121: 1 | DX121: 1 | DY121: 1 | DZ121: 1 | EA121: 1 | EB121: 1 | EC121: 1 | ED121: =ED$53 -> 1 | EE121: 1 | EF121: 1 | EG121: 1 | EH121: 1 | EI121: 0.6703296703
E122: =E$9 -> Parking garage ramp up and realisation | F122: 0 | G122: % | H122: 0 | I122: 0 | J122: 0 | K122: 0 | L122: 0 | M122: 0 | N122: 0 | O122: 0 | P122: 0 | Q122: 0 | R122: 0 | S122: 0.55 | T122: 0.55 | U122: 0.55 | V122: 0.85 | W122: 0.85 | X122: 0.85 | Y122: 0.85 | Z122: 0.85 | AA122: 0.85 | AB122: 0.85 | AC122: 0.85 | AD122: 0.85 | AE122: 0.85 | AF122: 0.85 | AG122: 0.85 | AH122: 1 | AI122: 1 | AJ122: 1 | AK122: =AK$9 -> 1 | AL122: 1 | AM122: 1 | AN122: 1 | AO122: 1 | AP122: 1 | AQ122: 1 | AR122: 1 | AS122: 1 | AT122: 1 | AU122: 1 | AV122: 1 | AW122: 1 | AX122: 1 | AY122: 1 | AZ122: 1 | BA122: 1 | BB122: 1 | BC122: 1 | BD122: 1 | BE122: 1 | BF122: 1.1 | BG122: 1.1 | BH122: 1.1 | BI122: 1.1 | BJ122: 1.1 | BK122: 1.1 | BL122: 1.1 | BM122: 1.1 | BN122: 1.1 | BO122: 1.1 | BP122: 1.1 | BQ122: =BQ$9 -> 1.1 | BR122: 1.1 | BS122: 1.1 | BT122: 1.1 | BU122: 1.1 | BV122: 1.1 | BW122: 1.1 | BX122: 1.1 | BY122: 1.1 | BZ122: 1.2 | CA122: 1.2 | CB122: 1.2 | CC122: 1.2 | CD122: 1.2 | CE122: 1.2 | CF122: 1.2 | CG122: 1.2 | CH122: 1.2 | CI122: 1.2 | CJ122: 1.2 | CK122: 1.2 | CL122: 1.2 | CM122: 1.2 | CN122: 1.2 | CO122: 1.2 | CP122: 1.2 | CQ122: 1.2 | CR122: 1.2 | CS122: 1.2 | CT122: 1.3 | CU122: 1.3 | CV122: 1.3 | CW122: =CW$9 -> 1.3 | CX122: 1.3 | CY122: 1.3 | CZ122: 1.3 | DA122: 1.3 | DB122: 1.3 | DC122: 1.3 | DD122: 1.3 | DE122: 1.3 | DF122: 1.3 | DG122: 1.3 | DH122: 1.3 | DI122: 1.3 | DJ122: 1.3 | DK122: 1.3 | DL122: 1.3 | DM122: 1.3 | DN122: 1.3 | DO122: 1.3 | DP122: 1.3 | DQ122: 1.3 | DR122: 1.3 | DS122: 1.3 | DT122: 1.3 | DU122: 1.3 | DV122: 1.3 | DW122: 1.3 | DX122: 1.3 | DY122: 1.3 | DZ122: 1.3 | EA122: 1.3 | EB122: 1.3 | EC122: =EC$9 -> 1.3 | ED122: 1.3 | EE122: 1.3 | EF122: 1.3 | EG122: 1.3 | EH122: 1.3 | EI122: 1.3
E123: =C$109 & " Total Revenue" -> Visitors - Culture - Evening Parking Total Revenue | G123: =SMU -> '000 HRK | H123: =SUM(J$123:EI$123) -> 27773.69665 | J123: =J120 * $F118 * J121 * J122 / $F119 -> 0 | K123: 0 | L123: 0 | M123: 0 | N123: 0 | O123: 0 | P123: 0 | Q123: 0 | R123: 0 | S123: 26.60558898 | T123: 80.70361992 | U123: 80.70361992 | V123: 127.2182518 | W123: 127.2182518 | X123: 127.2182518 | Y123: 127.2182518 | Z123: 129.7626168 | AA123: 129.7626168 | AB123: 129.7626168 | AC123: 129.7626168 | AD123: 132.3578691 | AE123: 132.3578691 | AF123: 132.3578691 | AG123: 132.3578691 | AH123: 158.829443 | AI123: 158.829443 | AJ123: 158.829443 | AK123: 158.829443 | AL123: 162.0060318 | AM123: 162.0060318 | AN123: 162.0060318 | AO123: 162.0060318 | AP123: =AP120 * $F118 * AP121 * AP122 / $F119 -> 165.2461525 | AQ123: 165.2461525 | AR123: 165.2461525 | AS123: 165.2461525 | AT123: 168.5510755 | AU123: 168.5510755 | AV123: 168.5510755 | AW123: 168.5510755 | AX123: 171.922097 | AY123: 171.922097 | AZ123: 171.922097 | BA123: 171.922097 | BB123: 175.360539 | BC123: 175.360539 | BD123: 175.360539 | BE123: 175.360539 | BF123: 196.7545247 | BG123: 196.7545247 | BH123: 196.7545247 | BI123: 196.7545247 | BJ123: 200.6896152 | BK123: 200.6896152 | BL123: 200.6896152 | BM123: 200.6896152 | BN123: 204.7034075 | BO123: 204.7034075 | BP123: 204.7034075 | BQ123: 204.7034075 | BR123: 208.7974757 | BS123: 208.7974757 | BT123: 208.7974757 | BU123: 208.7974757 | BV123: =BV120 * $F118 * BV121 * BV122 / $F119 -> 212.9734252 | BW123: 212.9734252 | BX123: 212.9734252 | BY123: 212.9734252 | BZ123: 236.9813386 | CA123: 236.9813386 | CB123: 236.9813386 | CC123: 236.9813386 | CD123: 241.7209653 | CE123: 241.7209653 | CF123: 241.7209653 | CG123: 241.7209653 | CH123: 246.5553846 | CI123: 246.5553846 | CJ123: 246.5553846 | CK123: 246.5553846 | CL123: 251.4864923 | CM123: 251.4864923 | CN123: 251.4864923 | CO123: 251.4864923 | CP123: 256.5162222 | CQ123: 256.5162222 | CR123: 256.5162222 | CS123: 256.5162222 | CT123: 283.4504255 | CU123: 283.4504255 | CV123: 283.4504255 | CW123: 283.4504255 | CX123: 289.119434 | CY123: 289.119434 | CZ123: 289.119434 | DA123: 289.119434 | DB123: =DB120 * $F118 * DB121 * DB122 / $F119 -> 294.9018227 | DC123: 294.9018227 | DD123: 294.9018227 | DE123: 294.9018227 | DF123: 300.7998591 | DG123: 300.7998591 | DH123: 300.7998591 | DI123: 300.7998591 | DJ123: 306.8158563 | DK123: 306.8158563 | DL123: 306.8158563 | DM123: 306.8158563 | DN123: 312.9521735 | DO123: 312.9521735 | DP123: 312.9521735 | DQ123: 312.9521735 | DR123: 319.2112169 | DS123: 319.2112169 | DT123: 319.2112169 | DU123: 319.2112169 | DV123: 325.5954413 | DW123: 325.5954413 | DX123: 325.5954413 | DY123: 325.5954413 | DZ123: 332.1073501 | EA123: 332.1073501 | EB123: 332.1073501 | EC123: 332.1073501 | ED123: 338.7494971 | EE123: 338.7494971 | EF123: 338.7494971 | EG123: 338.7494971 | EH123: =EH120 * $F118 * EH121 * EH122 / $F119 -> 345.524487 | EI123: 231.6153155
C126: Visitors - Shopping - Day Parking
E127: =E$18 -> Visitors - Shopping - Day Parking | F127: =F$18 -> 4.8 | G127: kn p/h
E128: =E$43 -> CPI Indexation | F128: =F$43 -> 0 | G128: index | H128: 0 | I128: 0 | J128: 1 | K128: 1 | L128: 1 | M128: 1 | N128: 1.02 | O128: 1.02 | P128: 1.02 | Q128: 1.02 | R128: 1.0404 | S128: 1.0404 | T128: 1.0404 | U128: 1.0404 | V128: 1.061208 | W128: 1.061208 | X128: 1.061208 | Y128: 1.061208 | Z128: 1.08243216 | AA128: 1.08243216 | AB128: 1.08243216 | AC128: 1.08243216 | AD128: 1.104080803 | AE128: 1.104080803 | AF128: 1.104080803 | AG128: 1.104080803 | AH128: 1.126162419 | AI128: 1.126162419 | AJ128: 1.126162419 | AK128: 1.126162419 | AL128: 1.148685668 | AM128: 1.148685668 | AN128: 1.148685668 | AO128: 1.148685668 | AP128: 1.171659381 | AQ128: 1.171659381 | AR128: 1.171659381 | AS128: 1.171659381 | AT128: 1.195092569 | AU128: 1.195092569 | AV128: 1.195092569 | AW128: 1.195092569 | AX128: 1.21899442 | AY128: 1.21899442 | AZ128: 1.21899442 | BA128: 1.21899442 | BB128: 1.243374308 | BC128: 1.243374308 | BD128: 1.243374308 | BE128: 1.243374308 | BF128: 1.268241795 | BG128: 1.268241795 | BH128: 1.268241795 | BI128: 1.268241795 | BJ128: 1.29360663 | BK128: 1.29360663 | BL128: 1.29360663 | BM128: 1.29360663 | BN128: 1.319478763 | BO128: 1.319478763 | BP128: 1.319478763 | BQ128: 1.319478763 | BR128: =BR$43 -> 1.345868338 | BS128: 1.345868338 | BT128: 1.345868338 | BU128: 1.345868338 | BV128: 1.372785705 | BW128: 1.372785705 | BX128: 1.372785705 | BY128: 1.372785705 | BZ128: 1.400241419 | CA128: 1.400241419 | CB128: 1.400241419 | CC128: 1.400241419 | CD128: 1.428246248 | CE128: 1.428246248 | CF128: 1.428246248 | CG128: 1.428246248 | CH128: 1.456811173 | CI128: 1.456811173 | CJ128: 1.456811173 | CK128: 1.456811173 | CL128: 1.485947396 | CM128: 1.485947396 | CN128: 1.485947396 | CO128: 1.485947396 | CP128: 1.515666344 | CQ128: 1.515666344 | CR128: 1.515666344 | CS128: 1.515666344 | CT128: 1.545979671 | CU128: 1.545979671 | CV128: 1.545979671 | CW128: 1.545979671 | CX128: 1.576899264 | CY128: 1.576899264 | CZ128: 1.576899264 | DA128: 1.576899264 | DB128: 1.608437249 | DC128: 1.608437249 | DD128: 1.608437249 | DE128: 1.608437249 | DF128: 1.640605994 | DG128: 1.640605994 | DH128: 1.640605994 | DI128: 1.640605994 | DJ128: 1.673418114 | DK128: 1.673418114 | DL128: 1.673418114 | DM128: 1.673418114 | DN128: 1.706886477 | DO128: 1.706886477 | DP128: 1.706886477 | DQ128: 1.706886477 | DR128: 1.741024206 | DS128: 1.741024206 | DT128: 1.741024206 | DU128: 1.741024206 | DV128: 1.77584469 | DW128: 1.77584469 | DX128: 1.77584469 | DY128: 1.77584469 | DZ128: 1.811361584 | EA128: 1.811361584 | EB128: 1.811361584 | EC128: 1.811361584 | ED128: =ED$43 -> 1.847588816 | EE128: 1.847588816 | EF128: 1.847588816 | EG128: 1.847588816 | EH128: 1.884540592 | EI128: 1.884540592
E129: =C$126 & " Revenue per hour" -> Visitors - Shopping - Day Parking Revenue per hour | G129: kn p/h | J129: =$F127 * J128 -> 4.8 | K129: 4.8 | L129: 4.8 | M129: 4.8 | N129: 4.896 | O129: 4.896 | P129: 4.896 | Q129: 4.896 | R129: 4.99392 | S129: 4.99392 | T129: 4.99392 | U129: 4.99392 | V129: 5.0937984 | W129: 5.0937984 | X129: 5.0937984 | Y129: 5.0937984 | Z129: 5.195674368 | AA129: 5.195674368 | AB129: 5.195674368 | AC129: 5.195674368 | AD129: 5.299587855 | AE129: 5.299587855 | AF129: 5.299587855 | AG129: 5.299587855 | AH129: 5.405579612 | AI129: 5.405579612 | AJ129: 5.405579612 | AK129: 5.405579612 | AL129: 5.513691205 | AM129: 5.513691205 | AN129: 5.513691205 | AO129: 5.513691205 | AP129: =$F127 * AP128 -> 5.623965029 | AQ129: 5.623965029 | AR129: 5.623965029 | AS129: 5.623965029 | AT129: 5.736444329 | AU129: 5.736444329 | AV129: 5.736444329 | AW129: 5.736444329 | AX129: 5.851173216 | AY129: 5.851173216 | AZ129: 5.851173216 | BA129: 5.851173216 | BB129: 5.96819668 | BC129: 5.96819668 | BD129: 5.96819668 | BE129: 5.96819668 | BF129: 6.087560614 | BG129: 6.087560614 | BH129: 6.087560614 | BI129: 6.087560614 | BJ129: 6.209311826 | BK129: 6.209311826 | BL129: 6.209311826 | BM129: 6.209311826 | BN129: 6.333498063 | BO129: 6.333498063 | BP129: 6.333498063 | BQ129: 6.333498063 | BR129: 6.460168024 | BS129: 6.460168024 | BT129: 6.460168024 | BU129: 6.460168024 | BV129: =$F127 * BV128 -> 6.589371384 | BW129: 6.589371384 | BX129: 6.589371384 | BY129: 6.589371384 | BZ129: 6.721158812 | CA129: 6.721158812 | CB129: 6.721158812 | CC129: 6.721158812 | CD129: 6.855581988 | CE129: 6.855581988 | CF129: 6.855581988 | CG129: 6.855581988 | CH129: 6.992693628 | CI129: 6.992693628 | CJ129: 6.992693628 | CK129: 6.992693628 | CL129: 7.132547501 | CM129: 7.132547501 | CN129: 7.132547501 | CO129: 7.132547501 | CP129: 7.275198451 | CQ129: 7.275198451 | CR129: 7.275198451 | CS129: 7.275198451 | CT129: 7.42070242 | CU129: 7.42070242 | CV129: 7.42070242 | CW129: 7.42070242 | CX129: 7.569116468 | CY129: 7.569116468 | CZ129: 7.569116468 | DA129: 7.569116468 | DB129: =$F127 * DB128 -> 7.720498797 | DC129: 7.720498797 | DD129: 7.720498797 | DE129: 7.720498797 | DF129: 7.874908773 | DG129: 7.874908773 | DH129: 7.874908773 | DI129: 7.874908773 | DJ129: 8.032406949 | DK129: 8.032406949 | DL129: 8.032406949 | DM129: 8.032406949 | DN129: 8.193055088 | DO129: 8.193055088 | DP129: 8.193055088 | DQ129: 8.193055088 | DR129: 8.35691619 | DS129: 8.35691619 | DT129: 8.35691619 | DU129: 8.35691619 | DV129: 8.524054513 | DW129: 8.524054513 | DX129: 8.524054513 | DY129: 8.524054513 | DZ129: 8.694535604 | EA129: 8.694535604 | EB129: 8.694535604 | EC129: 8.694535604 | ED129: 8.868426316 | EE129: 8.868426316 | EF129: 8.868426316 | EG129: 8.868426316 | EH129: =$F127 * EH128 -> 9.045794842 | EI129: 9.045794842
E131: =E$31 -> Visitors - Shopping - Day Parking | F131: =F$31 -> 193450 | G131: hours p/y
E132: =E$47 -> Model Periods per year | F132: =F$47 -> 4 | G132: quarters
E133: =C$126 & " parking hours per period" -> Visitors - Shopping - Day Parking parking hours per period | F133: =F131 / F132 -> 48362.5 | G133: hours/quarter
E135: =E$133 -> Visitors - Shopping - Day Parking parking hours per period | F135: =F$133 -> 48362.5 | G135: =G$133 -> hours/quarter
E136: =E$51 -> Units in thousand conversion to Cash Flows | F136: =F$51 -> 1000 | G136: units / 000s
E137: =E$129 -> Visitors - Shopping - Day Parking Revenue per hour | F137: 0 | G137: kn p/h | H137: 0 | I137: 0 | J137: 4.8 | K137: 4.8 | L137: 4.8 | M137: 4.8 | N137: 4.896 | O137: 4.896 | P137: 4.896 | Q137: 4.896 | R137: 4.99392 | S137: 4.99392 | T137: 4.99392 | U137: 4.99392 | V137: 5.0937984 | W137: 5.0937984 | X137: 5.0937984 | Y137: 5.0937984 | Z137: 5.195674368 | AA137: 5.195674368 | AB137: 5.195674368 | AC137: 5.195674368 | AD137: 5.299587855 | AE137: 5.299587855 | AF137: 5.299587855 | AG137: 5.299587855 | AH137: 5.405579612 | AI137: 5.405579612 | AJ137: 5.405579612 | AK137: =AK$129 -> 5.405579612 | AL137: 5.513691205 | AM137: 5.513691205 | AN137: 5.513691205 | AO137: 5.513691205 | AP137: 5.623965029 | AQ137: 5.623965029 | AR137: 5.623965029 | AS137: 5.623965029 | AT137: 5.736444329 | AU137: 5.736444329 | AV137: 5.736444329 | AW137: 5.736444329 | AX137: 5.851173216 | AY137: 5.851173216 | AZ137: 5.851173216 | BA137: 5.851173216 | BB137: 5.96819668 | BC137: 5.96819668 | BD137: 5.96819668 | BE137: 5.96819668 | BF137: 6.087560614 | BG137: 6.087560614 | BH137: 6.087560614 | BI137: 6.087560614 | BJ137: 6.209311826 | BK137: 6.209311826 | BL137: 6.209311826 | BM137: 6.209311826 | BN137: 6.333498063 | BO137: 6.333498063 | BP137: 6.333498063 | BQ137: =BQ$129 -> 6.333498063 | BR137: 6.460168024 | BS137: 6.460168024 | BT137: 6.460168024 | BU137: 6.460168024 | BV137: 6.589371384 | BW137: 6.589371384 | BX137: 6.589371384 | BY137: 6.589371384 | BZ137: 6.721158812 | CA137: 6.721158812 | CB137: 6.721158812 | CC137: 6.721158812 | CD137: 6.855581988 | CE137: 6.855581988 | CF137: 6.855581988 | CG137: 6.855581988 | CH137: 6.992693628 | CI137: 6.992693628 | CJ137: 6.992693628 | CK137: 6.992693628 | CL137: 7.132547501 | CM137: 7.132547501 | CN137: 7.132547501 | CO137: 7.132547501 | CP137: 7.275198451 | CQ137: 7.275198451 | CR137: 7.275198451 | CS137: 7.275198451 | CT137: 7.42070242 | CU137: 7.42070242 | CV137: 7.42070242 | CW137: =CW$129 -> 7.42070242 | CX137: 7.569116468 | CY137: 7.569116468 | CZ137: 7.569116468 | DA137: 7.569116468 | DB137: 7.720498797 | DC137: 7.720498797 | DD137: 7.720498797 | DE137: 7.720498797 | DF137: 7.874908773 | DG137: 7.874908773 | DH137: 7.874908773 | DI137: 7.874908773 | DJ137: 8.032406949 | DK137: 8.032406949 | DL137: 8.032406949 | DM137: 8.032406949 | DN137: 8.193055088 | DO137: 8.193055088 | DP137: 8.193055088 | DQ137: 8.193055088 | DR137: 8.35691619 | DS137: 8.35691619 | DT137: 8.35691619 | DU137: 8.35691619 | DV137: 8.524054513 | DW137: 8.524054513 | DX137: 8.524054513 | DY137: 8.524054513 | DZ137: 8.694535604 | EA137: 8.694535604 | EB137: 8.694535604 | EC137: =EC$129 -> 8.694535604 | ED137: 8.868426316 | EE137: 8.868426316 | EF137: 8.868426316 | EG137: 8.868426316 | EH137: 9.045794842 | EI137: 9.045794842
E138: =E$53 -> Contractual Operation period fraction | F138: =F$53 -> 0 | G138: partial factor | H138: 120 | I138: 0 | J138: 0 | K138: 0 | L138: 0 | M138: 0 | N138: 0 | O138: 0 | P138: 0 | Q138: 0 | R138: 0 | S138: 0.3296703297 | T138: 1 | U138: 1 | V138: 1 | W138: 1 | X138: 1 | Y138: 1 | Z138: 1 | AA138: 1 | AB138: 1 | AC138: 1 | AD138: 1 | AE138: 1 | AF138: 1 | AG138: 1 | AH138: 1 | AI138: 1 | AJ138: 1 | AK138: 1 | AL138: 1 | AM138: 1 | AN138: 1 | AO138: 1 | AP138: 1 | AQ138: 1 | AR138: 1 | AS138: 1 | AT138: 1 | AU138: 1 | AV138: 1 | AW138: 1 | AX138: 1 | AY138: 1 | AZ138: 1 | BA138: 1 | BB138: 1 | BC138: 1 | BD138: 1 | BE138: 1 | BF138: 1 | BG138: 1 | BH138: 1 | BI138: 1 | BJ138: 1 | BK138: 1 | BL138: 1 | BM138: 1 | BN138: 1 | BO138: 1 | BP138: 1 | BQ138: 1 | BR138: =BR$53 -> 1 | BS138: 1 | BT138: 1 | BU138: 1 | BV138: 1 | BW138: 1 | BX138: 1 | BY138: 1 | BZ138: 1 | CA138: 1 | CB138: 1 | CC138: 1 | CD138: 1 | CE138: 1 | CF138: 1 | CG138: 1 | CH138: 1 | CI138: 1 | CJ138: 1 | CK138: 1 | CL138: 1 | CM138: 1 | CN138: 1 | CO138: 1 | CP138: 1 | CQ138: 1 | CR138: 1 | CS138: 1 | CT138: 1 | CU138: 1 | CV138: 1 | CW138: 1 | CX138: 1 | CY138: 1 | CZ138: 1 | DA138: 1 | DB138: 1 | DC138: 1 | DD138: 1 | DE138: 1 | DF138: 1 | DG138: 1 | DH138: 1 | DI138: 1 | DJ138: 1 | DK138: 1 | DL138: 1 | DM138: 1 | DN138: 1 | DO138: 1 | DP138: 1 | DQ138: 1 | DR138: 1 | DS138: 1 | DT138: 1 | DU138: 1 | DV138: 1 | DW138: 1 | DX138: 1 | DY138: 1 | DZ138: 1 | EA138: 1 | EB138: 1 | EC138: 1 | ED138: =ED$53 -> 1 | EE138: 1 | EF138: 1 | EG138: 1 | EH138: 1 | EI138: 0.6703296703
E139: =E$9 -> Parking garage ramp up and realisation | F139: 0 | G139: % | H139: 0 | I139: 0 | J139: 0 | K139: 0 | L139: 0 | M139: 0 | N139: 0 | O139: 0 | P139: 0 | Q139: 0 | R139: 0 | S139: 0.55 | T139: 0.55 | U139: 0.55 | V139: 0.85 | W139: 0.85 | X139: 0.85 | Y139: 0.85 | Z139: 0.85 | AA139: 0.85 | AB139: 0.85 | AC139: 0.85 | AD139: 0.85 | AE139: 0.85 | AF139: 0.85 | AG139: 0.85 | AH139: 1 | AI139: 1 | AJ139: 1 | AK139: =AK$9 -> 1 | AL139: 1 | AM139: 1 | AN139: 1 | AO139: 1 | AP139: 1 | AQ139: 1 | AR139: 1 | AS139: 1 | AT139: 1 | AU139: 1 | AV139: 1 | AW139: 1 | AX139: 1 | AY139: 1 | AZ139: 1 | BA139: 1 | BB139: 1 | BC139: 1 | BD139: 1 | BE139: 1 | BF139: 1.1 | BG139: 1.1 | BH139: 1.1 | BI139: 1.1 | BJ139: 1.1 | BK139: 1.1 | BL139: 1.1 | BM139: 1.1 | BN139: 1.1 | BO139: 1.1 | BP139: 1.1 | BQ139: =BQ$9 -> 1.1 | BR139: 1.1 | BS139: 1.1 | BT139: 1.1 | BU139: 1.1 | BV139: 1.1 | BW139: 1.1 | BX139: 1.1 | BY139: 1.1 | BZ139: 1.2 | CA139: 1.2 | CB139: 1.2 | CC139: 1.2 | CD139: 1.2 | CE139: 1.2 | CF139: 1.2 | CG139: 1.2 | CH139: 1.2 | CI139: 1.2 | CJ139: 1.2 | CK139: 1.2 | CL139: 1.2 | CM139: 1.2 | CN139: 1.2 | CO139: 1.2 | CP139: 1.2 | CQ139: 1.2 | CR139: 1.2 | CS139: 1.2 | CT139: 1.3 | CU139: 1.3 | CV139: 1.3 | CW139: =CW$9 -> 1.3 | CX139: 1.3 | CY139: 1.3 | CZ139: 1.3 | DA139: 1.3 | DB139: 1.3 | DC139: 1.3 | DD139: 1.3 | DE139: 1.3 | DF139: 1.3 | DG139: 1.3 | DH139: 1.3 | DI139: 1.3 | DJ139: 1.3 | DK139: 1.3 | DL139: 1.3 | DM139: 1.3 | DN139: 1.3 | DO139: 1.3 | DP139: 1.3 | DQ139: 1.3 | DR139: 1.3 | DS139: 1.3 | DT139: 1.3 | DU139: 1.3 | DV139: 1.3 | DW139: 1.3 | DX139: 1.3 | DY139: 1.3 | DZ139: 1.3 | EA139: 1.3 | EB139: 1.3 | EC139: =EC$9 -> 1.3 | ED139: 1.3 | EE139: 1.3 | EF139: 1.3 | EG139: 1.3 | EH139: 1.3 | EI139: 1.3
E140: =C$126 & " Total Revenue" -> Visitors - Shopping - Day Parking Total Revenue | G140: =SMU -> '000 HRK | H140: =SUM(J$140:EI$140) -> 45714.46964 | J140: =J137 * $F135 * J138 * J139 / $F136 -> 0 | K140: 0 | L140: 0 | M140: 0 | N140: 0 | O140: 0 | P140: 0 | Q140: 0 | R140: 0 | S140: 43.79180796 | T140: 132.8351508 | U140: 132.8351508 | V140: 209.3965014 | W140: 209.3965014 | X140: 209.3965014 | Y140: 209.3965014 | Z140: 213.5844314 | AA140: 213.5844314 | AB140: 213.5844314 | AC140: 213.5844314 | AD140: 217.85612 | AE140: 217.85612 | AF140: 217.85612 | AG140: 217.85612 | AH140: 261.427344 | AI140: 261.427344 | AJ140: 261.427344 | AK140: 261.427344 | AL140: 266.6558909 | AM140: 266.6558909 | AN140: 266.6558909 | AO140: 266.6558909 | AP140: =AP137 * $F135 * AP138 * AP139 / $F136 -> 271.9890087 | AQ140: 271.9890087 | AR140: 271.9890087 | AS140: 271.9890087 | AT140: 277.4287889 | AU140: 277.4287889 | AV140: 277.4287889 | AW140: 277.4287889 | AX140: 282.9773647 | AY140: 282.9773647 | AZ140: 282.9773647 | BA140: 282.9773647 | BB140: 288.636912 | BC140: 288.636912 | BD140: 288.636912 | BE140: 288.636912 | BF140: 323.8506152 | BG140: 323.8506152 | BH140: 323.8506152 | BI140: 323.8506152 | BJ140: 330.3276275 | BK140: 330.3276275 | BL140: 330.3276275 | BM140: 330.3276275 | BN140: 336.9341801 | BO140: 336.9341801 | BP140: 336.9341801 | BQ140: 336.9341801 | BR140: 343.6728637 | BS140: 343.6728637 | BT140: 343.6728637 | BU140: 343.6728637 | BV140: =BV137 * $F135 * BV138 * BV139 / $F136 -> 350.5463209 | BW140: 350.5463209 | BX140: 350.5463209 | BY140: 350.5463209 | BZ140: 390.0624517 | CA140: 390.0624517 | CB140: 390.0624517 | CC140: 390.0624517 | CD140: 397.8637007 | CE140: 397.8637007 | CF140: 397.8637007 | CG140: 397.8637007 | CH140: 405.8209747 | CI140: 405.8209747 | CJ140: 405.8209747 | CK140: 405.8209747 | CL140: 413.9373942 | CM140: 413.9373942 | CN140: 413.9373942 | CO140: 413.9373942 | CP140: 422.2161421 | CQ140: 422.2161421 | CR140: 422.2161421 | CS140: 422.2161421 | CT140: 466.548837 | CU140: 466.548837 | CV140: 466.548837 | CW140: 466.548837 | CX140: 475.8798137 | CY140: 475.8798137 | CZ140: 475.8798137 | DA140: 475.8798137 | DB140: =DB137 * $F135 * DB138 * DB139 / $F136 -> 485.39741 | DC140: 485.39741 | DD140: 485.39741 | DE140: 485.39741 | DF140: 495.1053582 | DG140: 495.1053582 | DH140: 495.1053582 | DI140: 495.1053582 | DJ140: 505.0074654 | DK140: 505.0074654 | DL140: 505.0074654 | DM140: 505.0074654 | DN140: 515.1076147 | DO140: 515.1076147 | DP140: 515.1076147 | DQ140: 515.1076147 | DR140: 525.409767 | DS140: 525.409767 | DT140: 525.409767 | DU140: 525.409767 | DV140: 535.9179623 | DW140: 535.9179623 | DX140: 535.9179623 | DY140: 535.9179623 | DZ140: 546.6363216 | EA140: 546.6363216 | EB140: 546.6363216 | EC140: 546.6363216 | ED140: 557.569048 | EE140: 557.569048 | EF140: 557.569048 | EG140: 557.569048 | EH140: =EH137 * $F135 * EH138 * EH139 / $F136 -> 568.720429 | EI140: 381.2301777
C143: Visitors - Shopping - Evening Parking
E144: =E$19 -> Visitors - Shopping - Evening Parking | F144: =F$19 -> 3.2 | G144: kn p/h
E145: =E$43 -> CPI Indexation | F145: =F$43 -> 0 | G145: index | H145: 0 | I145: 0 | J145: 1 | K145: 1 | L145: 1 | M145: 1 | N145: 1.02 | O145: 1.02 | P145: 1.02 | Q145: 1.02 | R145: 1.0404 | S145: 1.0404 | T145: 1.0404 | U145: 1.0404 | V145: 1.061208 | W145: 1.061208 | X145: 1.061208 | Y145: 1.061208 | Z145: 1.08243216 | AA145: 1.08243216 | AB145: 1.08243216 | AC145: 1.08243216 | AD145: 1.104080803 | AE145: 1.104080803 | AF145: 1.104080803 | AG145: 1.104080803 | AH145: 1.126162419 | AI145: 1.126162419 | AJ145: 1.126162419 | AK145: 1.126162419 | AL145: 1.148685668 | AM145: 1.148685668 | AN145: 1.148685668 | AO145: 1.148685668 | AP145: 1.171659381 | AQ145: 1.171659381 | AR145: 1.171659381 | AS145: 1.171659381 | AT145: 1.195092569 | AU145: 1.195092569 | AV145: 1.195092569 | AW145: 1.195092569 | AX145: 1.21899442 | AY145: 1.21899442 | AZ145: 1.21899442 | BA145: 1.21899442 | BB145: 1.243374308 | BC145: 1.243374308 | BD145: 1.243374308 | BE145: 1.243374308 | BF145: 1.268241795 | BG145: 1.268241795 | BH145: 1.268241795 | BI145: 1.268241795 | BJ145: 1.29360663 | BK145: 1.29360663 | BL145: 1.29360663 | BM145: 1.29360663 | BN145: 1.319478763 | BO145: 1.319478763 | BP145: 1.319478763 | BQ145: 1.319478763 | BR145: =BR$43 -> 1.345868338 | BS145: 1.345868338 | BT145: 1.345868338 | BU145: 1.345868338 | BV145: 1.372785705 | BW145: 1.372785705 | BX145: 1.372785705 | BY145: 1.372785705 | BZ145: 1.400241419 | CA145: 1.400241419 | CB145: 1.400241419 | CC145: 1.400241419 | CD145: 1.428246248 | CE145: 1.428246248 | CF145: 1.428246248 | CG145: 1.428246248 | CH145: 1.456811173 | CI145: 1.456811173 | CJ145: 1.456811173 | CK145: 1.456811173 | CL145: 1.485947396 | CM145: 1.485947396 | CN145: 1.485947396 | CO145: 1.485947396 | CP145: 1.515666344 | CQ145: 1.515666344 | CR145: 1.515666344 | CS145: 1.515666344 | CT145: 1.545979671 | CU145: 1.545979671 | CV145: 1.545979671 | CW145: 1.545979671 | CX145: 1.576899264 | CY145: 1.576899264 | CZ145: 1.576899264 | DA145: 1.576899264 | DB145: 1.608437249 | DC145: 1.608437249 | DD145: 1.608437249 | DE145: 1.608437249 | DF145: 1.640605994 | DG145: 1.640605994 | DH145: 1.640605994 | DI145: 1.640605994 | DJ145: 1.673418114 | DK145: 1.673418114 | DL145: 1.673418114 | DM145: 1.673418114 | DN145: 1.706886477 | DO145: 1.706886477 | DP145: 1.706886477 | DQ145: 1.706886477 | DR145: 1.741024206 | DS145: 1.741024206 | DT145: 1.741024206 | DU145: 1.741024206 | DV145: 1.77584469 | DW145: 1.77584469 | DX145: 1.77584469 | DY145: 1.77584469 | DZ145: 1.811361584 | EA145: 1.811361584 | EB145: 1.811361584 | EC145: 1.811361584 | ED145: =ED$43 -> 1.847588816 | EE145: 1.847588816 | EF145: 1.847588816 | EG145: 1.847588816 | EH145: 1.884540592 | EI145: 1.884540592
E146: =C$143 & " Revenue per hour" -> Visitors - Shopping - Evening Parking Revenue per hour | G146: kn p/h | J146: =$F144 * J145 -> 3.2 | K146: 3.2 | L146: 3.2 | M146: 3.2 | N146: 3.264 | O146: 3.264 | P146: 3.264 | Q146: 3.264 | R146: 3.32928 | S146: 3.32928 | T146: 3.32928 | U146: 3.32928 | V146: 3.3958656 | W146: 3.3958656 | X146: 3.3958656 | Y146: 3.3958656 | Z146: 3.463782912 | AA146: 3.463782912 | AB146: 3.463782912 | AC146: 3.463782912 | AD146: 3.53305857 | AE146: 3.53305857 | AF146: 3.53305857 | AG146: 3.53305857 | AH146: 3.603719742 | AI146: 3.603719742 | AJ146: 3.603719742 | AK146: 3.603719742 | AL146: 3.675794136 | AM146: 3.675794136 | AN146: 3.675794136 | AO146: 3.675794136 | AP146: =$F144 * AP145 -> 3.749310019 | AQ146: 3.749310019 | AR146: 3.749310019 | AS146: 3.749310019 | AT146: 3.82429622 | AU146: 3.82429622 | AV146: 3.82429622 | AW146: 3.82429622 | AX146: 3.900782144 | AY146: 3.900782144 | AZ146: 3.900782144 | BA146: 3.900782144 | BB146: 3.978797787 | BC146: 3.978797787 | BD146: 3.978797787 | BE146: 3.978797787 | BF146: 4.058373743 | BG146: 4.058373743 | BH146: 4.058373743 | BI146: 4.058373743 | BJ146: 4.139541217 | BK146: 4.139541217 | BL146: 4.139541217 | BM146: 4.139541217 | BN146: 4.222332042 | BO146: 4.222332042 | BP146: 4.222332042 | BQ146: 4.222332042 | BR146: 4.306778683 | BS146: 4.306778683 | BT146: 4.306778683 | BU146: 4.306778683 | BV146: =$F144 * BV145 -> 4.392914256 | BW146: 4.392914256 | BX146: 4.392914256 | BY146: 4.392914256 | BZ146: 4.480772541 | CA146: 4.480772541 | CB146: 4.480772541 | CC146: 4.480772541 | CD146: 4.570387992 | CE146: 4.570387992 | CF146: 4.570387992 | CG146: 4.570387992 | CH146: 4.661795752 | CI146: 4.661795752 | CJ146: 4.661795752 | CK146: 4.661795752 | CL146: 4.755031667 | CM146: 4.755031667 | CN146: 4.755031667 | CO146: 4.755031667 | CP146: 4.8501323 | CQ146: 4.8501323 | CR146: 4.8501323 | CS146: 4.8501323 | CT146: 4.947134946 | CU146: 4.947134946 | CV146: 4.947134946 | CW146: 4.947134946 | CX146: 5.046077645 | CY146: 5.046077645 | CZ146: 5.046077645 | DA146: 5.046077645 | DB146: =$F144 * DB145 -> 5.146999198 | DC146: 5.146999198 | DD146: 5.146999198 | DE146: 5.146999198 | DF146: 5.249939182 | DG146: 5.249939182 | DH146: 5.249939182 | DI146: 5.249939182 | DJ146: 5.354937966 | DK146: 5.354937966 | DL146: 5.354937966 | DM146: 5.354937966 | DN146: 5.462036725 | DO146: 5.462036725 | DP146: 5.462036725 | DQ146: 5.462036725 | DR146: 5.57127746 | DS146: 5.57127746 | DT146: 5.57127746 | DU146: 5.57127746 | DV146: 5.682703009 | DW146: 5.682703009 | DX146: 5.682703009 | DY146: 5.682703009 | DZ146: 5.796357069 | EA146: 5.796357069 | EB146: 5.796357069 | EC146: 5.796357069 | ED146: 5.912284211 | EE146: 5.912284211 | EF146: 5.912284211 | EG146: 5.912284211 | EH146: =$F144 * EH145 -> 6.030529895 | EI146: 6.030529895
E148: =E$32 -> Visitors - Shopping - Evening Parking | F148: =F$32 -> 82855 | G148: hours p/y
E149: =E$47 -> Model Periods per year | F149: =F$47 -> 4 | G149: quarters
E150: =C$143 & " parking hours per period" -> Visitors - Shopping - Evening Parking parking hours per period | F150: =F148 / F149 -> 20713.75 | G150: hours/quarter
E152: =E$150 -> Visitors - Shopping - Evening Parking parking hours per period | F152: =F$150 -> 20713.75 | G152: =G$150 -> hours/quarter
E153: =E$51 -> Units in thousand conversion to Cash Flows | F153: =F$51 -> 1000 | G153: units / 000s
E154: =E$146 -> Visitors - Shopping - Evening Parking Revenue per hour | F154: 0 | G154: kn p/h | H154: 0 | I154: 0 | J154: 3.2 | K154: 3.2 | L154: 3.2 | M154: 3.2 | N154: 3.264 | O154: 3.264 | P154: 3.264 | Q154: 3.264 | R154: 3.32928 | S154: 3.32928 | T154: 3.32928 | U154: 3.32928 | V154: 3.3958656 | W154: 3.3958656 | X154: 3.3958656 | Y154: 3.3958656 | Z154: 3.463782912 | AA154: 3.463782912 | AB154: 3.463782912 | AC154: 3.463782912 | AD154: 3.53305857 | AE154: 3.53305857 | AF154: 3.53305857 | AG154: 3.53305857 | AH154: 3.603719742 | AI154: 3.603719742 | AJ154: 3.603719742 | AK154: =AK$146 -> 3.603719742 | AL154: 3.675794136 | AM154: 3.675794136 | AN154: 3.675794136 | AO154: 3.675794136 | AP154: 3.749310019 | AQ154: 3.749310019 | AR154: 3.749310019 | AS154: 3.749310019 | AT154: 3.82429622 | AU154: 3.82429622 | AV154: 3.82429622 | AW154: 3.82429622 | AX154: 3.900782144 | AY154: 3.900782144 | AZ154: 3.900782144 | BA154: 3.900782144 | BB154: 3.978797787 | BC154: 3.978797787 | BD154: 3.978797787 | BE154: 3.978797787 | BF154: 4.058373743 | BG154: 4.058373743 | BH154: 4.058373743 | BI154: 4.058373743 | BJ154: 4.139541217 | BK154: 4.139541217 | BL154: 4.139541217 | BM154: 4.139541217 | BN154: 4.222332042 | BO154: 4.222332042 | BP154: 4.222332042 | BQ154: =BQ$146 -> 4.222332042 | BR154: 4.306778683 | BS154: 4.306778683 | BT154: 4.306778683 | BU154: 4.306778683 | BV154: 4.392914256 | BW154: 4.392914256 | BX154: 4.392914256 | BY154: 4.392914256 | BZ154: 4.480772541 | CA154: 4.480772541 | CB154: 4.480772541 | CC154: 4.480772541 | CD154: 4.570387992 | CE154: 4.570387992 | CF154: 4.570387992 | CG154: 4.570387992 | CH154: 4.661795752 | CI154: 4.661795752 | CJ154: 4.661795752 | CK154: 4.661795752 | CL154: 4.755031667 | CM154: 4.755031667 | CN154: 4.755031667 | CO154: 4.755031667 | CP154: 4.8501323 | CQ154: 4.8501323 | CR154: 4.8501323 | CS154: 4.8501323 | CT154: 4.947134946 | CU154: 4.947134946 | CV154: 4.947134946 | CW154: =CW$146 -> 4.947134946 | CX154: 5.046077645 | CY154: 5.046077645 | CZ154: 5.046077645 | DA154: 5.046077645 | DB154: 5.146999198 | DC154: 5.146999198 | DD154: 5.146999198 | DE154: 5.146999198 | DF154: 5.249939182 | DG154: 5.249939182 | DH154: 5.249939182 | DI154: 5.249939182 | DJ154: 5.354937966 | DK154: 5.354937966 | DL154: 5.354937966 | DM154: 5.354937966 | DN154: 5.462036725 | DO154: 5.462036725 | DP154: 5.462036725 | DQ154: 5.462036725 | DR154: 5.57127746 | DS154: 5.57127746 | DT154: 5.57127746 | DU154: 5.57127746 | DV154: 5.682703009 | DW154: 5.682703009 | DX154: 5.682703009 | DY154: 5.682703009 | DZ154: 5.796357069 | EA154: 5.796357069 | EB154: 5.796357069 | EC154: =EC$146 -> 5.796357069 | ED154: 5.912284211 | EE154: 5.912284211 | EF154: 5.912284211 | EG154: 5.912284211 | EH154: 6.030529895 | EI154: 6.030529895
E155: =E$53 -> Contractual Operation period fraction | F155: =F$53 -> 0 | G155: partial factor | H155: 120 | I155: 0 | J155: 0 | K155: 0 | L155: 0 | M155: 0 | N155: 0 | O155: 0 | P155: 0 | Q155: 0 | R155: 0 | S155: 0.3296703297 | T155: 1 | U155: 1 | V155: 1 | W155: 1 | X155: 1 | Y155: 1 | Z155: 1 | AA155: 1 | AB155: 1 | AC155: 1 | AD155: 1 | AE155: 1 | AF155: 1 | AG155: 1 | AH155: 1 | AI155: 1 | AJ155: 1 | AK155: 1 | AL155: 1 | AM155: 1 | AN155: 1 | AO155: 1 | AP155: 1 | AQ155: 1 | AR155: 1 | AS155: 1 | AT155: 1 | AU155: 1 | AV155: 1 | AW155: 1 | AX155: 1 | AY155: 1 | AZ155: 1 | BA155: 1 | BB155: 1 | BC155: 1 | BD155: 1 | BE155: 1 | BF155: 1 | BG155: 1 | BH155: 1 | BI155: 1 | BJ155: 1 | BK155: 1 | BL155: 1 | BM155: 1 | BN155: 1 | BO155: 1 | BP155: 1 | BQ155: 1 | BR155: =BR$53 -> 1 | BS155: 1 | BT155: 1 | BU155: 1 | BV155: 1 | BW155: 1 | BX155: 1 | BY155: 1 | BZ155: 1 | CA155: 1 | CB155: 1 | CC155: 1 | CD155: 1 | CE155: 1 | CF155: 1 | CG155: 1 | CH155: 1 | CI155: 1 | CJ155: 1 | CK155: 1 | CL155: 1 | CM155: 1 | CN155: 1 | CO155: 1 | CP155: 1 | CQ155: 1 | CR155: 1 | CS155: 1 | CT155: 1 | CU155: 1 | CV155: 1 | CW155: 1 | CX155: 1 | CY155: 1 | CZ155: 1 | DA155: 1 | DB155: 1 | DC155: 1 | DD155: 1 | DE155: 1 | DF155: 1 | DG155: 1 | DH155: 1 | DI155: 1 | DJ155: 1 | DK155: 1 | DL155: 1 | DM155: 1 | DN155: 1 | DO155: 1 | DP155: 1 | DQ155: 1 | DR155: 1 | DS155: 1 | DT155: 1 | DU155: 1 | DV155: 1 | DW155: 1 | DX155: 1 | DY155: 1 | DZ155: 1 | EA155: 1 | EB155: 1 | EC155: 1 | ED155: =ED$53 -> 1 | EE155: 1 | EF155: 1 | EG155: 1 | EH155: 1 | EI155: 0.6703296703
E156: =E$9 -> Parking garage ramp up and realisation | F156: 0 | G156: % | H156: 0 | I156: 0 | J156: 0 | K156: 0 | L156: 0 | M156: 0 | N156: 0 | O156: 0 | P156: 0 | Q156: 0 | R156: 0 | S156: 0.55 | T156: 0.55 | U156: 0.55 | V156: 0.85 | W156: 0.85 | X156: 0.85 | Y156: 0.85 | Z156: 0.85 | AA156: 0.85 | AB156: 0.85 | AC156: 0.85 | AD156: 0.85 | AE156: 0.85 | AF156: 0.85 | AG156: 0.85 | AH156: 1 | AI156: 1 | AJ156: 1 | AK156: =AK$9 -> 1 | AL156: 1 | AM156: 1 | AN156: 1 | AO156: 1 | AP156: 1 | AQ156: 1 | AR156: 1 | AS156: 1 | AT156: 1 | AU156: 1 | AV156: 1 | AW156: 1 | AX156: 1 | AY156: 1 | AZ156: 1 | BA156: 1 | BB156: 1 | BC156: 1 | BD156: 1 | BE156: 1 | BF156: 1.1 | BG156: 1.1 | BH156: 1.1 | BI156: 1.1 | BJ156: 1.1 | BK156: 1.1 | BL156: 1.1 | BM156: 1.1 | BN156: 1.1 | BO156: 1.1 | BP156: 1.1 | BQ156: =BQ$9 -> 1.1 | BR156: 1.1 | BS156: 1.1 | BT156: 1.1 | BU156: 1.1 | BV156: 1.1 | BW156: 1.1 | BX156: 1.1 | BY156: 1.1 | BZ156: 1.2 | CA156: 1.2 | CB156: 1.2 | CC156: 1.2 | CD156: 1.2 | CE156: 1.2 | CF156: 1.2 | CG156: 1.2 | CH156: 1.2 | CI156: 1.2 | CJ156: 1.2 | CK156: 1.2 | CL156: 1.2 | CM156: 1.2 | CN156: 1.2 | CO156: 1.2 | CP156: 1.2 | CQ156: 1.2 | CR156: 1.2 | CS156: 1.2 | CT156: 1.3 | CU156: 1.3 | CV156: 1.3 | CW156: =CW$9 -> 1.3 | CX156: 1.3 | CY156: 1.3 | CZ156: 1.3 | DA156: 1.3 | DB156: 1.3 | DC156: 1.3 | DD156: 1.3 | DE156: 1.3 | DF156: 1.3 | DG156: 1.3 | DH156: 1.3 | DI156: 1.3 | DJ156: 1.3 | DK156: 1.3 | DL156: 1.3 | DM156: 1.3 | DN156: 1.3 | DO156: 1.3 | DP156: 1.3 | DQ156: 1.3 | DR156: 1.3 | DS156: 1.3 | DT156: 1.3 | DU156: 1.3 | DV156: 1.3 | DW156: 1.3 | DX156: 1.3 | DY156: 1.3 | DZ156: 1.3 | EA156: 1.3 | EB156: 1.3 | EC156: =EC$9 -> 1.3 | ED156: 1.3 | EE156: 1.3 | EF156: 1.3 | EG156: 1.3 | EH156: 1.3 | EI156: 1.3
E157: =C$143 & " Total Revenue" -> Visitors - Shopping - Evening Parking Total Revenue | G157: =SMU -> '000 HRK | H157: =SUM(J$157:EI$157) -> 13053.0624 | J157: =J154 * $F152 * J155 * J156 / $F153 -> 0 | K157: 0 | L157: 0 | M157: 0 | N157: 0 | O157: 0 | P157: 0 | Q157: 0 | R157: 0 | S157: 12.50407598 | T157: 37.92903048 | U157: 37.92903048 | V157: 59.78994441 | W157: 59.78994441 | X157: 59.78994441 | Y157: 59.78994441 | Z157: 60.9857433 | AA157: 60.9857433 | AB157: 60.9857433 | AC157: 60.9857433 | AD157: 62.20545817 | AE157: 62.20545817 | AF157: 62.20545817 | AG157: 62.20545817 | AH157: 74.6465498 | AI157: 74.6465498 | AJ157: 74.6465498 | AK157: 74.6465498 | AL157: 76.13948079 | AM157: 76.13948079 | AN157: 76.13948079 | AO157: 76.13948079 | AP157: =AP154 * $F152 * AP155 * AP156 / $F153 -> 77.66227041 | AQ157: 77.66227041 | AR157: 77.66227041 | AS157: 77.66227041 | AT157: 79.21551582 | AU157: 79.21551582 | AV157: 79.21551582 | AW157: 79.21551582 | AX157: 80.79982613 | AY157: 80.79982613 | AZ157: 80.79982613 | BA157: 80.79982613 | BB157: 82.41582266 | BC157: 82.41582266 | BD157: 82.41582266 | BE157: 82.41582266 | BF157: 92.47055302 | BG157: 92.47055302 | BH157: 92.47055302 | BI157: 92.47055302 | BJ157: 94.31996408 | BK157: 94.31996408 | BL157: 94.31996408 | BM157: 94.31996408 | BN157: 96.20636336 | BO157: 96.20636336 | BP157: 96.20636336 | BQ157: 96.20636336 | BR157: 98.13049063 | BS157: 98.13049063 | BT157: 98.13049063 | BU157: 98.13049063 | BV157: =BV154 * $F152 * BV155 * BV156 / $F153 -> 100.0931004 | BW157: 100.0931004 | BX157: 100.0931004 | BY157: 100.0931004 | BZ157: 111.3763227 | CA157: 111.3763227 | CB157: 111.3763227 | CC157: 111.3763227 | CD157: 113.6038491 | CE157: 113.6038491 | CF157: 113.6038491 | CG157: 113.6038491 | CH157: 115.8759261 | CI157: 115.8759261 | CJ157: 115.8759261 | CK157: 115.8759261 | CL157: 118.1934446 | CM157: 118.1934446 | CN157: 118.1934446 | CO157: 118.1934446 | CP157: 120.5573135 | CQ157: 120.5573135 | CR157: 120.5573135 | CS157: 120.5573135 | CT157: 133.2158314 | CU157: 133.2158314 | CV157: 133.2158314 | CW157: 133.2158314 | CX157: 135.8801481 | CY157: 135.8801481 | CZ157: 135.8801481 | DA157: 135.8801481 | DB157: =DB154 * $F152 * DB155 * DB156 / $F153 -> 138.597751 | DC157: 138.597751 | DD157: 138.597751 | DE157: 138.597751 | DF157: 141.3697061 | DG157: 141.3697061 | DH157: 141.3697061 | DI157: 141.3697061 | DJ157: 144.1971002 | DK157: 144.1971002 | DL157: 144.1971002 | DM157: 144.1971002 | DN157: 147.0810422 | DO157: 147.0810422 | DP157: 147.0810422 | DQ157: 147.0810422 | DR157: 150.022663 | DS157: 150.022663 | DT157: 150.022663 | DU157: 150.022663 | DV157: 153.0231163 | DW157: 153.0231163 | DX157: 153.0231163 | DY157: 153.0231163 | DZ157: 156.0835786 | EA157: 156.0835786 | EB157: 156.0835786 | EC157: 156.0835786 | ED157: 159.2052502 | EE157: 159.2052502 | EF157: 159.2052502 | EG157: 159.2052502 | EH157: =EH154 * $F152 * EH155 * EH156 / $F153 -> 162.3893552 | EI157: 108.8544029
C160: Visitors - Food/Beverages - Day Parking
E161: =E$20 -> Visitors - Food/Beverages - Day Parking | F161: =F$20 -> 4.8 | G161: kn p/h
E162: =E$43 -> CPI Indexation | F162: =F$43 -> 0 | G162: index | H162: 0 | I162: 0 | J162: 1 | K162: 1 | L162: 1 | M162: 1 | N162: 1.02 | O162: 1.02 | P162: 1.02 | Q162: 1.02 | R162: 1.0404 | S162: 1.0404 | T162: 1.0404 | U162: 1.0404 | V162: 1.061208 | W162: 1.061208 | X162: 1.061208 | Y162: 1.061208 | Z162: 1.08243216 | AA162: 1.08243216 | AB162: 1.08243216 | AC162: 1.08243216 | AD162: 1.104080803 | AE162: 1.104080803 | AF162: 1.104080803 | AG162: 1.104080803 | AH162: 1.126162419 | AI162: 1.126162419 | AJ162: 1.126162419 | AK162: 1.126162419 | AL162: 1.148685668 | AM162: 1.148685668 | AN162: 1.148685668 | AO162: 1.148685668 | AP162: 1.171659381 | AQ162: 1.171659381 | AR162: 1.171659381 | AS162: 1.171659381 | AT162: 1.195092569 | AU162: 1.195092569 | AV162: 1.195092569 | AW162: 1.195092569 | AX162: 1.21899442 | AY162: 1.21899442 | AZ162: 1.21899442 | BA162: 1.21899442 | BB162: 1.243374308 | BC162: 1.243374308 | BD162: 1.243374308 | BE162: 1.243374308 | BF162: 1.268241795 | BG162: 1.268241795 | BH162: 1.268241795 | BI162: 1.268241795 | BJ162: 1.29360663 | BK162: 1.29360663 | BL162: 1.29360663 | BM162: 1.29360663 | BN162: 1.319478763 | BO162: 1.319478763 | BP162: 1.319478763 | BQ162: 1.319478763 | BR162: =BR$43 -> 1.345868338 | BS162: 1.345868338 | BT162: 1.345868338 | BU162: 1.345868338 | BV162: 1.372785705 | BW162: 1.372785705 | BX162: 1.372785705 | BY162: 1.372785705 | BZ162: 1.400241419 | CA162: 1.400241419 | CB162: 1.400241419 | CC162: 1.400241419 | CD162: 1.428246248 | CE162: 1.428246248 | CF162: 1.428246248 | CG162: 1.428246248 | CH162: 1.456811173 | CI162: 1.456811173 | CJ162: 1.456811173 | CK162: 1.456811173 | CL162: 1.485947396 | CM162: 1.485947396 | CN162: 1.485947396 | CO162: 1.485947396 | CP162: 1.515666344 | CQ162: 1.515666344 | CR162: 1.515666344 | CS162: 1.515666344 | CT162: 1.545979671 | CU162: 1.545979671 | CV162: 1.545979671 | CW162: 1.545979671 | CX162: 1.576899264 | CY162: 1.576899264 | CZ162: 1.576899264 | DA162: 1.576899264 | DB162: 1.608437249 | DC162: 1.608437249 | DD162: 1.608437249 | DE162: 1.608437249 | DF162: 1.640605994 | DG162: 1.640605994 | DH162: 1.640605994 | DI162: 1.640605994 | DJ162: 1.673418114 | DK162: 1.673418114 | DL162: 1.673418114 | DM162: 1.673418114 | DN162: 1.706886477 | DO162: 1.706886477 | DP162: 1.706886477 | DQ162: 1.706886477 | DR162: 1.741024206 | DS162: 1.741024206 | DT162: 1.741024206 | DU162: 1.741024206 | DV162: 1.77584469 | DW162: 1.77584469 | DX162: 1.77584469 | DY162: 1.77584469 | DZ162: 1.811361584 | EA162: 1.811361584 | EB162: 1.811361584 | EC162: 1.811361584 | ED162: =ED$43 -> 1.847588816 | EE162: 1.847588816 | EF162: 1.847588816 | EG162: 1.847588816 | EH162: 1.884540592 | EI162: 1.884540592
E163: =C$160 & " Revenue per hour" -> Visitors - Food/Beverages - Day Parking Revenue per hour | G163: kn p/h | J163: =$F161 * J162 -> 4.8 | K163: 4.8 | L163: 4.8 | M163: 4.8 | N163: 4.896 | O163: 4.896 | P163: 4.896 | Q163: 4.896 | R163: 4.99392 | S163: 4.99392 | T163: 4.99392 | U163: 4.99392 | V163: 5.0937984 | W163: 5.0937984 | X163: 5.0937984 | Y163: 5.0937984 | Z163: 5.195674368 | AA163: 5.195674368 | AB163: 5.195674368 | AC163: 5.195674368 | AD163: 5.299587855 | AE163: 5.299587855 | AF163: 5.299587855 | AG163: 5.299587855 | AH163: 5.405579612 | AI163: 5.405579612 | AJ163: 5.405579612 | AK163: 5.405579612 | AL163: 5.513691205 | AM163: 5.513691205 | AN163: 5.513691205 | AO163: 5.513691205 | AP163: =$F161 * AP162 -> 5.623965029 | AQ163: 5.623965029 | AR163: 5.623965029 | AS163: 5.623965029 | AT163: 5.736444329 | AU163: 5.736444329 | AV163: 5.736444329 | AW163: 5.736444329 | AX163: 5.851173216 | AY163: 5.851173216 | AZ163: 5.851173216 | BA163: 5.851173216 | BB163: 5.96819668 | BC163: 5.96819668 | BD163: 5.96819668 | BE163: 5.96819668 | BF163: 6.087560614 | BG163: 6.087560614 | BH163: 6.087560614 | BI163: 6.087560614 | BJ163: 6.209311826 | BK163: 6.209311826 | BL163: 6.209311826 | BM163: 6.209311826 | BN163: 6.333498063 | BO163: 6.333498063 | BP163: 6.333498063 | BQ163: 6.333498063 | BR163: 6.460168024 | BS163: 6.460168024 | BT163: 6.460168024 | BU163: 6.460168024 | BV163: =$F161 * BV162 -> 6.589371384 | BW163: 6.589371384 | BX163: 6.589371384 | BY163: 6.589371384 | BZ163: 6.721158812 | CA163: 6.721158812 | CB163: 6.721158812 | CC163: 6.721158812 | CD163: 6.855581988 | CE163: 6.855581988 | CF163: 6.855581988 | CG163: 6.855581988 | CH163: 6.992693628 | CI163: 6.992693628 | CJ163: 6.992693628 | CK163: 6.992693628 | CL163: 7.132547501 | CM163: 7.132547501 | CN163: 7.132547501 | CO163: 7.132547501 | CP163: 7.275198451 | CQ163: 7.275198451 | CR163: 7.275198451 | CS163: 7.275198451 | CT163: 7.42070242 | CU163: 7.42070242 | CV163: 7.42070242 | CW163: 7.42070242 | CX163: 7.569116468 | CY163: 7.569116468 | CZ163: 7.569116468 | DA163: 7.569116468 | DB163: =$F161 * DB162 -> 7.720498797 | DC163: 7.720498797 | DD163: 7.720498797 | DE163: 7.720498797 | DF163: 7.874908773 | DG163: 7.874908773 | DH163: 7.874908773 | DI163: 7.874908773 | DJ163: 8.032406949 | DK163: 8.032406949 | DL163: 8.032406949 | DM163: 8.032406949 | DN163: 8.193055088 | DO163: 8.193055088 | DP163: 8.193055088 | DQ163: 8.193055088 | DR163: 8.35691619 | DS163: 8.35691619 | DT163: 8.35691619 | DU163: 8.35691619 | DV163: 8.524054513 | DW163: 8.524054513 | DX163: 8.524054513 | DY163: 8.524054513 | DZ163: 8.694535604 | EA163: 8.694535604 | EB163: 8.694535604 | EC163: 8.694535604 | ED163: 8.868426316 | EE163: 8.868426316 | EF163: 8.868426316 | EG163: 8.868426316 | EH163: =$F161 * EH162 -> 9.045794842 | EI163: 9.045794842
E165: =E$33 -> Visitors - Food/Beverages - Day Parking | F165: =F$33 -> 43800 | G165: hours p/y
E166: =E$47 -> Model Periods per year | F166: =F$47 -> 4 | G166: quarters
E167: =C$160 & " parking hours per period" -> Visitors - Food/Beverages - Day Parking parking hours per period | F167: =F165 / F166 -> 10950 | G167: hours/quarter
E169: =E$167 -> Visitors - Food/Beverages - Day Parking parking hours per period | F169: =F$167 -> 10950 | G169: =G$167 -> hours/quarter
E170: =E$51 -> Units in thousand conversion to Cash Flows | F170: =F$51 -> 1000 | G170: units / 000s
E171: =E$163 -> Visitors - Food/Beverages - Day Parking Revenue per hour | F171: 0 | G171: kn p/h | H171: 0 | I171: 0 | J171: 4.8 | K171: 4.8 | L171: 4.8 | M171: 4.8 | N171: 4.896 | O171: 4.896 | P171: 4.896 | Q171: 4.896 | R171: 4.99392 | S171: 4.99392 | T171: 4.99392 | U171: 4.99392 | V171: 5.0937984 | W171: 5.0937984 | X171: 5.0937984 | Y171: 5.0937984 | Z171: 5.195674368 | AA171: 5.195674368 | AB171: 5.195674368 | AC171: 5.195674368 | AD171: 5.299587855 | AE171: 5.299587855 | AF171: 5.299587855 | AG171: 5.299587855 | AH171: 5.405579612 | AI171: 5.405579612 | AJ171: 5.405579612 | AK171: =AK$163 -> 5.405579612 | AL171: 5.513691205 | AM171: 5.513691205 | AN171: 5.513691205 | AO171: 5.513691205 | AP171: 5.623965029 | AQ171: 5.623965029 | AR171: 5.623965029 | AS171: 5.623965029 | AT171: 5.736444329 | AU171: 5.736444329 | AV171: 5.736444329 | AW171: 5.736444329 | AX171: 5.851173216 | AY171: 5.851173216 | AZ171: 5.851173216 | BA171: 5.851173216 | BB171: 5.96819668 | BC171: 5.96819668 | BD171: 5.96819668 | BE171: 5.96819668 | BF171: 6.087560614 | BG171: 6.087560614 | BH171: 6.087560614 | BI171: 6.087560614 | BJ171: 6.209311826 | BK171: 6.209311826 | BL171: 6.209311826 | BM171: 6.209311826 | BN171: 6.333498063 | BO171: 6.333498063 | BP171: 6.333498063 | BQ171: =BQ$163 -> 6.333498063 | BR171: 6.460168024 | BS171: 6.460168024 | BT171: 6.460168024 | BU171: 6.460168024 | BV171: 6.589371384 | BW171: 6.589371384 | BX171: 6.589371384 | BY171: 6.589371384 | BZ171: 6.721158812 | CA171: 6.721158812 | CB171: 6.721158812 | CC171: 6.721158812 | CD171: 6.855581988 | CE171: 6.855581988 | CF171: 6.855581988 | CG171: 6.855581988 | CH171: 6.992693628 | CI171: 6.992693628 | CJ171: 6.992693628 | CK171: 6.992693628 | CL171: 7.132547501 | CM171: 7.132547501 | CN171: 7.132547501 | CO171: 7.132547501 | CP171: 7.275198451 | CQ171: 7.275198451 | CR171: 7.275198451 | CS171: 7.275198451 | CT171: 7.42070242 | CU171: 7.42070242 | CV171: 7.42070242 | CW171: =CW$163 -> 7.42070242 | CX171: 7.569116468 | CY171: 7.569116468 | CZ171: 7.569116468 | DA171: 7.569116468 | DB171: 7.720498797 | DC171: 7.720498797 | DD171: 7.720498797 | DE171: 7.720498797 | DF171: 7.874908773 | DG171: 7.874908773 | DH171: 7.874908773 | DI171: 7.874908773 | DJ171: 8.032406949 | DK171: 8.032406949 | DL171: 8.032406949 | DM171: 8.032406949 | DN171: 8.193055088 | DO171: 8.193055088 | DP171: 8.193055088 | DQ171: 8.193055088 | DR171: 8.35691619 | DS171: 8.35691619 | DT171: 8.35691619 | DU171: 8.35691619 | DV171: 8.524054513 | DW171: 8.524054513 | DX171: 8.524054513 | DY171: 8.524054513 | DZ171: 8.694535604 | EA171: 8.694535604 | EB171: 8.694535604 | EC171: =EC$163 -> 8.694535604 | ED171: 8.868426316 | EE171: 8.868426316 | EF171: 8.868426316 | EG171: 8.868426316 | EH171: 9.045794842 | EI171: 9.045794842
E172: =E$53 -> Contractual Operation period fraction | F172: =F$53 -> 0 | G172: partial factor | H172: 120 | I172: 0 | J172: 0 | K172: 0 | L172: 0 | M172: 0 | N172: 0 | O172: 0 | P172: 0 | Q172: 0 | R172: 0 | S172: 0.3296703297 | T172: 1 | U172: 1 | V172: 1 | W172: 1 | X172: 1 | Y172: 1 | Z172: 1 | AA172: 1 | AB172: 1 | AC172: 1 | AD172: 1 | AE172: 1 | AF172: 1 | AG172: 1 | AH172: 1 | AI172: 1 | AJ172: 1 | AK172: 1 | AL172: 1 | AM172: 1 | AN172: 1 | AO172: 1 | AP172: 1 | AQ172: 1 | AR172: 1 | AS172: 1 | AT172: 1 | AU172: 1 | AV172: 1 | AW172: 1 | AX172: 1 | AY172: 1 | AZ172: 1 | BA172: 1 | BB172: 1 | BC172: 1 | BD172: 1 | BE172: 1 | BF172: 1 | BG172: 1 | BH172: 1 | BI172: 1 | BJ172: 1 | BK172: 1 | BL172: 1 | BM172: 1 | BN172: 1 | BO172: 1 | BP172: 1 | BQ172: 1 | BR172: =BR$53 -> 1 | BS172: 1 | BT172: 1 | BU172: 1 | BV172: 1 | BW172: 1 | BX172: 1 | BY172: 1 | BZ172: 1 | CA172: 1 | CB172: 1 | CC172: 1 | CD172: 1 | CE172: 1 | CF172: 1 | CG172: 1 | CH172: 1 | CI172: 1 | CJ172: 1 | CK172: 1 | CL172: 1 | CM172: 1 | CN172: 1 | CO172: 1 | CP172: 1 | CQ172: 1 | CR172: 1 | CS172: 1 | CT172: 1 | CU172: 1 | CV172: 1 | CW172: 1 | CX172: 1 | CY172: 1 | CZ172: 1 | DA172: 1 | DB172: 1 | DC172: 1 | DD172: 1 | DE172: 1 | DF172: 1 | DG172: 1 | DH172: 1 | DI172: 1 | DJ172: 1 | DK172: 1 | DL172: 1 | DM172: 1 | DN172: 1 | DO172: 1 | DP172: 1 | DQ172: 1 | DR172: 1 | DS172: 1 | DT172: 1 | DU172: 1 | DV172: 1 | DW172: 1 | DX172: 1 | DY172: 1 | DZ172: 1 | EA172: 1 | EB172: 1 | EC172: 1 | ED172: =ED$53 -> 1 | EE172: 1 | EF172: 1 | EG172: 1 | EH172: 1 | EI172: 0.6703296703
E173: =E$9 -> Parking garage ramp up and realisation | F173: 0 | G173: % | H173: 0 | I173: 0 | J173: 0 | K173: 0 | L173: 0 | M173: 0 | N173: 0 | O173: 0 | P173: 0 | Q173: 0 | R173: 0 | S173: 0.55 | T173: 0.55 | U173: 0.55 | V173: 0.85 | W173: 0.85 | X173: 0.85 | Y173: 0.85 | Z173: 0.85 | AA173: 0.85 | AB173: 0.85 | AC173: 0.85 | AD173: 0.85 | AE173: 0.85 | AF173: 0.85 | AG173: 0.85 | AH173: 1 | AI173: 1 | AJ173: 1 | AK173: =AK$9 -> 1 | AL173: 1 | AM173: 1 | AN173: 1 | AO173: 1 | AP173: 1 | AQ173: 1 | AR173: 1 | AS173: 1 | AT173: 1 | AU173: 1 | AV173: 1 | AW173: 1 | AX173: 1 | AY173: 1 | AZ173: 1 | BA173: 1 | BB173: 1 | BC173: 1 | BD173: 1 | BE173: 1 | BF173: 1.1 | BG173: 1.1 | BH173: 1.1 | BI173: 1.1 | BJ173: 1.1 | BK173: 1.1 | BL173: 1.1 | BM173: 1.1 | BN173: 1.1 | BO173: 1.1 | BP173: 1.1 | BQ173: =BQ$9 -> 1.1 | BR173: 1.1 | BS173: 1.1 | BT173: 1.1 | BU173: 1.1 | BV173: 1.1 | BW173: 1.1 | BX173: 1.1 | BY173: 1.1 | BZ173: 1.2 | CA173: 1.2 | CB173: 1.2 | CC173: 1.2 | CD173: 1.2 | CE173: 1.2 | CF173: 1.2 | CG173: 1.2 | CH173: 1.2 | CI173: 1.2 | CJ173: 1.2 | CK173: 1.2 | CL173: 1.2 | CM173: 1.2 | CN173: 1.2 | CO173: 1.2 | CP173: 1.2 | CQ173: 1.2 | CR173: 1.2 | CS173: 1.2 | CT173: 1.3 | CU173: 1.3 | CV173: 1.3 | CW173: =CW$9 -> 1.3 | CX173: 1.3 | CY173: 1.3 | CZ173: 1.3 | DA173: 1.3 | DB173: 1.3 | DC173: 1.3 | DD173: 1.3 | DE173: 1.3 | DF173: 1.3 | DG173: 1.3 | DH173: 1.3 | DI173: 1.3 | DJ173: 1.3 | DK173: 1.3 | DL173: 1.3 | DM173: 1.3 | DN173: 1.3 | DO173: 1.3 | DP173: 1.3 | DQ173: 1.3 | DR173: 1.3 | DS173: 1.3 | DT173: 1.3 | DU173: 1.3 | DV173: 1.3 | DW173: 1.3 | DX173: 1.3 | DY173: 1.3 | DZ173: 1.3 | EA173: 1.3 | EB173: 1.3 | EC173: =EC$9 -> 1.3 | ED173: 1.3 | EE173: 1.3 | EF173: 1.3 | EG173: 1.3 | EH173: 1.3 | EI173: 1.3
E174: =C$160 & " Total Revenue" -> Visitors - Food/Beverages - Day Parking Total Revenue | G174: =SMU -> '000 HRK | H174: =SUM(J$174:EI$174) -> 10350.44596 | J174: =J171 * $F169 * J172 * J173 / $F170 -> 0 | K174: 0 | L174: 0 | M174: 0 | N174: 0 | O174: 0 | P174: 0 | Q174: 0 | R174: 0 | S174: 9.91512633 | T174: 30.0758832 | U174: 30.0758832 | V174: 47.41052861 | W174: 47.41052861 | X174: 47.41052861 | Y174: 47.41052861 | Z174: 48.35873918 | AA174: 48.35873918 | AB174: 48.35873918 | AC174: 48.35873918 | AD174: 49.32591396 | AE174: 49.32591396 | AF174: 49.32591396 | AG174: 49.32591396 | AH174: 59.19109676 | AI174: 59.19109676 | AJ174: 59.19109676 | AK174: 59.19109676 | AL174: 60.37491869 | AM174: 60.37491869 | AN174: 60.37491869 | AO174: 60.37491869 | AP174: =AP171 * $F169 * AP172 * AP173 / $F170 -> 61.58241707 | AQ174: 61.58241707 | AR174: 61.58241707 | AS174: 61.58241707 | AT174: 62.81406541 | AU174: 62.81406541 | AV174: 62.81406541 | AW174: 62.81406541 | AX174: 64.07034671 | AY174: 64.07034671 | AZ174: 64.07034671 | BA174: 64.07034671 | BB174: 65.35175365 | BC174: 65.35175365 | BD174: 65.35175365 | BE174: 65.35175365 | BF174: 73.32466759 | BG174: 73.32466759 | BH174: 73.32466759 | BI174: 73.32466759 | BJ174: 74.79116095 | BK174: 74.79116095 | BL174: 74.79116095 | BM174: 74.79116095 | BN174: 76.28698417 | BO174: 76.28698417 | BP174: 76.28698417 | BQ174: 76.28698417 | BR174: 77.81272385 | BS174: 77.81272385 | BT174: 77.81272385 | BU174: 77.81272385 | BV174: =BV171 * $F169 * BV172 * BV173 / $F170 -> 79.36897833 | BW174: 79.36897833 | BX174: 79.36897833 | BY174: 79.36897833 | BZ174: 88.31602679 | CA174: 88.31602679 | CB174: 88.31602679 | CC174: 88.31602679 | CD174: 90.08234733 | CE174: 90.08234733 | CF174: 90.08234733 | CG174: 90.08234733 | CH174: 91.88399427 | CI174: 91.88399427 | CJ174: 91.88399427 | CK174: 91.88399427 | CL174: 93.72167416 | CM174: 93.72167416 | CN174: 93.72167416 | CO174: 93.72167416 | CP174: 95.59610764 | CQ174: 95.59610764 | CR174: 95.59610764 | CS174: 95.59610764 | CT174: 105.6336989 | CU174: 105.6336989 | CV174: 105.6336989 | CW174: 105.6336989 | CX174: 107.7463729 | CY174: 107.7463729 | CZ174: 107.7463729 | DA174: 107.7463729 | DB174: =DB171 * $F169 * DB172 * DB173 / $F170 -> 109.9013004 | DC174: 109.9013004 | DD174: 109.9013004 | DE174: 109.9013004 | DF174: 112.0993264 | DG174: 112.0993264 | DH174: 112.0993264 | DI174: 112.0993264 | DJ174: 114.3413129 | DK174: 114.3413129 | DL174: 114.3413129 | DM174: 114.3413129 | DN174: 116.6281392 | DO174: 116.6281392 | DP174: 116.6281392 | DQ174: 116.6281392 | DR174: 118.960702 | DS174: 118.960702 | DT174: 118.960702 | DU174: 118.960702 | DV174: 121.339916 | DW174: 121.339916 | DX174: 121.339916 | DY174: 121.339916 | DZ174: 123.7667143 | EA174: 123.7667143 | EB174: 123.7667143 | EC174: 123.7667143 | ED174: 126.2420486 | EE174: 126.2420486 | EF174: 126.2420486 | EG174: 126.2420486 | EH174: =EH171 * $F169 * EH172 * EH173 / $F170 -> 128.7668896 | EI174: 86.31626664
C177: Visitors - Food/Beverages - Evening Parking
E178: =E$21 -> Visitors - Food/Beverages - Evening Parking | F178: =F$21 -> 3.2 | G178: kn p/h
E179: =E$43 -> CPI Indexation | F179: =F$43 -> 0 | G179: index | H179: 0 | I179: 0 | J179: 1 | K179: 1 | L179: 1 | M179: 1 | N179: 1.02 | O179: 1.02 | P179: 1.02 | Q179: 1.02 | R179: 1.0404 | S179: 1.0404 | T179: 1.0404 | U179: 1.0404 | V179: 1.061208 | W179: 1.061208 | X179: 1.061208 | Y179: 1.061208 | Z179: 1.08243216 | AA179: 1.08243216 | AB179: 1.08243216 | AC179: 1.08243216 | AD179: 1.104080803 | AE179: 1.104080803 | AF179: 1.104080803 | AG179: 1.104080803 | AH179: 1.126162419 | AI179: 1.126162419 | AJ179: 1.126162419 | AK179: 1.126162419 | AL179: 1.148685668 | AM179: 1.148685668 | AN179: 1.148685668 | AO179: 1.148685668 | AP179: 1.171659381 | AQ179: 1.171659381 | AR179: 1.171659381 | AS179: 1.171659381 | AT179: 1.195092569 | AU179: 1.195092569 | AV179: 1.195092569 | AW179: 1.195092569 | AX179: 1.21899442 | AY179: 1.21899442 | AZ179: 1.21899442 | BA179: 1.21899442 | BB179: 1.243374308 | BC179: 1.243374308 | BD179: 1.243374308 | BE179: 1.243374308 | BF179: 1.268241795 | BG179: 1.268241795 | BH179: 1.268241795 | BI179: 1.268241795 | BJ179: 1.29360663 | BK179: 1.29360663 | BL179: 1.29360663 | BM179: 1.29360663 | BN179: 1.319478763 | BO179: 1.319478763 | BP179: 1.319478763 | BQ179: 1.319478763 | BR179: =BR$43 -> 1.345868338 | BS179: 1.345868338 | BT179: 1.345868338 | BU179: 1.345868338 | BV179: 1.372785705 | BW179: 1.372785705 | BX179: 1.372785705 | BY179: 1.372785705 | BZ179: 1.400241419 | CA179: 1.400241419 | CB179: 1.400241419 | CC179: 1.400241419 | CD179: 1.428246248 | CE179: 1.428246248 | CF179: 1.428246248 | CG179: 1.428246248 | CH179: 1.456811173 | CI179: 1.456811173 | CJ179: 1.456811173 | CK179: 1.456811173 | CL179: 1.485947396 | CM179: 1.485947396 | CN179: 1.485947396 | CO179: 1.485947396 | CP179: 1.515666344 | CQ179: 1.515666344 | CR179: 1.515666344 | CS179: 1.515666344 | CT179: 1.545979671 | CU179: 1.545979671 | CV179: 1.545979671 | CW179: 1.545979671 | CX179: 1.576899264 | CY179: 1.576899264 | CZ179: 1.576899264 | DA179: 1.576899264 | DB179: 1.608437249 | DC179: 1.608437249 | DD179: 1.608437249 | DE179: 1.608437249 | DF179: 1.640605994 | DG179: 1.640605994 | DH179: 1.640605994 | DI179: 1.640605994 | DJ179: 1.673418114 | DK179: 1.673418114 | DL179: 1.673418114 | DM179: 1.673418114 | DN179: 1.706886477 | DO179: 1.706886477 | DP179: 1.706886477 | DQ179: 1.706886477 | DR179: 1.741024206 | DS179: 1.741024206 | DT179: 1.741024206 | DU179: 1.741024206 | DV179: 1.77584469 | DW179: 1.77584469 | DX179: 1.77584469 | DY179: 1.77584469 | DZ179: 1.811361584 | EA179: 1.811361584 | EB179: 1.811361584 | EC179: 1.811361584 | ED179: =ED$43 -> 1.847588816 | EE179: 1.847588816 | EF179: 1.847588816 | EG179: 1.847588816 | EH179: 1.884540592 | EI179: 1.884540592
E180: =C$177 & " Revenue per hour" -> Visitors - Food/Beverages - Evening Parking Revenue per hour | G180: kn p/h | J180: =$F178 * J179 -> 3.2 | K180: 3.2 | L180: 3.2 | M180: 3.2 | N180: 3.264 | O180: 3.264 | P180: 3.264 | Q180: 3.264 | R180: 3.32928 | S180: 3.32928 | T180: 3.32928 | U180: 3.32928 | V180: 3.3958656 | W180: 3.3958656 | X180: 3.3958656 | Y180: 3.3958656 | Z180: 3.463782912 | AA180: 3.463782912 | AB180: 3.463782912 | AC180: 3.463782912 | AD180: 3.53305857 | AE180: 3.53305857 | AF180: 3.53305857 | AG180: 3.53305857 | AH180: 3.603719742 | AI180: 3.603719742 | AJ180: 3.603719742 | AK180: 3.603719742 | AL180: 3.675794136 | AM180: 3.675794136 | AN180: 3.675794136 | AO180: 3.675794136 | AP180: =$F178 * AP179 -> 3.749310019 | AQ180: 3.749310019 | AR180: 3.749310019 | AS180: 3.749310019 | AT180: 3.82429622 | AU180: 3.82429622 | AV180: 3.82429622 | AW180: 3.82429622 | AX180: 3.900782144 | AY180: 3.900782144 | AZ180: 3.900782144 | BA180: 3.900782144 | BB180: 3.978797787 | BC180: 3.978797787 | BD180: 3.978797787 | BE180: 3.978797787 | BF180: 4.058373743 | BG180: 4.058373743 | BH180: 4.058373743 | BI180: 4.058373743 | BJ180: 4.139541217 | BK180: 4.139541217 | BL180: 4.139541217 | BM180: 4.139541217 | BN180: 4.222332042 | BO180: 4.222332042 | BP180: 4.222332042 | BQ180: 4.222332042 | BR180: 4.306778683 | BS180: 4.306778683 | BT180: 4.306778683 | BU180: 4.306778683 | BV180: =$F178 * BV179 -> 4.392914256 | BW180: 4.392914256 | BX180: 4.392914256 | BY180: 4.392914256 | BZ180: 4.480772541 | CA180: 4.480772541 | CB180: 4.480772541 | CC180: 4.480772541 | CD180: 4.570387992 | CE180: 4.570387992 | CF180: 4.570387992 | CG180: 4.570387992 | CH180: 4.661795752 | CI180: 4.661795752 | CJ180: 4.661795752 | CK180: 4.661795752 | CL180: 4.755031667 | CM180: 4.755031667 | CN180: 4.755031667 | CO180: 4.755031667 | CP180: 4.8501323 | CQ180: 4.8501323 | CR180: 4.8501323 | CS180: 4.8501323 | CT180: 4.947134946 | CU180: 4.947134946 | CV180: 4.947134946 | CW180: 4.947134946 | CX180: 5.046077645 | CY180: 5.046077645 | CZ180: 5.046077645 | DA180: 5.046077645 | DB180: =$F178 * DB179 -> 5.146999198 | DC180: 5.146999198 | DD180: 5.146999198 | DE180: 5.146999198 | DF180: 5.249939182 | DG180: 5.249939182 | DH180: 5.249939182 | DI180: 5.249939182 | DJ180: 5.354937966 | DK180: 5.354937966 | DL180: 5.354937966 | DM180: 5.354937966 | DN180: 5.462036725 | DO180: 5.462036725 | DP180: 5.462036725 | DQ180: 5.462036725 | DR180: 5.57127746 | DS180: 5.57127746 | DT180: 5.57127746 | DU180: 5.57127746 | DV180: 5.682703009 | DW180: 5.682703009 | DX180: 5.682703009 | DY180: 5.682703009 | DZ180: 5.796357069 | EA180: 5.796357069 | EB180: 5.796357069 | EC180: 5.796357069 | ED180: 5.912284211 | EE180: 5.912284211 | EF180: 5.912284211 | EG180: 5.912284211 | EH180: =$F178 * EH179 -> 6.030529895 | EI180: 6.030529895
E182: =E$34 -> Visitors - Food/Beverages - Evening Parking | F182: =F$34 -> 35770 | G182: hours p/y
E183: =E$47 -> Model Periods per year | F183: =F$47 -> 4 | G183: quarters
E184: =C$177 & " parking hours per period" -> Visitors - Food/Beverages - Evening Parking parking hours per period | F184: =F182 / F183 -> 8942.5 | G184: hours/quarter
E186: =E$184 -> Visitors - Food/Beverages - Evening Parking parking hours per period | F186: =F$184 -> 8942.5 | G186: =G$184 -> hours/quarter
E187: =E$51 -> Units in thousand conversion to Cash Flows | F187: =F$51 -> 1000 | G187: units / 000s
E188: =E$180 -> Visitors - Food/Beverages - Evening Parking Revenue per hour | F188: 0 | G188: kn p/h | H188: 0 | I188: 0 | J188: 3.2 | K188: 3.2 | L188: 3.2 | M188: 3.2 | N188: 3.264 | O188: 3.264 | P188: 3.264 | Q188: 3.264 | R188: 3.32928 | S188: 3.32928 | T188: 3.32928 | U188: 3.32928 | V188: 3.3958656 | W188: 3.3958656 | X188: 3.3958656 | Y188: 3.3958656 | Z188: 3.463782912 | AA188: 3.463782912 | AB188: 3.463782912 | AC188: 3.463782912 | AD188: 3.53305857 | AE188: 3.53305857 | AF188: 3.53305857 | AG188: 3.53305857 | AH188: 3.603719742 | AI188: 3.603719742 | AJ188: 3.603719742 | AK188: =AK$180 -> 3.603719742 | AL188: 3.675794136 | AM188: 3.675794136 | AN188: 3.675794136 | AO188: 3.675794136 | AP188: 3.749310019 | AQ188: 3.749310019 | AR188: 3.749310019 | AS188: 3.749310019 | AT188: 3.82429622 | AU188: 3.82429622 | AV188: 3.82429622 | AW188: 3.82429622 | AX188: 3.900782144 | AY188: 3.900782144 | AZ188: 3.900782144 | BA188: 3.900782144 | BB188: 3.978797787 | BC188: 3.978797787 | BD188: 3.978797787 | BE188: 3.978797787 | BF188: 4.058373743 | BG188: 4.058373743 | BH188: 4.058373743 | BI188: 4.058373743 | BJ188: 4.139541217 | BK188: 4.139541217 | BL188: 4.139541217 | BM188: 4.139541217 | BN188: 4.222332042 | BO188: 4.222332042 | BP188: 4.222332042 | BQ188: =BQ$180 -> 4.222332042 | BR188: 4.306778683 | BS188: 4.306778683 | BT188: 4.306778683 | BU188: 4.306778683 | BV188: 4.392914256 | BW188: 4.392914256 | BX188: 4.392914256 | BY188: 4.392914256 | BZ188: 4.480772541 | CA188: 4.480772541 | CB188: 4.480772541 | CC188: 4.480772541 | CD188: 4.570387992 | CE188: 4.570387992 | CF188: 4.570387992 | CG188: 4.570387992 | CH188: 4.661795752 | CI188: 4.661795752 | CJ188: 4.661795752 | CK188: 4.661795752 | CL188: 4.755031667 | CM188: 4.755031667 | CN188: 4.755031667 | CO188: 4.755031667 | CP188: 4.8501323 | CQ188: 4.8501323 | CR188: 4.8501323 | CS188: 4.8501323 | CT188: 4.947134946 | CU188: 4.947134946 | CV188: 4.947134946 | CW188: =CW$180 -> 4.947134946 | CX188: 5.046077645 | CY188: 5.046077645 | CZ188: 5.046077645 | DA188: 5.046077645 | DB188: 5.146999198 | DC188: 5.146999198 | DD188: 5.146999198 | DE188: 5.146999198 | DF188: 5.249939182 | DG188: 5.249939182 | DH188: 5.249939182 | DI188: 5.249939182 | DJ188: 5.354937966 | DK188: 5.354937966 | DL188: 5.354937966 | DM188: 5.354937966 | DN188: 5.462036725 | DO188: 5.462036725 | DP188: 5.462036725 | DQ188: 5.462036725 | DR188: 5.57127746 | DS188: 5.57127746 | DT188: 5.57127746 | DU188: 5.57127746 | DV188: 5.682703009 | DW188: 5.682703009 | DX188: 5.682703009 | DY188: 5.682703009 | DZ188: 5.796357069 | EA188: 5.796357069 | EB188: 5.796357069 | EC188: =EC$180 -> 5.796357069 | ED188: 5.912284211 | EE188: 5.912284211 | EF188: 5.912284211 | EG188: 5.912284211 | EH188: 6.030529895 | EI188: 6.030529895
E189: =E$53 -> Contractual Operation period fraction | F189: =F$53 -> 0 | G189: partial factor | H189: 120 | I189: 0 | J189: 0 | K189: 0 | L189: 0 | M189: 0 | N189: 0 | O189: 0 | P189: 0 | Q189: 0 | R189: 0 | S189: 0.3296703297 | T189: 1 | U189: 1 | V189: 1 | W189: 1 | X189: 1 | Y189: 1 | Z189: 1 | AA189: 1 | AB189: 1 | AC189: 1 | AD189: 1 | AE189: 1 | AF189: 1 | AG189: 1 | AH189: 1 | AI189: 1 | AJ189: 1 | AK189: 1 | AL189: 1 | AM189: 1 | AN189: 1 | AO189: 1 | AP189: 1 | AQ189: 1 | AR189: 1 | AS189: 1 | AT189: 1 | AU189: 1 | AV189: 1 | AW189: 1 | AX189: 1 | AY189: 1 | AZ189: 1 | BA189: 1 | BB189: 1 | BC189: 1 | BD189: 1 | BE189: 1 | BF189: 1 | BG189: 1 | BH189: 1 | BI189: 1 | BJ189: 1 | BK189: 1 | BL189: 1 | BM189: 1 | BN189: 1 | BO189: 1 | BP189: 1 | BQ189: 1 | BR189: =BR$53 -> 1 | BS189: 1 | BT189: 1 | BU189: 1 | BV189: 1 | BW189: 1 | BX189: 1 | BY189: 1 | BZ189: 1 | CA189: 1 | CB189: 1 | CC189: 1 | CD189: 1 | CE189: 1 | CF189: 1 | CG189: 1 | CH189: 1 | CI189: 1 | CJ189: 1 | CK189: 1 | CL189: 1 | CM189: 1 | CN189: 1 | CO189: 1 | CP189: 1 | CQ189: 1 | CR189: 1 | CS189: 1 | CT189: 1 | CU189: 1 | CV189: 1 | CW189: 1 | CX189: 1 | CY189: 1 | CZ189: 1 | DA189: 1 | DB189: 1 | DC189: 1 | DD189: 1 | DE189: 1 | DF189: 1 | DG189: 1 | DH189: 1 | DI189: 1 | DJ189: 1 | DK189: 1 | DL189: 1 | DM189: 1 | DN189: 1 | DO189: 1 | DP189: 1 | DQ189: 1 | DR189: 1 | DS189: 1 | DT189: 1 | DU189: 1 | DV189: 1 | DW189: 1 | DX189: 1 | DY189: 1 | DZ189: 1 | EA189: 1 | EB189: 1 | EC189: 1 | ED189: =ED$53 -> 1 | EE189: 1 | EF189: 1 | EG189: 1 | EH189: 1 | EI189: 0.6703296703
E190: =E$9 -> Parking garage ramp up and realisation | F190: 0 | G190: % | H190: 0 | I190: 0 | J190: 0 | K190: 0 | L190: 0 | M190: 0 | N190: 0 | O190: 0 | P190: 0 | Q190: 0 | R190: 0 | S190: 0.55 | T190: 0.55 | U190: 0.55 | V190: 0.85 | W190: 0.85 | X190: 0.85 | Y190: 0.85 | Z190: 0.85 | AA190: 0.85 | AB190: 0.85 | AC190: 0.85 | AD190: 0.85 | AE190: 0.85 | AF190: 0.85 | AG190: 0.85 | AH190: 1 | AI190: 1 | AJ190: 1 | AK190: =AK$9 -> 1 | AL190: 1 | AM190: 1 | AN190: 1 | AO190: 1 | AP190: 1 | AQ190: 1 | AR190: 1 | AS190: 1 | AT190: 1 | AU190: 1 | AV190: 1 | AW190: 1 | AX190: 1 | AY190: 1 | AZ190: 1 | BA190: 1 | BB190: 1 | BC190: 1 | BD190: 1 | BE190: 1 | BF190: 1.1 | BG190: 1.1 | BH190: 1.1 | BI190: 1.1 | BJ190: 1.1 | BK190: 1.1 | BL190: 1.1 | BM190: 1.1 | BN190: 1.1 | BO190: 1.1 | BP190: 1.1 | BQ190: =BQ$9 -> 1.1 | BR190: 1.1 | BS190: 1.1 | BT190: 1.1 | BU190: 1.1 | BV190: 1.1 | BW190: 1.1 | BX190: 1.1 | BY190: 1.1 | BZ190: 1.2 | CA190: 1.2 | CB190: 1.2 | CC190: 1.2 | CD190: 1.2 | CE190: 1.2 | CF190: 1.2 | CG190: 1.2 | CH190: 1.2 | CI190: 1.2 | CJ190: 1.2 | CK190: 1.2 | CL190: 1.2 | CM190: 1.2 | CN190: 1.2 | CO190: 1.2 | CP190: 1.2 | CQ190: 1.2 | CR190: 1.2 | CS190: 1.2 | CT190: 1.3 | CU190: 1.3 | CV190: 1.3 | CW190: =CW$9 -> 1.3 | CX190: 1.3 | CY190: 1.3 | CZ190: 1.3 | DA190: 1.3 | DB190: 1.3 | DC190: 1.3 | DD190: 1.3 | DE190: 1.3 | DF190: 1.3 | DG190: 1.3 | DH190: 1.3 | DI190: 1.3 | DJ190: 1.3 | DK190: 1.3 | DL190: 1.3 | DM190: 1.3 | DN190: 1.3 | DO190: 1.3 | DP190: 1.3 | DQ190: 1.3 | DR190: 1.3 | DS190: 1.3 | DT190: 1.3 | DU190: 1.3 | DV190: 1.3 | DW190: 1.3 | DX190: 1.3 | DY190: 1.3 | DZ190: 1.3 | EA190: 1.3 | EB190: 1.3 | EC190: =EC$9 -> 1.3 | ED190: 1.3 | EE190: 1.3 | EF190: 1.3 | EG190: 1.3 | EH190: 1.3 | EI190: 1.3
E191: =C$177 & " Total Revenue" -> Visitors - Food/Beverages - Evening Parking Total Revenue | G191: =SMU -> '000 HRK | H191: =SUM(J$191:EI$191) -> 5635.242798 | J191: =J188 * $F186 * J189 * J190 / $F187 -> 0 | K191: 0 | L191: 0 | M191: 0 | N191: 0 | O191: 0 | P191: 0 | Q191: 0 | R191: 0 | S191: 5.398235446 | T191: 16.37464752 | U191: 16.37464752 | V191: 25.81239891 | W191: 25.81239891 | X191: 25.81239891 | Y191: 25.81239891 | Z191: 26.32864689 | AA191: 26.32864689 | AB191: 26.32864689 | AC191: 26.32864689 | AD191: 26.85521982 | AE191: 26.85521982 | AF191: 26.85521982 | AG191: 26.85521982 | AH191: 32.22626379 | AI191: 32.22626379 | AJ191: 32.22626379 | AK191: 32.22626379 | AL191: 32.87078907 | AM191: 32.87078907 | AN191: 32.87078907 | AO191: 32.87078907 | AP191: =AP188 * $F186 * AP189 * AP190 / $F187 -> 33.52820485 | AQ191: 33.52820485 | AR191: 33.52820485 | AS191: 33.52820485 | AT191: 34.19876894 | AU191: 34.19876894 | AV191: 34.19876894 | AW191: 34.19876894 | AX191: 34.88274432 | AY191: 34.88274432 | AZ191: 34.88274432 | BA191: 34.88274432 | BB191: 35.58039921 | BC191: 35.58039921 | BD191: 35.58039921 | BE191: 35.58039921 | BF191: 39.92120791 | BG191: 39.92120791 | BH191: 39.92120791 | BI191: 39.92120791 | BJ191: 40.71963207 | BK191: 40.71963207 | BL191: 40.71963207 | BM191: 40.71963207 | BN191: 41.53402471 | BO191: 41.53402471 | BP191: 41.53402471 | BQ191: 41.53402471 | BR191: 42.36470521 | BS191: 42.36470521 | BT191: 42.36470521 | BU191: 42.36470521 | BV191: =BV188 * $F186 * BV189 * BV190 / $F187 -> 43.21199931 | BW191: 43.21199931 | BX191: 43.21199931 | BY191: 43.21199931 | BZ191: 48.08317014 | CA191: 48.08317014 | CB191: 48.08317014 | CC191: 48.08317014 | CD191: 49.04483354 | CE191: 49.04483354 | CF191: 49.04483354 | CG191: 49.04483354 | CH191: 50.02573022 | CI191: 50.02573022 | CJ191: 50.02573022 | CK191: 50.02573022 | CL191: 51.02624482 | CM191: 51.02624482 | CN191: 51.02624482 | CO191: 51.02624482 | CP191: 52.04676972 | CQ191: 52.04676972 | CR191: 52.04676972 | CS191: 52.04676972 | CT191: 57.51168054 | CU191: 57.51168054 | CV191: 57.51168054 | CW191: 57.51168054 | CX191: 58.66191415 | CY191: 58.66191415 | CZ191: 58.66191415 | DA191: 58.66191415 | DB191: =DB188 * $F186 * DB189 * DB190 / $F187 -> 59.83515243 | DC191: 59.83515243 | DD191: 59.83515243 | DE191: 59.83515243 | DF191: 61.03185548 | DG191: 61.03185548 | DH191: 61.03185548 | DI191: 61.03185548 | DJ191: 62.25249259 | DK191: 62.25249259 | DL191: 62.25249259 | DM191: 62.25249259 | DN191: 63.49754244 | DO191: 63.49754244 | DP191: 63.49754244 | DQ191: 63.49754244 | DR191: 64.76749329 | DS191: 64.76749329 | DT191: 64.76749329 | DU191: 64.76749329 | DV191: 66.06284315 | DW191: 66.06284315 | DX191: 66.06284315 | DY191: 66.06284315 | DZ191: 67.38410002 | EA191: 67.38410002 | EB191: 67.38410002 | EC191: 67.38410002 | ED191: 68.73178202 | EE191: 68.73178202 | EF191: 68.73178202 | EG191: 68.73178202 | EH191: =EH188 * $F186 * EH189 * EH190 / $F187 -> 70.10641766 | EI191: 46.99441184
C194: Others - Day Parking
E195: =E$22 -> Others - Day Parking | F195: =F$22 -> 4.8 | G195: kn p/h
E196: =E$43 -> CPI Indexation | F196: =F$43 -> 0 | G196: index | H196: 0 | I196: 0 | J196: 1 | K196: 1 | L196: 1 | M196: 1 | N196: 1.02 | O196: 1.02 | P196: 1.02 | Q196: 1.02 | R196: 1.0404 | S196: 1.0404 | T196: 1.0404 | U196: 1.0404 | V196: 1.061208 | W196: 1.061208 | X196: 1.061208 | Y196: 1.061208 | Z196: 1.08243216 | AA196: 1.08243216 | AB196: 1.08243216 | AC196: 1.08243216 | AD196: 1.104080803 | AE196: 1.104080803 | AF196: 1.104080803 | AG196: 1.104080803 | AH196: 1.126162419 | AI196: 1.126162419 | AJ196: 1.126162419 | AK196: 1.126162419 | AL196: 1.148685668 | AM196: 1.148685668 | AN196: 1.148685668 | AO196: 1.148685668 | AP196: 1.171659381 | AQ196: 1.171659381 | AR196: 1.171659381 | AS196: 1.171659381 | AT196: 1.195092569 | AU196: 1.195092569 | AV196: 1.195092569 | AW196: 1.195092569 | AX196: 1.21899442 | AY196: 1.21899442 | AZ196: 1.21899442 | BA196: 1.21899442 | BB196: 1.243374308 | BC196: 1.243374308 | BD196: 1.243374308 | BE196: 1.243374308 | BF196: 1.268241795 | BG196: 1.268241795 | BH196: 1.268241795 | BI196: 1.268241795 | BJ196: 1.29360663 | BK196: 1.29360663 | BL196: 1.29360663 | BM196: 1.29360663 | BN196: 1.319478763 | BO196: 1.319478763 | BP196: 1.319478763 | BQ196: 1.319478763 | BR196: =BR$43 -> 1.345868338 | BS196: 1.345868338 | BT196: 1.345868338 | BU196: 1.345868338 | BV196: 1.372785705 | BW196: 1.372785705 | BX196: 1.372785705 | BY196: 1.372785705 | BZ196: 1.400241419 | CA196: 1.400241419 | CB196: 1.400241419 | CC196: 1.400241419 | CD196: 1.428246248 | CE196: 1.428246248 | CF196: 1.428246248 | CG196: 1.428246248 | CH196: 1.456811173 | CI196: 1.456811173 | CJ196: 1.456811173 | CK196: 1.456811173 | CL196: 1.485947396 | CM196: 1.485947396 | CN196: 1.485947396 | CO196: 1.485947396 | CP196: 1.515666344 | CQ196: 1.515666344 | CR196: 1.515666344 | CS196: 1.515666344 | CT196: 1.545979671 | CU196: 1.545979671 | CV196: 1.545979671 | CW196: 1.545979671 | CX196: 1.576899264 | CY196: 1.576899264 | CZ196: 1.576899264 | DA196: 1.576899264 | DB196: 1.608437249 | DC196: 1.608437249 | DD196: 1.608437249 | DE196: 1.608437249 | DF196: 1.640605994 | DG196: 1.640605994 | DH196: 1.640605994 | DI196: 1.640605994 | DJ196: 1.673418114 | DK196: 1.673418114 | DL196: 1.673418114 | DM196: 1.673418114 | DN196: 1.706886477 | DO196: 1.706886477 | DP196: 1.706886477 | DQ196: 1.706886477 | DR196: 1.741024206 | DS196: 1.741024206 | DT196: 1.741024206 | DU196: 1.741024206 | DV196: 1.77584469 | DW196: 1.77584469 | DX196: 1.77584469 | DY196: 1.77584469 | DZ196: 1.811361584 | EA196: 1.811361584 | EB196: 1.811361584 | EC196: 1.811361584 | ED196: =ED$43 -> 1.847588816 | EE196: 1.847588816 | EF196: 1.847588816 | EG196: 1.847588816 | EH196: 1.884540592 | EI196: 1.884540592
E197: =C$194 & " Revenue per hour" -> Others - Day Parking Revenue per hour | G197: kn p/h | J197: =$F195 * J196 -> 4.8 | K197: 4.8 | L197: 4.8 | M197: 4.8 | N197: 4.896 | O197: 4.896 | P197: 4.896 | Q197: 4.896 | R197: 4.99392 | S197: 4.99392 | T197: 4.99392 | U197: 4.99392 | V197: 5.0937984 | W197: 5.0937984 | X197: 5.0937984 | Y197: 5.0937984 | Z197: 5.195674368 | AA197: 5.195674368 | AB197: 5.195674368 | AC197: 5.195674368 | AD197: 5.299587855 | AE197: 5.299587855 | AF197: 5.299587855 | AG197: 5.299587855 | AH197: 5.405579612 | AI197: 5.405579612 | AJ197: 5.405579612 | AK197: 5.405579612 | AL197: 5.513691205 | AM197: 5.513691205 | AN197: 5.513691205 | AO197: 5.513691205 | AP197: =$F195 * AP196 -> 5.623965029 | AQ197: 5.623965029 | AR197: 5.623965029 | AS197: 5.623965029 | AT197: 5.736444329 | AU197: 5.736444329 | AV197: 5.736444329 | AW197: 5.736444329 | AX197: 5.851173216 | AY197: 5.851173216 | AZ197: 5.851173216 | BA197: 5.851173216 | BB197: 5.96819668 | BC197: 5.96819668 | BD197: 5.96819668 | BE197: 5.96819668 | BF197: 6.087560614 | BG197: 6.087560614 | BH197: 6.087560614 | BI197: 6.087560614 | BJ197: 6.209311826 | BK197: 6.209311826 | BL197: 6.209311826 | BM197: 6.209311826 | BN197: 6.333498063 | BO197: 6.333498063 | BP197: 6.333498063 | BQ197: 6.333498063 | BR197: 6.460168024 | BS197: 6.460168024 | BT197: 6.460168024 | BU197: 6.460168024 | BV197: =$F195 * BV196 -> 6.589371384 | BW197: 6.589371384 | BX197: 6.589371384 | BY197: 6.589371384 | BZ197: 6.721158812 | CA197: 6.721158812 | CB197: 6.721158812 | CC197: 6.721158812 | CD197: 6.855581988 | CE197: 6.855581988 | CF197: 6.855581988 | CG197: 6.855581988 | CH197: 6.992693628 | CI197: 6.992693628 | CJ197: 6.992693628 | CK197: 6.992693628 | CL197: 7.132547501 | CM197: 7.132547501 | CN197: 7.132547501 | CO197: 7.132547501 | CP197: 7.275198451 | CQ197: 7.275198451 | CR197: 7.275198451 | CS197: 7.275198451 | CT197: 7.42070242 | CU197: 7.42070242 | CV197: 7.42070242 | CW197: 7.42070242 | CX197: 7.569116468 | CY197: 7.569116468 | CZ197: 7.569116468 | DA197: 7.569116468 | DB197: =$F195 * DB196 -> 7.720498797 | DC197: 7.720498797 | DD197: 7.720498797 | DE197: 7.720498797 | DF197: 7.874908773 | DG197: 7.874908773 | DH197: 7.874908773 | DI197: 7.874908773 | DJ197: 8.032406949 | DK197: 8.032406949 | DL197: 8.032406949 | DM197: 8.032406949 | DN197: 8.193055088 | DO197: 8.193055088 | DP197: 8.193055088 | DQ197: 8.193055088 | DR197: 8.35691619 | DS197: 8.35691619 | DT197: 8.35691619 | DU197: 8.35691619 | DV197: 8.524054513 | DW197: 8.524054513 | DX197: 8.524054513 | DY197: 8.524054513 | DZ197: 8.694535604 | EA197: 8.694535604 | EB197: 8.694535604 | EC197: 8.694535604 | ED197: 8.868426316 | EE197: 8.868426316 | EF197: 8.868426316 | EG197: 8.868426316 | EH197: =$F195 * EH196 -> 9.045794842 | EI197: 9.045794842
E199: =E$35 -> Others - Day Parking | F199: =F$35 -> 49676 | G199: hours p/y
E200: =E$47 -> Model Periods per year | F200: =F$47 -> 4 | G200: quarters
E201: =C$194 & " parking hours per period" -> Others - Day Parking parking hours per period | F201: =F199 / F200 -> 12419 | G201: hours/quarter
E203: =E$201 -> Others - Day Parking parking hours per period | F203: =F$201 -> 12419 | G203: =G$201 -> hours/quarter
E204: =E$51 -> Units in thousand conversion to Cash Flows | F204: =F$51 -> 1000 | G204: units / 000s
E205: =E$197 -> Others - Day Parking Revenue per hour | F205: 0 | G205: kn p/h | H205: 0 | I205: 0 | J205: 4.8 | K205: 4.8 | L205: 4.8 | M205: 4.8 | N205: 4.896 | O205: 4.896 | P205: 4.896 | Q205: 4.896 | R205: 4.99392 | S205: 4.99392 | T205: 4.99392 | U205: 4.99392 | V205: 5.0937984 | W205: 5.0937984 | X205: 5.0937984 | Y205: 5.0937984 | Z205: 5.195674368 | AA205: 5.195674368 | AB205: 5.195674368 | AC205: 5.195674368 | AD205: 5.299587855 | AE205: 5.299587855 | AF205: 5.299587855 | AG205: 5.299587855 | AH205: 5.405579612 | AI205: 5.405579612 | AJ205: 5.405579612 | AK205: =AK$197 -> 5.405579612 | AL205: 5.513691205 | AM205: 5.513691205 | AN205: 5.513691205 | AO205: 5.513691205 | AP205: 5.623965029 | AQ205: 5.623965029 | AR205: 5.623965029 | AS205: 5.623965029 | AT205: 5.736444329 | AU205: 5.736444329 | AV205: 5.736444329 | AW205: 5.736444329 | AX205: 5.851173216 | AY205: 5.851173216 | AZ205: 5.851173216 | BA205: 5.851173216 | BB205: 5.96819668 | BC205: 5.96819668 | BD205: 5.96819668 | BE205: 5.96819668 | BF205: 6.087560614 | BG205: 6.087560614 | BH205: 6.087560614 | BI205: 6.087560614 | BJ205: 6.209311826 | BK205: 6.209311826 | BL205: 6.209311826 | BM205: 6.209311826 | BN205: 6.333498063 | BO205: 6.333498063 | BP205: 6.333498063 | BQ205: =BQ$197 -> 6.333498063 | BR205: 6.460168024 | BS205: 6.460168024 | BT205: 6.460168024 | BU205: 6.460168024 | BV205: 6.589371384 | BW205: 6.589371384 | BX205: 6.589371384 | BY205: 6.589371384 | BZ205: 6.721158812 | CA205: 6.721158812 | CB205: 6.721158812 | CC205: 6.721158812 | CD205: 6.855581988 | CE205: 6.855581988 | CF205: 6.855581988 | CG205: 6.855581988 | CH205: 6.992693628 | CI205: 6.992693628 | CJ205: 6.992693628 | CK205: 6.992693628 | CL205: 7.132547501 | CM205: 7.132547501 | CN205: 7.132547501 | CO205: 7.132547501 | CP205: 7.275198451 | CQ205: 7.275198451 | CR205: 7.275198451 | CS205: 7.275198451 | CT205: 7.42070242 | CU205: 7.42070242 | CV205: 7.42070242 | CW205: =CW$197 -> 7.42070242 | CX205: 7.569116468 | CY205: 7.569116468 | CZ205: 7.569116468 | DA205: 7.569116468 | DB205: 7.720498797 | DC205: 7.720498797 | DD205: 7.720498797 | DE205: 7.720498797 | DF205: 7.874908773 | DG205: 7.874908773 | DH205: 7.874908773 | DI205: 7.874908773 | DJ205: 8.032406949 | DK205: 8.032406949 | DL205: 8.032406949 | DM205: 8.032406949 | DN205: 8.193055088 | DO205: 8.193055088 | DP205: 8.193055088 | DQ205: 8.193055088 | DR205: 8.35691619 | DS205: 8.35691619 | DT205: 8.35691619 | DU205: 8.35691619 | DV205: 8.524054513 | DW205: 8.524054513 | DX205: 8.524054513 | DY205: 8.524054513 | DZ205: 8.694535604 | EA205: 8.694535604 | EB205: 8.694535604 | EC205: =EC$197 -> 8.694535604 | ED205: 8.868426316 | EE205: 8.868426316 | EF205: 8.868426316 | EG205: 8.868426316 | EH205: 9.045794842 | EI205: 9.045794842
E206: =E$53 -> Contractual Operation period fraction | F206: =F$53 -> 0 | G206: partial factor | H206: 120 | I206: 0 | J206: 0 | K206: 0 | L206: 0 | M206: 0 | N206: 0 | O206: 0 | P206: 0 | Q206: 0 | R206: 0 | S206: 0.3296703297 | T206: 1 | U206: 1 | V206: 1 | W206: 1 | X206: 1 | Y206: 1 | Z206: 1 | AA206: 1 | AB206: 1 | AC206: 1 | AD206: 1 | AE206: 1 | AF206: 1 | AG206: 1 | AH206: 1 | AI206: 1 | AJ206: 1 | AK206: 1 | AL206: 1 | AM206: 1 | AN206: 1 | AO206: 1 | AP206: 1 | AQ206: 1 | AR206: 1 | AS206: 1 | AT206: 1 | AU206: 1 | AV206: 1 | AW206: 1 | AX206: 1 | AY206: 1 | AZ206: 1 | BA206: 1 | BB206: 1 | BC206: 1 | BD206: 1 | BE206: 1 | BF206: 1 | BG206: 1 | BH206: 1 | BI206: 1 | BJ206: 1 | BK206: 1 | BL206: 1 | BM206: 1 | BN206: 1 | BO206: 1 | BP206: 1 | BQ206: 1 | BR206: =BR$53 -> 1 | BS206: 1 | BT206: 1 | BU206: 1 | BV206: 1 | BW206: 1 | BX206: 1 | BY206: 1 | BZ206: 1 | CA206: 1 | CB206: 1 | CC206: 1 | CD206: 1 | CE206: 1 | CF206: 1 | CG206: 1 | CH206: 1 | CI206: 1 | CJ206: 1 | CK206: 1 | CL206: 1 | CM206: 1 | CN206: 1 | CO206: 1 | CP206: 1 | CQ206: 1 | CR206: 1 | CS206: 1 | CT206: 1 | CU206: 1 | CV206: 1 | CW206: 1 | CX206: 1 | CY206: 1 | CZ206: 1 | DA206: 1 | DB206: 1 | DC206: 1 | DD206: 1 | DE206: 1 | DF206: 1 | DG206: 1 | DH206: 1 | DI206: 1 | DJ206: 1 | DK206: 1 | DL206: 1 | DM206: 1 | DN206: 1 | DO206: 1 | DP206: 1 | DQ206: 1 | DR206: 1 | DS206: 1 | DT206: 1 | DU206: 1 | DV206: 1 | DW206: 1 | DX206: 1 | DY206: 1 | DZ206: 1 | EA206: 1 | EB206: 1 | EC206: 1 | ED206: =ED$53 -> 1 | EE206: 1 | EF206: 1 | EG206: 1 | EH206: 1 | EI206: 0.6703296703
E207: =E$9 -> Parking garage ramp up and realisation | F207: 0 | G207: % | H207: 0 | I207: 0 | J207: 0 | K207: 0 | L207: 0 | M207: 0 | N207: 0 | O207: 0 | P207: 0 | Q207: 0 | R207: 0 | S207: 0.55 | T207: 0.55 | U207: 0.55 | V207: 0.85 | W207: 0.85 | X207: 0.85 | Y207: 0.85 | Z207: 0.85 | AA207: 0.85 | AB207: 0.85 | AC207: 0.85 | AD207: 0.85 | AE207: 0.85 | AF207: 0.85 | AG207: 0.85 | AH207: 1 | AI207: 1 | AJ207: 1 | AK207: =AK$9 -> 1 | AL207: 1 | AM207: 1 | AN207: 1 | AO207: 1 | AP207: 1 | AQ207: 1 | AR207: 1 | AS207: 1 | AT207: 1 | AU207: 1 | AV207: 1 | AW207: 1 | AX207: 1 | AY207: 1 | AZ207: 1 | BA207: 1 | BB207: 1 | BC207: 1 | BD207: 1 | BE207: 1 | BF207: 1.1 | BG207: 1.1 | BH207: 1.1 | BI207: 1.1 | BJ207: 1.1 | BK207: 1.1 | BL207: 1.1 | BM207: 1.1 | BN207: 1.1 | BO207: 1.1 | BP207: 1.1 | BQ207: =BQ$9 -> 1.1 | BR207: 1.1 | BS207: 1.1 | BT207: 1.1 | BU207: 1.1 | BV207: 1.1 | BW207: 1.1 | BX207: 1.1 | BY207: 1.1 | BZ207: 1.2 | CA207: 1.2 | CB207: 1.2 | CC207: 1.2 | CD207: 1.2 | CE207: 1.2 | CF207: 1.2 | CG207: 1.2 | CH207: 1.2 | CI207: 1.2 | CJ207: 1.2 | CK207: 1.2 | CL207: 1.2 | CM207: 1.2 | CN207: 1.2 | CO207: 1.2 | CP207: 1.2 | CQ207: 1.2 | CR207: 1.2 | CS207: 1.2 | CT207: 1.3 | CU207: 1.3 | CV207: 1.3 | CW207: =CW$9 -> 1.3 | CX207: 1.3 | CY207: 1.3 | CZ207: 1.3 | DA207: 1.3 | DB207: 1.3 | DC207: 1.3 | DD207: 1.3 | DE207: 1.3 | DF207: 1.3 | DG207: 1.3 | DH207: 1.3 | DI207: 1.3 | DJ207: 1.3 | DK207: 1.3 | DL207: 1.3 | DM207: 1.3 | DN207: 1.3 | DO207: 1.3 | DP207: 1.3 | DQ207: 1.3 | DR207: 1.3 | DS207: 1.3 | DT207: 1.3 | DU207: 1.3 | DV207: 1.3 | DW207: 1.3 | DX207: 1.3 | DY207: 1.3 | DZ207: 1.3 | EA207: 1.3 | EB207: 1.3 | EC207: =EC$9 -> 1.3 | ED207: 1.3 | EE207: 1.3 | EF207: 1.3 | EG207: 1.3 | EH207: 1.3 | EI207: 1.3
E208: =C$194 & " Total Revenue" -> Others - Day Parking Total Revenue | G208: =SMU -> '000 HRK | H208: =SUM(J$208:EI$208) -> 11739.01263 | J208: =J205 * $F203 * J206 * J207 / $F204 -> 0 | K208: 0 | L208: 0 | M208: 0 | N208: 0 | O208: 0 | P208: 0 | Q208: 0 | R208: 0 | S208: 11.24529259 | T208: 34.11072086 | U208: 34.11072086 | V208: 53.77089998 | W208: 53.77089998 | X208: 53.77089998 | Y208: 53.77089998 | Z208: 54.84631798 | AA208: 54.84631798 | AB208: 54.84631798 | AC208: 54.84631798 | AD208: 55.94324434 | AE208: 55.94324434 | AF208: 55.94324434 | AG208: 55.94324434 | AH208: 67.13189321 | AI208: 67.13189321 | AJ208: 67.13189321 | AK208: 67.13189321 | AL208: 68.47453107 | AM208: 68.47453107 | AN208: 68.47453107 | AO208: 68.47453107 | AP208: =AP205 * $F203 * AP206 * AP207 / $F204 -> 69.84402169 | AQ208: 69.84402169 | AR208: 69.84402169 | AS208: 69.84402169 | AT208: 71.24090213 | AU208: 71.24090213 | AV208: 71.24090213 | AW208: 71.24090213 | AX208: 72.66572017 | AY208: 72.66572017 | AZ208: 72.66572017 | BA208: 72.66572017 | BB208: 74.11903457 | BC208: 74.11903457 | BD208: 74.11903457 | BE208: 74.11903457 | BF208: 83.16155679 | BG208: 83.16155679 | BH208: 83.16155679 | BI208: 83.16155679 | BJ208: 84.82478793 | BK208: 84.82478793 | BL208: 84.82478793 | BM208: 84.82478793 | BN208: 86.52128368 | BO208: 86.52128368 | BP208: 86.52128368 | BQ208: 86.52128368 | BR208: 88.25170936 | BS208: 88.25170936 | BT208: 88.25170936 | BU208: 88.25170936 | BV208: =BV205 * $F203 * BV206 * BV207 / $F204 -> 90.01674355 | BW208: 90.01674355 | BX208: 90.01674355 | BY208: 90.01674355 | BZ208: 100.1640855 | CA208: 100.1640855 | CB208: 100.1640855 | CC208: 100.1640855 | CD208: 102.1673673 | CE208: 102.1673673 | CF208: 102.1673673 | CG208: 102.1673673 | CH208: 104.2107146 | CI208: 104.2107146 | CJ208: 104.2107146 | CK208: 104.2107146 | CL208: 106.2949289 | CM208: 106.2949289 | CN208: 106.2949289 | CO208: 106.2949289 | CP208: 108.4208275 | CQ208: 108.4208275 | CR208: 108.4208275 | CS208: 108.4208275 | CT208: 119.8050144 | CU208: 119.8050144 | CV208: 119.8050144 | CW208: 119.8050144 | CX208: 122.2011146 | CY208: 122.2011146 | CZ208: 122.2011146 | DA208: 122.2011146 | DB208: =DB205 * $F203 * DB206 * DB207 / $F204 -> 124.6451369 | DC208: 124.6451369 | DD208: 124.6451369 | DE208: 124.6451369 | DF208: 127.1380397 | DG208: 127.1380397 | DH208: 127.1380397 | DI208: 127.1380397 | DJ208: 129.6808005 | DK208: 129.6808005 | DL208: 129.6808005 | DM208: 129.6808005 | DN208: 132.2744165 | DO208: 132.2744165 | DP208: 132.2744165 | DQ208: 132.2744165 | DR208: 134.9199048 | DS208: 134.9199048 | DT208: 134.9199048 | DU208: 134.9199048 | DV208: 137.6183029 | DW208: 137.6183029 | DX208: 137.6183029 | DY208: 137.6183029 | DZ208: 140.370669 | EA208: 140.370669 | EB208: 140.370669 | EC208: 140.370669 | ED208: 143.1780823 | EE208: 143.1780823 | EF208: 143.1780823 | EG208: 143.1780823 | EH208: =EH205 * $F203 * EH206 * EH207 / $F204 -> 146.041644 | EI208: 97.89604707
B212: PARKING REVENUE SUMMARY
E214: =E$55 -> Workers - Subscription Total Revenue | F214: 0 | G214: '000 HRK | H214: 18194.14328 | I214: 0 | J214: 0 | K214: 0 | L214: 0 | M214: 0 | N214: 0 | O214: 0 | P214: 0 | Q214: 0 | R214: 0 | S214: 17.428933 | T214: 52.86776344 | U214: 52.86776344 | V214: 83.33881982 | W214: 83.33881982 | X214: 83.33881982 | Y214: 83.33881982 | Z214: 85.00559622 | AA214: 85.00559622 | AB214: 85.00559622 | AC214: 85.00559622 | AD214: 86.70570814 | AE214: 86.70570814 | AF214: 86.70570814 | AG214: 86.70570814 | AH214: 104.0468498 | AI214: 104.0468498 | AJ214: 104.0468498 | AK214: =AK$55 -> 104.0468498 | AL214: 106.1277868 | AM214: 106.1277868 | AN214: 106.1277868 | AO214: 106.1277868 | AP214: 108.2503425 | AQ214: 108.2503425 | AR214: 108.2503425 | AS214: 108.2503425 | AT214: 110.4153493 | AU214: 110.4153493 | AV214: 110.4153493 | AW214: 110.4153493 | AX214: 112.6236563 | AY214: 112.6236563 | AZ214: 112.6236563 | BA214: 112.6236563 | BB214: 114.8761295 | BC214: 114.8761295 | BD214: 114.8761295 | BE214: 114.8761295 | BF214: 128.8910173 | BG214: 128.8910173 | BH214: 128.8910173 | BI214: 128.8910173 | BJ214: 131.4688376 | BK214: 131.4688376 | BL214: 131.4688376 | BM214: 131.4688376 | BN214: 134.0982144 | BO214: 134.0982144 | BP214: 134.0982144 | BQ214: =BQ$55 -> 134.0982144 | BR214: 136.7801786 | BS214: 136.7801786 | BT214: 136.7801786 | BU214: 136.7801786 | BV214: 139.5157822 | BW214: 139.5157822 | BX214: 139.5157822 | BY214: 139.5157822 | BZ214: 155.2430158 | CA214: 155.2430158 | CB214: 155.2430158 | CC214: 155.2430158 | CD214: 158.3478762 | CE214: 158.3478762 | CF214: 158.3478762 | CG214: 158.3478762 | CH214: 161.5148337 | CI214: 161.5148337 | CJ214: 161.5148337 | CK214: 161.5148337 | CL214: 164.7451304 | CM214: 164.7451304 | CN214: 164.7451304 | CO214: 164.7451304 | CP214: 168.040033 | CQ214: 168.040033 | CR214: 168.040033 | CS214: 168.040033 | CT214: 185.6842364 | CU214: 185.6842364 | CV214: 185.6842364 | CW214: =CW$55 -> 185.6842364 | CX214: 189.3979212 | CY214: 189.3979212 | CZ214: 189.3979212 | DA214: 189.3979212 | DB214: 193.1858796 | DC214: 193.1858796 | DD214: 193.1858796 | DE214: 193.1858796 | DF214: 197.0495972 | DG214: 197.0495972 | DH214: 197.0495972 | DI214: 197.0495972 | DJ214: 200.9905891 | DK214: 200.9905891 | DL214: 200.9905891 | DM214: 200.9905891 | DN214: 205.0104009 | DO214: 205.0104009 | DP214: 205.0104009 | DQ214: 205.0104009 | DR214: 209.1106089 | DS214: 209.1106089 | DT214: 209.1106089 | DU214: 209.1106089 | DV214: 213.2928211 | DW214: 213.2928211 | DX214: 213.2928211 | DY214: 213.2928211 | DZ214: 217.5586775 | EA214: 217.5586775 | EB214: 217.5586775 | EC214: =EC$55 -> 217.5586775 | ED214: 221.9098511 | EE214: 221.9098511 | EF214: 221.9098511 | EG214: 221.9098511 | EH214: 226.3480481 | EI214: 151.7278125
E215: =E$72 -> Dwellers - Subscription Total Revenue | F215: 0 | G215: '000 HRK | H215: 12129.42885 | I215: 0 | J215: 0 | K215: 0 | L215: 0 | M215: 0 | N215: 0 | O215: 0 | P215: 0 | Q215: 0 | R215: 0 | S215: 11.61928867 | T215: 35.24517563 | U215: 35.24517563 | V215: 55.55921321 | W215: 55.55921321 | X215: 55.55921321 | Y215: 55.55921321 | Z215: 56.67039748 | AA215: 56.67039748 | AB215: 56.67039748 | AC215: 56.67039748 | AD215: 57.80380543 | AE215: 57.80380543 | AF215: 57.80380543 | AG215: 57.80380543 | AH215: 69.36456651 | AI215: 69.36456651 | AJ215: 69.36456651 | AK215: =AK$72 -> 69.36456651 | AL215: 70.75185784 | AM215: 70.75185784 | AN215: 70.75185784 | AO215: 70.75185784 | AP215: 72.166895 | AQ215: 72.166895 | AR215: 72.166895 | AS215: 72.166895 | AT215: 73.6102329 | AU215: 73.6102329 | AV215: 73.6102329 | AW215: 73.6102329 | AX215: 75.08243756 | AY215: 75.08243756 | AZ215: 75.08243756 | BA215: 75.08243756 | BB215: 76.58408631 | BC215: 76.58408631 | BD215: 76.58408631 | BE215: 76.58408631 | BF215: 85.92734484 | BG215: 85.92734484 | BH215: 85.92734484 | BI215: 85.92734484 | BJ215: 87.64589173 | BK215: 87.64589173 | BL215: 87.64589173 | BM215: 87.64589173 | BN215: 89.39880957 | BO215: 89.39880957 | BP215: 89.39880957 | BQ215: =BQ$72 -> 89.39880957 | BR215: 91.18678576 | BS215: 91.18678576 | BT215: 91.18678576 | BU215: 91.18678576 | BV215: 93.01052148 | BW215: 93.01052148 | BX215: 93.01052148 | BY215: 93.01052148 | BZ215: 103.4953439 | CA215: 103.4953439 | CB215: 103.4953439 | CC215: 103.4953439 | CD215: 105.5652508 | CE215: 105.5652508 | CF215: 105.5652508 | CG215: 105.5652508 | CH215: 107.6765558 | CI215: 107.6765558 | CJ215: 107.6765558 | CK215: 107.6765558 | CL215: 109.8300869 | CM215: 109.8300869 | CN215: 109.8300869 | CO215: 109.8300869 | CP215: 112.0266886 | CQ215: 112.0266886 | CR215: 112.0266886 | CS215: 112.0266886 | CT215: 123.789491 | CU215: 123.789491 | CV215: 123.789491 | CW215: =CW$72 -> 123.789491 | CX215: 126.2652808 | CY215: 126.2652808 | CZ215: 126.2652808 | DA215: 126.2652808 | DB215: 128.7905864 | DC215: 128.7905864 | DD215: 128.7905864 | DE215: 128.7905864 | DF215: 131.3663981 | DG215: 131.3663981 | DH215: 131.3663981 | DI215: 131.3663981 | DJ215: 133.9937261 | DK215: 133.9937261 | DL215: 133.9937261 | DM215: 133.9937261 | DN215: 136.6736006 | DO215: 136.6736006 | DP215: 136.6736006 | DQ215: 136.6736006 | DR215: 139.4070726 | DS215: 139.4070726 | DT215: 139.4070726 | DU215: 139.4070726 | DV215: 142.1952141 | DW215: 142.1952141 | DX215: 142.1952141 | DY215: 142.1952141 | DZ215: 145.0391183 | EA215: 145.0391183 | EB215: 145.0391183 | EC215: =EC$72 -> 145.0391183 | ED215: 147.9399007 | EE215: 147.9399007 | EF215: 147.9399007 | EG215: 147.9399007 | EH215: 150.8986987 | EI215: 101.151875
E216: =E$89 -> Students - Day Parking Total Revenue | F216: 0 | G216: '000 HRK | H216: 56151.16931 | I216: 0 | J216: 0 | K216: 0 | L216: 0 | M216: 0 | N216: 0 | O216: 0 | P216: 0 | Q216: 0 | R216: 0 | S216: 53.78956034 | T216: 163.1616664 | U216: 163.1616664 | V216: 257.2021177 | W216: 257.2021177 | X216: 257.2021177 | Y216: 257.2021177 | Z216: 262.3461601 | AA216: 262.3461601 | AB216: 262.3461601 | AC216: 262.3461601 | AD216: 267.5930833 | AE216: 267.5930833 | AF216: 267.5930833 | AG216: 267.5930833 | AH216: 321.1116999 | AI216: 321.1116999 | AJ216: 321.1116999 | AK216: =AK$89 -> 321.1116999 | AL216: 327.5339339 | AM216: 327.5339339 | AN216: 327.5339339 | AO216: 327.5339339 | AP216: 334.0846126 | AQ216: 334.0846126 | AR216: 334.0846126 | AS216: 334.0846126 | AT216: 340.7663048 | AU216: 340.7663048 | AV216: 340.7663048 | AW216: 340.7663048 | AX216: 347.5816309 | AY216: 347.5816309 | AZ216: 347.5816309 | BA216: 347.5816309 | BB216: 354.5332635 | BC216: 354.5332635 | BD216: 354.5332635 | BE216: 354.5332635 | BF216: 397.7863217 | BG216: 397.7863217 | BH216: 397.7863217 | BI216: 397.7863217 | BJ216: 405.7420481 | BK216: 405.7420481 | BL216: 405.7420481 | BM216: 405.7420481 | BN216: 413.8568891 | BO216: 413.8568891 | BP216: 413.8568891 | BQ216: =BQ$89 -> 413.8568891 | BR216: 422.1340269 | BS216: 422.1340269 | BT216: 422.1340269 | BU216: 422.1340269 | BV216: 430.5767074 | BW216: 430.5767074 | BX216: 430.5767074 | BY216: 430.5767074 | BZ216: 479.1144453 | CA216: 479.1144453 | CB216: 479.1144453 | CC216: 479.1144453 | CD216: 488.6967342 | CE216: 488.6967342 | CF216: 488.6967342 | CG216: 488.6967342 | CH216: 498.4706689 | CI216: 498.4706689 | CJ216: 498.4706689 | CK216: 498.4706689 | CL216: 508.4400823 | CM216: 508.4400823 | CN216: 508.4400823 | CO216: 508.4400823 | CP216: 518.608884 | CQ216: 518.608884 | CR216: 518.608884 | CS216: 518.608884 | CT216: 573.0628168 | CU216: 573.0628168 | CV216: 573.0628168 | CW216: =CW$89 -> 573.0628168 | CX216: 584.5240731 | CY216: 584.5240731 | CZ216: 584.5240731 | DA216: 584.5240731 | DB216: 596.2145546 | DC216: 596.2145546 | DD216: 596.2145546 | DE216: 596.2145546 | DF216: 608.1388457 | DG216: 608.1388457 | DH216: 608.1388457 | DI216: 608.1388457 | DJ216: 620.3016226 | DK216: 620.3016226 | DL216: 620.3016226 | DM216: 620.3016226 | DN216: 632.707655 | DO216: 632.707655 | DP216: 632.707655 | DQ216: 632.707655 | DR216: 645.3618081 | DS216: 645.3618081 | DT216: 645.3618081 | DU216: 645.3618081 | DV216: 658.2690443 | DW216: 658.2690443 | DX216: 658.2690443 | DY216: 658.2690443 | DZ216: 671.4344252 | EA216: 671.4344252 | EB216: 671.4344252 | EC216: =EC$89 -> 671.4344252 | ED216: 684.8631137 | EE216: 684.8631137 | EF216: 684.8631137 | EG216: 684.8631137 | EH216: 698.560376 | EI216: 468.2657465
E217: =E$106 -> Visitors - Health/Business/Culture - Day Parking Total Revenue | F217: 0 | G217: '000 HRK | H217: 88323.80549 | I217: 0 | J217: 0 | K217: 0 | L217: 0 | M217: 0 | N217: 0 | O217: 0 | P217: 0 | Q217: 0 | R217: 0 | S217: 84.60907801 | T217: 256.6475366 | U217: 256.6475366 | V217: 404.5698441 | W217: 404.5698441 | X217: 404.5698441 | Y217: 404.5698441 | Z217: 412.661241 | AA217: 412.661241 | AB217: 412.661241 | AC217: 412.661241 | AD217: 420.9144658 | AE217: 420.9144658 | AF217: 420.9144658 | AG217: 420.9144658 | AH217: 505.097359 | AI217: 505.097359 | AJ217: 505.097359 | AK217: =AK$106 -> 505.097359 | AL217: 515.1993062 | AM217: 515.1993062 | AN217: 515.1993062 | AO217: 515.1993062 | AP217: 525.5032923 | AQ217: 525.5032923 | AR217: 525.5032923 | AS217: 525.5032923 | AT217: 536.0133581 | AU217: 536.0133581 | AV217: 536.0133581 | AW217: 536.0133581 | AX217: 546.7336253 | AY217: 546.7336253 | AZ217: 546.7336253 | BA217: 546.7336253 | BB217: 557.6682978 | BC217: 557.6682978 | BD217: 557.6682978 | BE217: 557.6682978 | BF217: 625.7038301 | BG217: 625.7038301 | BH217: 625.7038301 | BI217: 625.7038301 | BJ217: 638.2179067 | BK217: 638.2179067 | BL217: 638.2179067 | BM217: 638.2179067 | BN217: 650.9822649 | BO217: 650.9822649 | BP217: 650.9822649 | BQ217: =BQ$106 -> 650.9822649 | BR217: 664.0019102 | BS217: 664.0019102 | BT217: 664.0019102 | BU217: 664.0019102 | BV217: 677.2819484 | BW217: 677.2819484 | BX217: 677.2819484 | BY217: 677.2819484 | BZ217: 753.6300953 | CA217: 753.6300953 | CB217: 753.6300953 | CC217: 753.6300953 | CD217: 768.7026972 | CE217: 768.7026972 | CF217: 768.7026972 | CG217: 768.7026972 | CH217: 784.0767511 | CI217: 784.0767511 | CJ217: 784.0767511 | CK217: 784.0767511 | CL217: 799.7582862 | CM217: 799.7582862 | CN217: 799.7582862 | CO217: 799.7582862 | CP217: 815.7534519 | CQ217: 815.7534519 | CR217: 815.7534519 | CS217: 815.7534519 | CT217: 901.4075643 | CU217: 901.4075643 | CV217: 901.4075643 | CW217: =CW$106 -> 901.4075643 | CX217: 919.4357156 | CY217: 919.4357156 | CZ217: 919.4357156 | DA217: 919.4357156 | DB217: 937.8244299 | DC217: 937.8244299 | DD217: 937.8244299 | DE217: 937.8244299 | DF217: 956.5809185 | DG217: 956.5809185 | DH217: 956.5809185 | DI217: 956.5809185 | DJ217: 975.7125369 | DK217: 975.7125369 | DL217: 975.7125369 | DM217: 975.7125369 | DN217: 995.2267876 | DO217: 995.2267876 | DP217: 995.2267876 | DQ217: 995.2267876 | DR217: 1015.131323 | DS217: 1015.131323 | DT217: 1015.131323 | DU217: 1015.131323 | DV217: 1035.43395 | DW217: 1035.43395 | DX217: 1035.43395 | DY217: 1035.43395 | DZ217: 1056.142629 | EA217: 1056.142629 | EB217: 1056.142629 | EC217: =EC$106 -> 1056.142629 | ED217: 1077.265481 | EE217: 1077.265481 | EF217: 1077.265481 | EG217: 1077.265481 | EH217: 1098.810791 | EI217: 736.5654753
E218: =E$123 -> Visitors - Culture - Evening Parking Total Revenue | F218: 0 | G218: '000 HRK | H218: 27773.69665 | I218: 0 | J218: 0 | K218: 0 | L218: 0 | M218: 0 | N218: 0 | O218: 0 | P218: 0 | Q218: 0 | R218: 0 | S218: 26.60558898 | T218: 80.70361992 | U218: 80.70361992 | V218: 127.2182518 | W218: 127.2182518 | X218: 127.2182518 | Y218: 127.2182518 | Z218: 129.7626168 | AA218: 129.7626168 | AB218: 129.7626168 | AC218: 129.7626168 | AD218: 132.3578691 | AE218: 132.3578691 | AF218: 132.3578691 | AG218: 132.3578691 | AH218: 158.829443 | AI218: 158.829443 | AJ218: 158.829443 | AK218: =AK$123 -> 158.829443 | AL218: 162.0060318 | AM218: 162.0060318 | AN218: 162.0060318 | AO218: 162.0060318 | AP218: 165.2461525 | AQ218: 165.2461525 | AR218: 165.2461525 | AS218: 165.2461525 | AT218: 168.5510755 | AU218: 168.5510755 | AV218: 168.5510755 | AW218: 168.5510755 | AX218: 171.922097 | AY218: 171.922097 | AZ218: 171.922097 | BA218: 171.922097 | BB218: 175.360539 | BC218: 175.360539 | BD218: 175.360539 | BE218: 175.360539 | BF218: 196.7545247 | BG218: 196.7545247 | BH218: 196.7545247 | BI218: 196.7545247 | BJ218: 200.6896152 | BK218: 200.6896152 | BL218: 200.6896152 | BM218: 200.6896152 | BN218: 204.7034075 | BO218: 204.7034075 | BP218: 204.7034075 | BQ218: =BQ$123 -> 204.7034075 | BR218: 208.7974757 | BS218: 208.7974757 | BT218: 208.7974757 | BU218: 208.7974757 | BV218: 212.9734252 | BW218: 212.9734252 | BX218: 212.9734252 | BY218: 212.9734252 | BZ218: 236.9813386 | CA218: 236.9813386 | CB218: 236.9813386 | CC218: 236.9813386 | CD218: 241.7209653 | CE218: 241.7209653 | CF218: 241.7209653 | CG218: 241.7209653 | CH218: 246.5553846 | CI218: 246.5553846 | CJ218: 246.5553846 | CK218: 246.5553846 | CL218: 251.4864923 | CM218: 251.4864923 | CN218: 251.4864923 | CO218: 251.4864923 | CP218: 256.5162222 | CQ218: 256.5162222 | CR218: 256.5162222 | CS218: 256.5162222 | CT218: 283.4504255 | CU218: 283.4504255 | CV218: 283.4504255 | CW218: =CW$123 -> 283.4504255 | CX218: 289.119434 | CY218: 289.119434 | CZ218: 289.119434 | DA218: 289.119434 | DB218: 294.9018227 | DC218: 294.9018227 | DD218: 294.9018227 | DE218: 294.9018227 | DF218: 300.7998591 | DG218: 300.7998591 | DH218: 300.7998591 | DI218: 300.7998591 | DJ218: 306.8158563 | DK218: 306.8158563 | DL218: 306.8158563 | DM218: 306.8158563 | DN218: 312.9521735 | DO218: 312.9521735 | DP218: 312.9521735 | DQ218: 312.9521735 | DR218: 319.2112169 | DS218: 319.2112169 | DT218: 319.2112169 | DU218: 319.2112169 | DV218: 325.5954413 | DW218: 325.5954413 | DX218: 325.5954413 | DY218: 325.5954413 | DZ218: 332.1073501 | EA218: 332.1073501 | EB218: 332.1073501 | EC218: =EC$123 -> 332.1073501 | ED218: 338.7494971 | EE218: 338.7494971 | EF218: 338.7494971 | EG218: 338.7494971 | EH218: 345.524487 | EI218: 231.6153155
E219: =E$140 -> Visitors - Shopping - Day Parking Total Revenue | F219: 0 | G219: '000 HRK | H219: 45714.46964 | I219: 0 | J219: 0 | K219: 0 | L219: 0 | M219: 0 | N219: 0 | O219: 0 | P219: 0 | Q219: 0 | R219: 0 | S219: 43.79180796 | T219: 132.8351508 | U219: 132.8351508 | V219: 209.3965014 | W219: 209.3965014 | X219: 209.3965014 | Y219: 209.3965014 | Z219: 213.5844314 | AA219: 213.5844314 | AB219: 213.5844314 | AC219: 213.5844314 | AD219: 217.85612 | AE219: 217.85612 | AF219: 217.85612 | AG219: 217.85612 | AH219: 261.427344 | AI219: 261.427344 | AJ219: 261.427344 | AK219: =AK$140 -> 261.427344 | AL219: 266.6558909 | AM219: 266.6558909 | AN219: 266.6558909 | AO219: 266.6558909 | AP219: 271.9890087 | AQ219: 271.9890087 | AR219: 271.9890087 | AS219: 271.9890087 | AT219: 277.4287889 | AU219: 277.4287889 | AV219: 277.4287889 | AW219: 277.4287889 | AX219: 282.9773647 | AY219: 282.9773647 | AZ219: 282.9773647 | BA219: 282.9773647 | BB219: 288.636912 | BC219: 288.636912 | BD219: 288.636912 | BE219: 288.636912 | BF219: 323.8506152 | BG219: 323.8506152 | BH219: 323.8506152 | BI219: 323.8506152 | BJ219: 330.3276275 | BK219: 330.3276275 | BL219: 330.3276275 | BM219: 330.3276275 | BN219: 336.9341801 | BO219: 336.9341801 | BP219: 336.9341801 | BQ219: =BQ$140 -> 336.9341801 | BR219: 343.6728637 | BS219: 343.6728637 | BT219: 343.6728637 | BU219: 343.6728637 | BV219: 350.5463209 | BW219: 350.5463209 | BX219: 350.5463209 | BY219: 350.5463209 | BZ219: 390.0624517 | CA219: 390.0624517 | CB219: 390.0624517 | CC219: 390.0624517 | CD219: 397.8637007 | CE219: 397.8637007 | CF219: 397.8637007 | CG219: 397.8637007 | CH219: 405.8209747 | CI219: 405.8209747 | CJ219: 405.8209747 | CK219: 405.8209747 | CL219: 413.9373942 | CM219: 413.9373942 | CN219: 413.9373942 | CO219: 413.9373942 | CP219: 422.2161421 | CQ219: 422.2161421 | CR219: 422.2161421 | CS219: 422.2161421 | CT219: 466.548837 | CU219: 466.548837 | CV219: 466.548837 | CW219: =CW$140 -> 466.548837 | CX219: 475.8798137 | CY219: 475.8798137 | CZ219: 475.8798137 | DA219: 475.8798137 | DB219: 485.39741 | DC219: 485.39741 | DD219: 485.39741 | DE219: 485.39741 | DF219: 495.1053582 | DG219: 495.1053582 | DH219: 495.1053582 | DI219: 495.1053582 | DJ219: 505.0074654 | DK219: 505.0074654 | DL219: 505.0074654 | DM219: 505.0074654 | DN219: 515.1076147 | DO219: 515.1076147 | DP219: 515.1076147 | DQ219: 515.1076147 | DR219: 525.409767 | DS219: 525.409767 | DT219: 525.409767 | DU219: 525.409767 | DV219: 535.9179623 | DW219: 535.9179623 | DX219: 535.9179623 | DY219: 535.9179623 | DZ219: 546.6363216 | EA219: 546.6363216 | EB219: 546.6363216 | EC219: =EC$140 -> 546.6363216 | ED219: 557.569048 | EE219: 557.569048 | EF219: 557.569048 | EG219: 557.569048 | EH219: 568.720429 | EI219: 381.2301777
E220: =E$157 -> Visitors - Shopping - Evening Parking Total Revenue | F220: 0 | G220: '000 HRK | H220: 13053.0624 | I220: 0 | J220: 0 | K220: 0 | L220: 0 | M220: 0 | N220: 0 | O220: 0 | P220: 0 | Q220: 0 | R220: 0 | S220: 12.50407598 | T220: 37.92903048 | U220: 37.92903048 | V220: 59.78994441 | W220: 59.78994441 | X220: 59.78994441 | Y220: 59.78994441 | Z220: 60.9857433 | AA220: 60.9857433 | AB220: 60.9857433 | AC220: 60.9857433 | AD220: 62.20545817 | AE220: 62.20545817 | AF220: 62.20545817 | AG220: 62.20545817 | AH220: 74.6465498 | AI220: 74.6465498 | AJ220: 74.6465498 | AK220: =AK$157 -> 74.6465498 | AL220: 76.13948079 | AM220: 76.13948079 | AN220: 76.13948079 | AO220: 76.13948079 | AP220: 77.66227041 | AQ220: 77.66227041 | AR220: 77.66227041 | AS220: 77.66227041 | AT220: 79.21551582 | AU220: 79.21551582 | AV220: 79.21551582 | AW220: 79.21551582 | AX220: 80.79982613 | AY220: 80.79982613 | AZ220: 80.79982613 | BA220: 80.79982613 | BB220: 82.41582266 | BC220: 82.41582266 | BD220: 82.41582266 | BE220: 82.41582266 | BF220: 92.47055302 | BG220: 92.47055302 | BH220: 92.47055302 | BI220: 92.47055302 | BJ220: 94.31996408 | BK220: 94.31996408 | BL220: 94.31996408 | BM220: 94.31996408 | BN220: 96.20636336 | BO220: 96.20636336 | BP220: 96.20636336 | BQ220: =BQ$157 -> 96.20636336 | BR220: 98.13049063 | BS220: 98.13049063 | BT220: 98.13049063 | BU220: 98.13049063 | BV220: 100.0931004 | BW220: 100.0931004 | BX220: 100.0931004 | BY220: 100.0931004 | BZ220: 111.3763227 | CA220: 111.3763227 | CB220: 111.3763227 | CC220: 111.3763227 | CD220: 113.6038491 | CE220: 113.6038491 | CF220: 113.6038491 | CG220: 113.6038491 | CH220: 115.8759261 | CI220: 115.8759261 | CJ220: 115.8759261 | CK220: 115.8759261 | CL220: 118.1934446 | CM220: 118.1934446 | CN220: 118.1934446 | CO220: 118.1934446 | CP220: 120.5573135 | CQ220: 120.5573135 | CR220: 120.5573135 | CS220: 120.5573135 | CT220: 133.2158314 | CU220: 133.2158314 | CV220: 133.2158314 | CW220: =CW$157 -> 133.2158314 | CX220: 135.8801481 | CY220: 135.8801481 | CZ220: 135.8801481 | DA220: 135.8801481 | DB220: 138.597751 | DC220: 138.597751 | DD220: 138.597751 | DE220: 138.597751 | DF220: 141.3697061 | DG220: 141.3697061 | DH220: 141.3697061 | DI220: 141.3697061 | DJ220: 144.1971002 | DK220: 144.1971002 | DL220: 144.1971002 | DM220: 144.1971002 | DN220: 147.0810422 | DO220: 147.0810422 | DP220: 147.0810422 | DQ220: 147.0810422 | DR220: 150.022663 | DS220: 150.022663 | DT220: 150.022663 | DU220: 150.022663 | DV220: 153.0231163 | DW220: 153.0231163 | DX220: 153.0231163 | DY220: 153.0231163 | DZ220: 156.0835786 | EA220: 156.0835786 | EB220: 156.0835786 | EC220: =EC$157 -> 156.0835786 | ED220: 159.2052502 | EE220: 159.2052502 | EF220: 159.2052502 | EG220: 159.2052502 | EH220: 162.3893552 | EI220: 108.8544029
E221: =E$174 -> Visitors - Food/Beverages - Day Parking Total Revenue | F221: 0 | G221: '000 HRK | H221: 10350.44596 | I221: 0 | J221: 0 | K221: 0 | L221: 0 | M221: 0 | N221: 0 | O221: 0 | P221: 0 | Q221: 0 | R221: 0 | S221: 9.91512633 | T221: 30.0758832 | U221: 30.0758832 | V221: 47.41052861 | W221: 47.41052861 | X221: 47.41052861 | Y221: 47.41052861 | Z221: 48.35873918 | AA221: 48.35873918 | AB221: 48.35873918 | AC221: 48.35873918 | AD221: 49.32591396 | AE221: 49.32591396 | AF221: 49.32591396 | AG221: 49.32591396 | AH221: 59.19109676 | AI221: 59.19109676 | AJ221: 59.19109676 | AK221: =AK$174 -> 59.19109676 | AL221: 60.37491869 | AM221: 60.37491869 | AN221: 60.37491869 | AO221: 60.37491869 | AP221: 61.58241707 | AQ221: 61.58241707 | AR221: 61.58241707 | AS221: 61.58241707 | AT221: 62.81406541 | AU221: 62.81406541 | AV221: 62.81406541 | AW221: 62.81406541 | AX221: 64.07034671 | AY221: 64.07034671 | AZ221: 64.07034671 | BA221: 64.07034671 | BB221: 65.35175365 | BC221: 65.35175365 | BD221: 65.35175365 | BE221: 65.35175365 | BF221: 73.32466759 | BG221: 73.32466759 | BH221: 73.32466759 | BI221: 73.32466759 | BJ221: 74.79116095 | BK221: 74.79116095 | BL221: 74.79116095 | BM221: 74.79116095 | BN221: 76.28698417 | BO221: 76.28698417 | BP221: 76.28698417 | BQ221: =BQ$174 -> 76.28698417 | BR221: 77.81272385 | BS221: 77.81272385 | BT221: 77.81272385 | BU221: 77.81272385 | BV221: 79.36897833 | BW221: 79.36897833 | BX221: 79.36897833 | BY221: 79.36897833 | BZ221: 88.31602679 | CA221: 88.31602679 | CB221: 88.31602679 | CC221: 88.31602679 | CD221: 90.08234733 | CE221: 90.08234733 | CF221: 90.08234733 | CG221: 90.08234733 | CH221: 91.88399427 | CI221: 91.88399427 | CJ221: 91.88399427 | CK221: 91.88399427 | CL221: 93.72167416 | CM221: 93.72167416 | CN221: 93.72167416 | CO221: 93.72167416 | CP221: 95.59610764 | CQ221: 95.59610764 | CR221: 95.59610764 | CS221: 95.59610764 | CT221: 105.6336989 | CU221: 105.6336989 | CV221: 105.6336989 | CW221: =CW$174 -> 105.6336989 | CX221: 107.7463729 | CY221: 107.7463729 | CZ221: 107.7463729 | DA221: 107.7463729 | DB221: 109.9013004 | DC221: 109.9013004 | DD221: 109.9013004 | DE221: 109.9013004 | DF221: 112.0993264 | DG221: 112.0993264 | DH221: 112.0993264 | DI221: 112.0993264 | DJ221: 114.3413129 | DK221: 114.3413129 | DL221: 114.3413129 | DM221: 114.3413129 | DN221: 116.6281392 | DO221: 116.6281392 | DP221: 116.6281392 | DQ221: 116.6281392 | DR221: 118.960702 | DS221: 118.960702 | DT221: 118.960702 | DU221: 118.960702 | DV221: 121.339916 | DW221: 121.339916 | DX221: 121.339916 | DY221: 121.339916 | DZ221: 123.7667143 | EA221: 123.7667143 | EB221: 123.7667143 | EC221: =EC$174 -> 123.7667143 | ED221: 126.2420486 | EE221: 126.2420486 | EF221: 126.2420486 | EG221: 126.2420486 | EH221: 128.7668896 | EI221: 86.31626664
E222: =E$191 -> Visitors - Food/Beverages - Evening Parking Total Revenue | F222: 0 | G222: '000 HRK | H222: 5635.242798 | I222: 0 | J222: 0 | K222: 0 | L222: 0 | M222: 0 | N222: 0 | O222: 0 | P222: 0 | Q222: 0 | R222: 0 | S222: 5.398235446 | T222: 16.37464752 | U222: 16.37464752 | V222: 25.81239891 | W222: 25.81239891 | X222: 25.81239891 | Y222: 25.81239891 | Z222: 26.32864689 | AA222: 26.32864689 | AB222: 26.32864689 | AC222: 26.32864689 | AD222: 26.85521982 | AE222: 26.85521982 | AF222: 26.85521982 | AG222: 26.85521982 | AH222: 32.22626379 | AI222: 32.22626379 | AJ222: 32.22626379 | AK222: =AK$191 -> 32.22626379 | AL222: 32.87078907 | AM222: 32.87078907 | AN222: 32.87078907 | AO222: 32.87078907 | AP222: 33.52820485 | AQ222: 33.52820485 | AR222: 33.52820485 | AS222: 33.52820485 | AT222: 34.19876894 | AU222: 34.19876894 | AV222: 34.19876894 | AW222: 34.19876894 | AX222: 34.88274432 | AY222: 34.88274432 | AZ222: 34.88274432 | BA222: 34.88274432 | BB222: 35.58039921 | BC222: 35.58039921 | BD222: 35.58039921 | BE222: 35.58039921 | BF222: 39.92120791 | BG222: 39.92120791 | BH222: 39.92120791 | BI222: 39.92120791 | BJ222: 40.71963207 | BK222: 40.71963207 | BL222: 40.71963207 | BM222: 40.71963207 | BN222: 41.53402471 | BO222: 41.53402471 | BP222: 41.53402471 | BQ222: =BQ$191 -> 41.53402471 | BR222: 42.36470521 | BS222: 42.36470521 | BT222: 42.36470521 | BU222: 42.36470521 | BV222: 43.21199931 | BW222: 43.21199931 | BX222: 43.21199931 | BY222: 43.21199931 | BZ222: 48.08317014 | CA222: 48.08317014 | CB222: 48.08317014 | CC222: 48.08317014 | CD222: 49.04483354 | CE222: 49.04483354 | CF222: 49.04483354 | CG222: 49.04483354 | CH222: 50.02573022 | CI222: 50.02573022 | CJ222: 50.02573022 | CK222: 50.02573022 | CL222: 51.02624482 | CM222: 51.02624482 | CN222: 51.02624482 | CO222: 51.02624482 | CP222: 52.04676972 | CQ222: 52.04676972 | CR222: 52.04676972 | CS222: 52.04676972 | CT222: 57.51168054 | CU222: 57.51168054 | CV222: 57.51168054 | CW222: =CW$191 -> 57.51168054 | CX222: 58.66191415 | CY222: 58.66191415 | CZ222: 58.66191415 | DA222: 58.66191415 | DB222: 59.83515243 | DC222: 59.83515243 | DD222: 59.83515243 | DE222: 59.83515243 | DF222: 61.03185548 | DG222: 61.03185548 | DH222: 61.03185548 | DI222: 61.03185548 | DJ222: 62.25249259 | DK222: 62.25249259 | DL222: 62.25249259 | DM222: 62.25249259 | DN222: 63.49754244 | DO222: 63.49754244 | DP222: 63.49754244 | DQ222: 63.49754244 | DR222: 64.76749329 | DS222: 64.76749329 | DT222: 64.76749329 | DU222: 64.76749329 | DV222: 66.06284315 | DW222: 66.06284315 | DX222: 66.06284315 | DY222: 66.06284315 | DZ222: 67.38410002 | EA222: 67.38410002 | EB222: 67.38410002 | EC222: =EC$191 -> 67.38410002 | ED222: 68.73178202 | EE222: 68.73178202 | EF222: 68.73178202 | EG222: 68.73178202 | EH222: 70.10641766 | EI222: 46.99441184
E223: =E$208 -> Others - Day Parking Total Revenue | F223: 0 | G223: '000 HRK | H223: 11739.01263 | I223: 0 | J223: 0 | K223: 0 | L223: 0 | M223: 0 | N223: 0 | O223: 0 | P223: 0 | Q223: 0 | R223: 0 | S223: 11.24529259 | T223: 34.11072086 | U223: 34.11072086 | V223: 53.77089998 | W223: 53.77089998 | X223: 53.77089998 | Y223: 53.77089998 | Z223: 54.84631798 | AA223: 54.84631798 | AB223: 54.84631798 | AC223: 54.84631798 | AD223: 55.94324434 | AE223: 55.94324434 | AF223: 55.94324434 | AG223: 55.94324434 | AH223: 67.13189321 | AI223: 67.13189321 | AJ223: 67.13189321 | AK223: =AK$208 -> 67.13189321 | AL223: 68.47453107 | AM223: 68.47453107 | AN223: 68.47453107 | AO223: 68.47453107 | AP223: 69.84402169 | AQ223: 69.84402169 | AR223: 69.84402169 | AS223: 69.84402169 | AT223: 71.24090213 | AU223: 71.24090213 | AV223: 71.24090213 | AW223: 71.24090213 | AX223: 72.66572017 | AY223: 72.66572017 | AZ223: 72.66572017 | BA223: 72.66572017 | BB223: 74.11903457 | BC223: 74.11903457 | BD223: 74.11903457 | BE223: 74.11903457 | BF223: 83.16155679 | BG223: 83.16155679 | BH223: 83.16155679 | BI223: 83.16155679 | BJ223: 84.82478793 | BK223: 84.82478793 | BL223: 84.82478793 | BM223: 84.82478793 | BN223: 86.52128368 | BO223: 86.52128368 | BP223: 86.52128368 | BQ223: =BQ$208 -> 86.52128368 | BR223: 88.25170936 | BS223: 88.25170936 | BT223: 88.25170936 | BU223: 88.25170936 | BV223: 90.01674355 | BW223: 90.01674355 | BX223: 90.01674355 | BY223: 90.01674355 | BZ223: 100.1640855 | CA223: 100.1640855 | CB223: 100.1640855 | CC223: 100.1640855 | CD223: 102.1673673 | CE223: 102.1673673 | CF223: 102.1673673 | CG223: 102.1673673 | CH223: 104.2107146 | CI223: 104.2107146 | CJ223: 104.2107146 | CK223: 104.2107146 | CL223: 106.2949289 | CM223: 106.2949289 | CN223: 106.2949289 | CO223: 106.2949289 | CP223: 108.4208275 | CQ223: 108.4208275 | CR223: 108.4208275 | CS223: 108.4208275 | CT223: 119.8050144 | CU223: 119.8050144 | CV223: 119.8050144 | CW223: =CW$208 -> 119.8050144 | CX223: 122.2011146 | CY223: 122.2011146 | CZ223: 122.2011146 | DA223: 122.2011146 | DB223: 124.6451369 | DC223: 124.6451369 | DD223: 124.6451369 | DE223: 124.6451369 | DF223: 127.1380397 | DG223: 127.1380397 | DH223: 127.1380397 | DI223: 127.1380397 | DJ223: 129.6808005 | DK223: 129.6808005 | DL223: 129.6808005 | DM223: 129.6808005 | DN223: 132.2744165 | DO223: 132.2744165 | DP223: 132.2744165 | DQ223: 132.2744165 | DR223: 134.9199048 | DS223: 134.9199048 | DT223: 134.9199048 | DU223: 134.9199048 | DV223: 137.6183029 | DW223: 137.6183029 | DX223: 137.6183029 | DY223: 137.6183029 | DZ223: 140.370669 | EA223: 140.370669 | EB223: 140.370669 | EC223: =EC$208 -> 140.370669 | ED223: 143.1780823 | EE223: 143.1780823 | EF223: 143.1780823 | EG223: 143.1780823 | EH223: 146.041644 | EI223: 97.89604707
E224: Total Parking Revenue Projections | G224: =SMU -> '000 HRK | H224: =SUM(J$224:EI$224) -> 289064.477 | J224: =SUM(J$214:J$223) -> 0 | K224: 0 | L224: 0 | M224: 0 | N224: 0 | O224: 0 | P224: 0 | Q224: 0 | R224: 0 | S224: 276.9069873 | T224: 839.9511948 | U224: 839.9511948 | V224: 1324.06852 | W224: 1324.06852 | X224: 1324.06852 | Y224: 1324.06852 | Z224: 1350.54989 | AA224: 1350.54989 | AB224: 1350.54989 | AC224: 1350.54989 | AD224: 1377.560888 | AE224: 1377.560888 | AF224: 1377.560888 | AG224: 1377.560888 | AH224: 1653.073066 | AI224: 1653.073066 | AJ224: 1653.073066 | AK224: 1653.073066 | AL224: 1686.134527 | AM224: 1686.134527 | AN224: 1686.134527 | AO224: 1686.134527 | AP224: =SUM(AP$214:AP$223) -> 1719.857218 | AQ224: 1719.857218 | AR224: 1719.857218 | AS224: 1719.857218 | AT224: 1754.254362 | AU224: 1754.254362 | AV224: 1754.254362 | AW224: 1754.254362 | AX224: 1789.339449 | AY224: 1789.339449 | AZ224: 1789.339449 | BA224: 1789.339449 | BB224: 1825.126238 | BC224: 1825.126238 | BD224: 1825.126238 | BE224: 1825.126238 | BF224: 2047.791639 | BG224: 2047.791639 | BH224: 2047.791639 | BI224: 2047.791639 | BJ224: 2088.747472 | BK224: 2088.747472 | BL224: 2088.747472 | BM224: 2088.747472 | BN224: 2130.522421 | BO224: 2130.522421 | BP224: 2130.522421 | BQ224: 2130.522421 | BR224: 2173.13287 | BS224: 2173.13287 | BT224: 2173.13287 | BU224: 2173.13287 | BV224: =SUM(BV$214:BV$223) -> 2216.595527 | BW224: 2216.595527 | BX224: 2216.595527 | BY224: 2216.595527 | BZ224: 2466.466296 | CA224: 2466.466296 | CB224: 2466.466296 | CC224: 2466.466296 | CD224: 2515.795622 | CE224: 2515.795622 | CF224: 2515.795622 | CG224: 2515.795622 | CH224: 2566.111534 | CI224: 2566.111534 | CJ224: 2566.111534 | CK224: 2566.111534 | CL224: 2617.433765 | CM224: 2617.433765 | CN224: 2617.433765 | CO224: 2617.433765 | CP224: 2669.78244 | CQ224: 2669.78244 | CR224: 2669.78244 | CS224: 2669.78244 | CT224: 2950.109596 | CU224: 2950.109596 | CV224: 2950.109596 | CW224: 2950.109596 | CX224: 3009.111788 | CY224: 3009.111788 | CZ224: 3009.111788 | DA224: 3009.111788 | DB224: =SUM(DB$214:DB$223) -> 3069.294024 | DC224: 3069.294024 | DD224: 3069.294024 | DE224: 3069.294024 | DF224: 3130.679904 | DG224: 3130.679904 | DH224: 3130.679904 | DI224: 3130.679904 | DJ224: 3193.293503 | DK224: 3193.293503 | DL224: 3193.293503 | DM224: 3193.293503 | DN224: 3257.159373 | DO224: 3257.159373 | DP224: 3257.159373 | DQ224: 3257.159373 | DR224: 3322.30256 | DS224: 3322.30256 | DT224: 3322.30256 | DU224: 3322.30256 | DV224: 3388.748611 | DW224: 3388.748611 | DX224: 3388.748611 | DY224: 3388.748611 | DZ224: 3456.523583 | EA224: 3456.523583 | EB224: 3456.523583 | EC224: 3456.523583 | ED224: 3525.654055 | EE224: 3525.654055 | EF224: 3525.654055 | EG224: 3525.654055 | EH224: =SUM(EH$214:EH$223) -> 3596.167136 | EI224: =SUM(EI$214:EI$223) -> 2410.617531
B228: OCCUPANCY RATE
E230: =E26 -> Workers - Subscription | F230: 246375 | G230: hours p/y
E231: Dwellers - Subscription | F231: 273750 | G231: hours p/y
E232: Students - Day Parking | F232: 237615 | G232: hours p/y
E233: Visitors - Health/Business/Culture - Day Parking | F233: 373760 | G233: hours p/y
E234: Visitors - Culture - Evening Parking | F234: 176295 | G234: hours p/y
E235: Visitors - Shopping - Day Parking | F235: 193450 | G235: hours p/y
E236: Visitors - Shopping - Evening Parking | F236: 82855 | G236: hours p/y
E237: Visitors - Food/Beverages - Day Parking | F237: 43800 | G237: hours p/y
E238: Visitors - Food/Beverages - Evening Parking | F238: 35770 | G238: hours p/y
E239: Others - Day Parking | F239: 49676 | G239: hours p/y
E240: Total Projected Hours Per year | F240: =SUM(F230:F239) -> 1713346 | G240: hours p/y
E243: =E$240 -> Total Projected Hours Per year | F243: =F$240 -> 1713346 | G243: hours p/y
E244: =E$9 -> Parking garage ramp up and realisation | F244: 0 | G244: % | H244: 0 | I244: 0 | J244: 0 | K244: 0 | L244: 0 | M244: 0 | N244: 0 | O244: 0 | P244: 0 | Q244: 0 | R244: 0 | S244: 0.55 | T244: 0.55 | U244: 0.55 | V244: 0.85 | W244: 0.85 | X244: 0.85 | Y244: 0.85 | Z244: 0.85 | AA244: 0.85 | AB244: 0.85 | AC244: 0.85 | AD244: 0.85 | AE244: 0.85 | AF244: 0.85 | AG244: 0.85 | AH244: 1 | AI244: 1 | AJ244: 1 | AK244: 1 | AL244: 1 | AM244: 1 | AN244: 1 | AO244: 1 | AP244: 1 | AQ244: 1 | AR244: 1 | AS244: 1 | AT244: 1 | AU244: 1 | AV244: 1 | AW244: 1 | AX244: 1 | AY244: 1 | AZ244: 1 | BA244: 1 | BB244: 1 | BC244: 1 | BD244: 1 | BE244: 1 | BF244: 1.1 | BG244: 1.1 | BH244: 1.1 | BI244: 1.1 | BJ244: 1.1 | BK244: 1.1 | BL244: 1.1 | BM244: 1.1 | BN244: 1.1 | BO244: 1.1 | BP244: 1.1 | BQ244: =BQ$9 -> 1.1 | BR244: 1.1 | BS244: 1.1 | BT244: 1.1 | BU244: 1.1 | BV244: 1.1 | BW244: 1.1 | BX244: 1.1 | BY244: 1.1 | BZ244: 1.2 | CA244: 1.2 | CB244: 1.2 | CC244: 1.2 | CD244: 1.2 | CE244: 1.2 | CF244: 1.2 | CG244: 1.2 | CH244: 1.2 | CI244: 1.2 | CJ244: 1.2 | CK244: 1.2 | CL244: 1.2 | CM244: 1.2 | CN244: 1.2 | CO244: 1.2 | CP244: 1.2 | CQ244: 1.2 | CR244: 1.2 | CS244: 1.2 | CT244: 1.3 | CU244: 1.3 | CV244: 1.3 | CW244: 1.3 | CX244: 1.3 | CY244: 1.3 | CZ244: 1.3 | DA244: 1.3 | DB244: 1.3 | DC244: 1.3 | DD244: 1.3 | DE244: 1.3 | DF244: 1.3 | DG244: 1.3 | DH244: 1.3 | DI244: 1.3 | DJ244: 1.3 | DK244: 1.3 | DL244: 1.3 | DM244: 1.3 | DN244: 1.3 | DO244: 1.3 | DP244: 1.3 | DQ244: 1.3 | DR244: 1.3 | DS244: 1.3 | DT244: 1.3 | DU244: 1.3 | DV244: 1.3 | DW244: 1.3 | DX244: 1.3 | DY244: 1.3 | DZ244: 1.3 | EA244: 1.3 | EB244: 1.3 | EC244: =EC$9 -> 1.3 | ED244: 1.3 | EE244: 1.3 | EF244: 1.3 | EG244: 1.3 | EH244: 1.3 | EI244: 1.3
E245: =E$53 -> Contractual Operation period fraction | F245: =F$53 -> 0 | G245: partial factor | H245: 120 | I245: 0 | J245: 0 | K245: 0 | L245: 0 | M245: 0 | N245: 0 | O245: 0 | P245: 0 | Q245: 0 | R245: 0 | S245: 0.3296703297 | T245: 1 | U245: 1 | V245: 1 | W245: 1 | X245: 1 | Y245: 1 | Z245: 1 | AA245: 1 | AB245: 1 | AC245: 1 | AD245: 1 | AE245: 1 | AF245: 1 | AG245: 1 | AH245: 1 | AI245: 1 | AJ245: 1 | AK245: 1 | AL245: 1 | AM245: 1 | AN245: 1 | AO245: 1 | AP245: 1 | AQ245: 1 | AR245: 1 | AS245: 1 | AT245: 1 | AU245: 1 | AV245: 1 | AW245: 1 | AX245: 1 | AY245: 1 | AZ245: 1 | BA245: 1 | BB245: 1 | BC245: 1 | BD245: 1 | BE245: 1 | BF245: 1 | BG245: 1 | BH245: 1 | BI245: 1 | BJ245: 1 | BK245: 1 | BL245: 1 | BM245: 1 | BN245: 1 | BO245: 1 | BP245: 1 | BQ245: 1 | BR245: =BR$53 -> 1 | BS245: 1 | BT245: 1 | BU245: 1 | BV245: 1 | BW245: 1 | BX245: 1 | BY245: 1 | BZ245: 1 | CA245: 1 | CB245: 1 | CC245: 1 | CD245: 1 | CE245: 1 | CF245: 1 | CG245: 1 | CH245: 1 | CI245: 1 | CJ245: 1 | CK245: 1 | CL245: 1 | CM245: 1 | CN245: 1 | CO245: 1 | CP245: 1 | CQ245: 1 | CR245: 1 | CS245: 1 | CT245: 1 | CU245: 1 | CV245: 1 | CW245: 1 | CX245: 1 | CY245: 1 | CZ245: 1 | DA245: 1 | DB245: 1 | DC245: 1 | DD245: 1 | DE245: 1 | DF245: 1 | DG245: 1 | DH245: 1 | DI245: 1 | DJ245: 1 | DK245: 1 | DL245: 1 | DM245: 1 | DN245: 1 | DO245: 1 | DP245: 1 | DQ245: 1 | DR245: 1 | DS245: 1 | DT245: 1 | DU245: 1 | DV245: 1 | DW245: 1 | DX245: 1 | DY245: 1 | DZ245: 1 | EA245: 1 | EB245: 1 | EC245: 1 | ED245: =ED$53 -> 1 | EE245: 1 | EF245: 1 | EG245: 1 | EH245: 1 | EI245: 0.6703296703
E246: Parking Usage Volume | G246: hours per quarter | H246: =SUM(J246:EI246) -> 232420091.9 | J246: =$F243 * J244 * J245 -> 0 | K246: =$F243 * K244 * K245 -> 0 | L246: 0 | M246: 0 | N246: 0 | O246: 0 | P246: 0 | Q246: 0 | R246: 0 | S246: 310661.6374 | T246: 942340.3 | U246: 942340.3 | V246: 1456344.1 | W246: 1456344.1 | X246: 1456344.1 | Y246: 1456344.1 | Z246: 1456344.1 | AA246: 1456344.1 | AB246: 1456344.1 | AC246: 1456344.1 | AD246: 1456344.1 | AE246: 1456344.1 | AF246: 1456344.1 | AG246: 1456344.1 | AH246: 1713346 | AI246: 1713346 | AJ246: 1713346 | AK246: 1713346 | AL246: 1713346 | AM246: 1713346 | AN246: 1713346 | AO246: 1713346 | AP246: 1713346 | AQ246: 1713346 | AR246: 1713346 | AS246: 1713346 | AT246: 1713346 | AU246: 1713346 | AV246: 1713346 | AW246: 1713346 | AX246: 1713346 | AY246: 1713346 | AZ246: 1713346 | BA246: 1713346 | BB246: 1713346 | BC246: 1713346 | BD246: 1713346 | BE246: 1713346 | BF246: 1884680.6 | BG246: 1884680.6 | BH246: 1884680.6 | BI246: 1884680.6 | BJ246: 1884680.6 | BK246: 1884680.6 | BL246: 1884680.6 | BM246: 1884680.6 | BN246: 1884680.6 | BO246: 1884680.6 | BP246: 1884680.6 | BQ246: 1884680.6 | BR246: 1884680.6 | BS246: 1884680.6 | BT246: 1884680.6 | BU246: 1884680.6 | BV246: 1884680.6 | BW246: =$F243 * BW244 * BW245 -> 1884680.6 | BX246: 1884680.6 | BY246: 1884680.6 | BZ246: 2056015.2 | CA246: 2056015.2 | CB246: 2056015.2 | CC246: 2056015.2 | CD246: 2056015.2 | CE246: 2056015.2 | CF246: 2056015.2 | CG246: 2056015.2 | CH246: 2056015.2 | CI246: 2056015.2 | CJ246: 2056015.2 | CK246: 2056015.2 | CL246: 2056015.2 | CM246: 2056015.2 | CN246: 2056015.2 | CO246: 2056015.2 | CP246: 2056015.2 | CQ246: 2056015.2 | CR246: 2056015.2 | CS246: 2056015.2 | CT246: 2227349.8 | CU246: 2227349.8 | CV246: 2227349.8 | CW246: 2227349.8 | CX246: 2227349.8 | CY246: 2227349.8 | CZ246: 2227349.8 | DA246: 2227349.8 | DB246: 2227349.8 | DC246: 2227349.8 | DD246: 2227349.8 | DE246: 2227349.8 | DF246: 2227349.8 | DG246: 2227349.8 | DH246: 2227349.8 | DI246: 2227349.8 | DJ246: 2227349.8 | DK246: 2227349.8 | DL246: 2227349.8 | DM246: 2227349.8 | DN246: 2227349.8 | DO246: 2227349.8 | DP246: 2227349.8 | DQ246: 2227349.8 | DR246: 2227349.8 | DS246: 2227349.8 | DT246: 2227349.8 | DU246: 2227349.8 | DV246: 2227349.8 | DW246: 2227349.8 | DX246: 2227349.8 | DY246: 2227349.8 | DZ246: 2227349.8 | EA246: 2227349.8 | EB246: 2227349.8 | EC246: 2227349.8 | ED246: 2227349.8 | EE246: 2227349.8 | EF246: 2227349.8 | EG246: 2227349.8 | EH246: 2227349.8 | EI246: =$F243 * EI244 * EI245 -> 1493058.657
E248: Hours per year | F248: 8736 | G248: hours
E249: Target Capacity | F249: 350 | G249: places
E250: Total Hours Availabble per year | F250: =F248 * F249 -> 3057600 | G250: hours
E251: =E$246 -> Parking Usage Volume | F251: =F$246 -> 0 | G251: hours per quarter | H251: 232420091.9 | I251: 0 | J251: 0 | K251: 0 | L251: 0 | M251: 0 | N251: 0 | O251: 0 | P251: 0 | Q251: 0 | R251: 0 | S251: 310661.6374 | T251: 942340.3 | U251: 942340.3 | V251: 1456344.1 | W251: 1456344.1 | X251: 1456344.1 | Y251: 1456344.1 | Z251: 1456344.1 | AA251: 1456344.1 | AB251: 1456344.1 | AC251: 1456344.1 | AD251: 1456344.1 | AE251: 1456344.1 | AF251: 1456344.1 | AG251: 1456344.1 | AH251: 1713346 | AI251: 1713346 | AJ251: 1713346 | AK251: 1713346 | AL251: 1713346 | AM251: 1713346 | AN251: 1713346 | AO251: 1713346 | AP251: 1713346 | AQ251: 1713346 | AR251: 1713346 | AS251: 1713346 | AT251: 1713346 | AU251: 1713346 | AV251: 1713346 | AW251: 1713346 | AX251: 1713346 | AY251: 1713346 | AZ251: 1713346 | BA251: 1713346 | BB251: 1713346 | BC251: 1713346 | BD251: 1713346 | BE251: 1713346 | BF251: 1884680.6 | BG251: 1884680.6 | BH251: 1884680.6 | BI251: 1884680.6 | BJ251: 1884680.6 | BK251: 1884680.6 | BL251: 1884680.6 | BM251: 1884680.6 | BN251: 1884680.6 | BO251: 1884680.6 | BP251: 1884680.6 | BQ251: 1884680.6 | BR251: =BR$246 -> 1884680.6 | BS251: 1884680.6 | BT251: 1884680.6 | BU251: 1884680.6 | BV251: 1884680.6 | BW251: 1884680.6 | BX251: 1884680.6 | BY251: 1884680.6 | BZ251: 2056015.2 | CA251: 2056015.2 | CB251: 2056015.2 | CC251: 2056015.2 | CD251: 2056015.2 | CE251: 2056015.2 | CF251: 2056015.2 | CG251: 2056015.2 | CH251: 2056015.2 | CI251: 2056015.2 | CJ251: 2056015.2 | CK251: 2056015.2 | CL251: 2056015.2 | CM251: 2056015.2 | CN251: 2056015.2 | CO251: 2056015.2 | CP251: 2056015.2 | CQ251: 2056015.2 | CR251: 2056015.2 | CS251: 2056015.2 | CT251: 2227349.8 | CU251: 2227349.8 | CV251: 2227349.8 | CW251: 2227349.8 | CX251: 2227349.8 | CY251: 2227349.8 | CZ251: 2227349.8 | DA251: 2227349.8 | DB251: 2227349.8 | DC251: 2227349.8 | DD251: 2227349.8 | DE251: 2227349.8 | DF251: 2227349.8 | DG251: 2227349.8 | DH251: 2227349.8 | DI251: 2227349.8 | DJ251: 2227349.8 | DK251: 2227349.8 | DL251: 2227349.8 | DM251: 2227349.8 | DN251: 2227349.8 | DO251: 2227349.8 | DP251: 2227349.8 | DQ251: 2227349.8 | DR251: 2227349.8 | DS251: 2227349.8 | DT251: 2227349.8 | DU251: 2227349.8 | DV251: 2227349.8 | DW251: 2227349.8 | DX251: 2227349.8 | DY251: 2227349.8 | DZ251: 2227349.8 | EA251: 2227349.8 | EB251: 2227349.8 | EC251: 2227349.8 | ED251: =ED$246 -> 2227349.8 | EE251: 2227349.8 | EF251: 2227349.8 | EG251: 2227349.8 | EH251: 2227349.8 | EI251: 1493058.657
E252: Occupancy Rate | H252: % | J252: =J251 / $F250 -> 0 | K252: =K251 / $F250 -> 0 | L252: 0 | M252: 0 | N252: 0 | O252: 0 | P252: 0 | Q252: 0 | R252: 0 | S252: 0.1016030996 | T252: 0.3081960688 | U252: 0.3081960688 | V252: 0.4763030154 | W252: 0.4763030154 | X252: 0.4763030154 | Y252: 0.4763030154 | Z252: 0.4763030154 | AA252: 0.4763030154 | AB252: 0.4763030154 | AC252: 0.4763030154 | AD252: 0.4763030154 | AE252: 0.4763030154 | AF252: 0.4763030154 | AG252: 0.4763030154 | AH252: 0.5603564887 | AI252: 0.5603564887 | AJ252: 0.5603564887 | AK252: 0.5603564887 | AL252: 0.5603564887 | AM252: 0.5603564887 | AN252: 0.5603564887 | AO252: 0.5603564887 | AP252: 0.5603564887 | AQ252: 0.5603564887 | AR252: 0.5603564887 | AS252: 0.5603564887 | AT252: 0.5603564887 | AU252: 0.5603564887 | AV252: 0.5603564887 | AW252: 0.5603564887 | AX252: 0.5603564887 | AY252: 0.5603564887 | AZ252: 0.5603564887 | BA252: 0.5603564887 | BB252: 0.5603564887 | BC252: 0.5603564887 | BD252: 0.5603564887 | BE252: 0.5603564887 | BF252: 0.6163921376 | BG252: 0.6163921376 | BH252: 0.6163921376 | BI252: 0.6163921376 | BJ252: 0.6163921376 | BK252: 0.6163921376 | BL252: 0.6163921376 | BM252: 0.6163921376 | BN252: 0.6163921376 | BO252: 0.6163921376 | BP252: 0.6163921376 | BQ252: 0.6163921376 | BR252: 0.6163921376 | BS252: 0.6163921376 | BT252: 0.6163921376 | BU252: 0.6163921376 | BV252: 0.6163921376 | BW252: =BW251 / $F250 -> 0.6163921376 | BX252: 0.6163921376 | BY252: 0.6163921376 | BZ252: 0.6724277865 | CA252: 0.6724277865 | CB252: 0.6724277865 | CC252: 0.6724277865 | CD252: 0.6724277865 | CE252: 0.6724277865 | CF252: 0.6724277865 | CG252: 0.6724277865 | CH252: 0.6724277865 | CI252: 0.6724277865 | CJ252: 0.6724277865 | CK252: 0.6724277865 | CL252: 0.6724277865 | CM252: 0.6724277865 | CN252: 0.6724277865 | CO252: 0.6724277865 | CP252: 0.6724277865 | CQ252: 0.6724277865 | CR252: 0.6724277865 | CS252: 0.6724277865 | CT252: 0.7284634354 | CU252: 0.7284634354 | CV252: 0.7284634354 | CW252: 0.7284634354 | CX252: 0.7284634354 | CY252: 0.7284634354 | CZ252: 0.7284634354 | DA252: 0.7284634354 | DB252: 0.7284634354 | DC252: 0.7284634354 | DD252: 0.7284634354 | DE252: 0.7284634354 | DF252: 0.7284634354 | DG252: 0.7284634354 | DH252: 0.7284634354 | DI252: 0.7284634354 | DJ252: 0.7284634354 | DK252: 0.7284634354 | DL252: 0.7284634354 | DM252: 0.7284634354 | DN252: 0.7284634354 | DO252: 0.7284634354 | DP252: 0.7284634354 | DQ252: 0.7284634354 | DR252: 0.7284634354 | DS252: 0.7284634354 | DT252: 0.7284634354 | DU252: 0.7284634354 | DV252: 0.7284634354 | DW252: 0.7284634354 | DX252: 0.7284634354 | DY252: 0.7284634354 | DZ252: 0.7284634354 | EA252: 0.7284634354 | EB252: 0.7284634354 | EC252: 0.7284634354 | ED252: 0.7284634354 | EE252: 0.7284634354 | EF252: 0.7284634354 | EG252: 0.7284634354 | EH252: 0.7284634354 | EI252: =EI251 / $F250 -> 0.4883106545

Sheet Occupancy_Stats (hidden)
A1: =RIGHT(CELL("filename", A$1), LEN(CELL("filename", A$1)) - SEARCH("]", CELL("filename", A$1))) -> Occupancy_Stats
B5: Car park TUŠKANAC (465 parking places) - opened in the year 2008 | C5: 2010 | D5: 2011 | E5: 2012 | F5: 2013
B7: Occupancy 24 h | C7: 0.54 | D7: 0.47 | E7: 0.43 | F7: 55%*
B8: Occupancy 16 h | C8: 0.81 | D8: 0.71 | E8: 0.64 | F8: 83%*
B9: * Subscription at very low price for dwellers
B11: Car park LANGOV TRG (305 parking places) - opened in the year 2004 | C11: 2010 | D11: 2011 | E11: 2012 | F11: 2013
B13: Occupancy 24 h | C13: 0.48 | D13: 0.43 | E13: 0.35 | F13: 0.35
B14: Occupancy 16 h | C14: 0.67 | D14: 0.64 | E14: 0.53 | F14: 0.53
B16: Car park KVATERNIKOV TRG (354 parking places) - opened in the year 2008 | C16: 2010 | D16: 2011 | E16: 2012 | F16: 2013
B18: Occupancy 24 h | C18: 0.29 | D18: 0.31 | E18: 0.3 | F18: 0.34
B19: Occupancy 16 h | C19: 0.43 | D19: 0.47 | E19: 0.46 | F19: 0.51
B24: Provided By the Municipality of Zagreb
